Workbook

Sheet Correlsim
A1: Distribution of the Correlation Coefficient | T1: x's | U1: -1 | V1: 11 | Y1: Frequency
T2: y's | U2: =1.5003*U1-0.5874 -> -2.0877 | V2: =1.5003*V1-0.5874 -> 15.9159 | Y2: =COUNTIF(samples!IV2:IV251,"<0.5") -> 0
B3: This program simulates the distribution of | U3: -1 | V3: 11 | Y3: =COUNTIF(samples!IV2:IV251,"<.70")-Y2 -> 0
B4: the correlation coefficient based on repeated | U4: =U2-4.69 -> -6.7777 | V4: =V2-4.69 -> 11.2259 | Y4: =COUNTIF(samples!IV2:IV251,"<.72")-SUM(Y$2:Y3) -> 0
B5: random samples drawn from a population | U5: -1 | V5: 11 | Y5: =COUNTIF(samples!IV$2:IV$251,"<.74")-SUM(Y$2:Y4) -> 0
U6: =U2+4.69 -> 2.6023 | V6: =V2+4.69 -> 20.6059 | Y6: =COUNTIF(samples!IV$2:IV$251,"<.76")-SUM(Y$2:Y5) -> 0
Y7: =COUNTIF(samples!IV$2:IV$251,"<.78")-SUM(Y$2:Y6) -> 0
A8: How many random points n (3-50)? | D8: 17 | E8: 10 | Y8: =COUNTIF(samples!IV$2:IV$251,"<.80")-SUM(Y$2:Y7) -> 1
Y9: =COUNTIF(samples!IV$2:IV$251,"<.82")-SUM(Y$2:Y8) -> 1
A10: How many samples (50-250)? | D10: 136 | Y10: =COUNTIF(samples!IV$2:IV$251,"<.84")-SUM(Y$2:Y9) -> 3
Y11: =COUNTIF(samples!IV$2:IV$251,"<.86")-SUM(Y$2:Y10) -> 6
A12: The underlying bivariate population | Y12: =COUNTIF(samples!IV$2:IV$251,"<.88")-SUM(Y$2:Y11) -> 7
B13: has a correlation coefficient of r = | E13: 0.926 | Y13: =COUNTIF(samples!IV$2:IV$251,"<.90")-SUM(Y$2:Y12) -> 11
Y14: =COUNTIF(samples!IV$2:IV$251,"<.92")-SUM(Y$2:Y13) -> 25
Y15: =COUNTIF(samples!IV$2:IV$251,"<.94")-SUM(Y$2:Y14) -> 30
A16: ="For the "&TEXT(flips,"0")&" sample correlation coefficients based on n = "&TEXT(D8,"0")&" random points" -> For the 136 sample correlation coefficients based on n = 17 random points | Y16: =COUNTIF(samples!IV$2:IV$251,"<.96")-SUM(Y$2:Y15) -> 31
A17: =" The mean of the correlation coefficients =" -> The mean of the correlation coefficients = | F17: =SUM(samples!IV2:IV251)/flips -> 0.9229836197 | Y17: =COUNTIF(samples!IV$2:IV$251,"<.98")-SUM(Y$2:Y16) -> 20
A18: with a corresponding standard deviation = | F18: =STDEV(samples!$IV2:$IV251) -> 0.03722466212 | Y18: =COUNTIF(samples!IV$2:IV$251,"<=1")-SUM(Y$2:Y17) -> 1
D21: 1
A24: Click each item below for suggestions and investigations
C25: Item 1
C26: Item 2
C27: Item 3
C28: Item 4
C29: Item 5
C30: Item 6
A34: Created by: Sheldon P. Gordon & Florence S. Gordon
A35: Farmingdale StateCollege NYIT
A36: Development of this module was supported by the
A37: NSF's Division of Undergraduate Education
A38: under grants DUE-0310123 and DUE-0442160.
U201: =F17 -> 0.9229836197 | V201: =F17 -> 0.9229836197
U202: 0 | V202: 1

Sheet Scatterplot
A1: The Scatterplot of the Underlying Bivariate Population
A32: Click each item below for suggestions and investigations
B33: Item 1
B34: Item 2
B35: Item 3
B36: Item 4

Sheet samples
B1: x-y data | D1: sample | E1: 1 | G1: sample | H1: 2 | J1: sample | K1: 3 | M1: sample | N1: 4 | P1: sample | Q1: =N1+1 -> 5 | S1: sample | T1: =Q1+1 -> 6 | V1: sample | W1: =T1+1 -> 7 | Y1: sample | Z1: =W1+1 -> 8 | AB1: sample | AC1: =Z1+1 -> 9 | AE1: sample | AF1: =AC1+1 -> 10 | AH1: sample | AI1: =AF1+1 -> 11 | AK1: sample | AL1: =AI1+1 -> 12 | AN1: sample | AO1: =AL1+1 -> 13 | AQ1: sample | AR1: =AO1+1 -> 14 | AT1: sample | AU1: =AR1+1 -> 15 | AW1: sample | AX1: =AU1+1 -> 16 | AZ1: sample | BA1: =AX1+1 -> 17 | BC1: sample | BD1: =BA1+1 -> 18 | BF1: sample | BG1: =BD1+1 -> 19 | BI1: sample | BJ1: =BG1+1 -> 20 | BL1: sample | BM1: =BJ1+1 -> 21 | BO1: sample | BP1: =BM1+1 -> 22 | BR1: sample | BS1: =BP1+1 -> 23 | BU1: sample | BV1: =BS1+1 -> 24 | BX1: sample | BY1: =BV1+1 -> 25 | CA1: sample | CB1: =BY1+1 -> 26 | CD1: sample | CE1: =CB1+1 -> 27 | CG1: sample | CH1: =CE1+1 -> 28 | CJ1: sample | CK1: =CH1+1 -> 29 | CM1: sample | CN1: =CK1+1 -> 30 | CP1: sample | CQ1: =CN1+1 -> 31 | CS1: sample | CT1: =CQ1+1 -> 32 | CV1: sample | CW1: =CT1+1 -> 33 | CY1: sample | CZ1: =CW1+1 -> 34 | DB1: sample | DC1: =CZ1+1 -> 35 | DE1: sample | DF1: =DC1+1 -> 36 | DH1: sample | DI1: =DF1+1 -> 37 | DK1: sample | DL1: =DI1+1 -> 38 | DN1: sample | DO1: =DL1+1 -> 39 | DQ1: sample | DR1: =DO1+1 -> 40 | DT1: sample | DU1: =DR1+1 -> 41 | DW1: sample | DX1: =DU1+1 -> 42 | DZ1: sample | EA1: =DX1+1 -> 43 | EC1: sample | ED1: =EA1+1 -> 44 | EF1: sample | EG1: =ED1+1 -> 45 | EI1: sample | EJ1: =EG1+1 -> 46 | EL1: sample | EM1: =EJ1+1 -> 47 | EO1: sample | EP1: =EM1+1 -> 48 | ER1: sample | ES1: =EP1+1 -> 49 | EU1: sample | EV1: =ES1+1 -> 50 | EX1: sample | EY1: =EV1+1 -> 51 | FA1: sample | FB1: =EY1+1 -> 52 | FD1: sample | FE1: =FB1+1 -> 53 | FG1: sample | FH1: =FE1+1 -> 54 | FJ1: sample | FK1: =FH1+1 -> 55 | FM1: sample | FN1: =FK1+1 -> 56 | FP1: sample | FQ1: =FN1+1 -> 57 | FS1: sample | FT1: =FQ1+1 -> 58 | FV1: sample | FW1: =FT1+1 -> 59 | FY1: sample | FZ1: =FW1+1 -> 60 | GB1: sample | GC1: =FZ1+1 -> 61 | GE1: sample | GF1: =GC1+1 -> 62 | GH1: sample | GI1: =GF1+1 -> 63 | GK1: sample | GL1: =GI1+1 -> 64 | GN1: sample | GO1: =GL1+1 -> 65 | GQ1: sample | GR1: =GO1+1 -> 66 | GT1: sample | GU1: =GR1+1 -> 67 | GW1: sample | GX1: =GU1+1 -> 68 | GZ1: sample | HA1: =GX1+1 -> 69 | HC1: sample | HD1: =HA1+1 -> 70 | HF1: sample | HG1: =HD1+1 -> 71 | HI1: sample | HJ1: =HG1+1 -> 72 | HL1: sample | HM1: =HJ1+1 -> 73 | HO1: sample | HP1: =HM1+1 -> 74 | HR1: sample | HS1: =HP1+1 -> 75 | HU1: sample | HV1: =HS1+1 -> 76 | HX1: sample | HY1: =HV1+1 -> 77 | IA1: sample | IB1: =HY1+1 -> 78 | ID1: sample | IE1: =IB1+1 -> 79 | IG1: sample | IH1: =IE1+1 -> 80 | IJ1: sample | IK1: =IH1+1 -> 81 | IM1: sample | IN1: =IK1+1 -> 82 | IP1: sample | IQ1: =IN1+1 -> 83 | IS1: sample | IT1: =IQ1+1 -> 84 | IV1: cc's
A2: 1 | B2: 9.09214193 | C2: 9.22605615 | D2: =IF($A2<=n,INT(501*RAND()+1),"") -> 458 | E2: =IF(D2<>"",INDEX($B$2:$B$502,D2),"") -> 1.35782845 | F2: =IF(D2<>"",INDEX($C$2:$C$502,D2),"") -> 2.537922209 | G2: =IF($A2<=n,INT(501*RAND()+1),"") -> 439 | H2: =IF(G2<>"",INDEX($B$2:$B$502,G2),"") -> 3.936687521 | I2: =IF(G2<>"",INDEX($C$2:$C$502,G2),"") -> 4.356405707 | J2: =IF($A2<=n,INT(501*RAND()+1),"") -> 369 | K2: =IF(J2<>"",INDEX($B$2:$B$502,J2),"") -> 6.965849474 | L2: =IF(J2<>"",INDEX($C$2:$C$502,J2),"") -> 9.498295911 | M2: =IF($A2<=n,INT(501*RAND()+1),"") -> 46 | N2: =IF(M2<>"",INDEX($B$2:$B$502,M2),"") -> 6.94092202 | O2: =IF(M2<>"",INDEX($C$2:$C$502,M2),"") -> 6.74365555 | P2: =IF($A2<=n,INT(501*RAND()+1),"") -> 345 | Q2: =IF(P2<>"",INDEX($B$2:$B$502,P2),"") -> 7.107225212 | R2: =IF(P2<>"",INDEX($C$2:$C$502,P2),"") -> 9.733400637 | S2: =IF($A2<=n,INT(501*RAND()+1),"") -> 467 | T2: =IF(S2<>"",INDEX($B$2:$B$502,S2),"") -> 3.874689857 | U2: =IF(S2<>"",INDEX($C$2:$C$502,S2),"") -> 5.137450001 | V2: =IF($A2<=n,INT(501*RAND()+1),"") -> 421 | W2: =IF(V2<>"",INDEX($B$2:$B$502,V2),"") -> 0.5466026595 | X2: =IF(V2<>"",INDEX($C$2:$C$502,V2),"") -> -0.1865322591 | Y2: =IF($A2<=n,INT(501*RAND()+1),"") -> 280 | Z2: =IF(Y2<>"",INDEX($B$2:$B$502,Y2),"") -> 4.696012252 | AA2: =IF(Y2<>"",INDEX($C$2:$C$502,Y2),"") -> 6.343121289 | AB2: =IF($A2<=n,INT(501*RAND()+1),"") -> 176 | AC2: =IF(AB2<>"",INDEX($B$2:$B$502,AB2),"") -> 3.506806691 | AD2: =IF(AB2<>"",INDEX($C$2:$C$502,AB2),"") -> 4.916780199 | AE2: =IF($A2<=n,INT(501*RAND()+1),"") -> 364 | AF2: =IF(AE2<>"",INDEX($B$2:$B$502,AE2),"") -> 2.674927642 | AG2: =IF(AE2<>"",INDEX($C$2:$C$502,AE2),"") -> 4.836107233 | AH2: =IF($A2<=n,INT(501*RAND()+1),"") -> 344 | AI2: =IF(AH2<>"",INDEX($B$2:$B$502,AH2),"") -> 1.513570813 | AJ2: =IF(AH2<>"",INDEX($C$2:$C$502,AH2),"") -> 4.658768124 | AK2: =IF($A2<=n,INT(501*RAND()+1),"") -> 182 | AL2: =IF(AK2<>"",INDEX($B$2:$B$502,AK2),"") -> 1.308641244 | AM2: =IF(AK2<>"",INDEX($C$2:$C$502,AK2),"") -> 3.608110363 | AN2: =IF($A2<=n,INT(501*RAND()+1),"") -> 145 | AO2: =IF(AN2<>"",INDEX($B$2:$B$502,AN2),"") -> 0.8525446832 | AP2: =IF(AN2<>"",INDEX($C$2:$C$502,AN2),"") -> 2.999647937 | AQ2: =IF($A2<=n,INT(501*RAND()+1),"") -> 68 | AR2: =IF(AQ2<>"",INDEX($B$2:$B$502,AQ2),"") -> 4.59207945 | AS2: =IF(AQ2<>"",INDEX($C$2:$C$502,AQ2),"") -> 2.43433646 | AT2: =IF($A2<=n,INT(501*RAND()+1),"") -> 167 | AU2: =IF(AT2<>"",INDEX($B$2:$B$502,AT2),"") -> 5.694993418 | AV2: =IF(AT2<>"",INDEX($C$2:$C$502,AT2),"") -> 7.587259181 | AW2: =IF($A2<=n,INT(501*RAND()+1),"") -> 418 | AX2: =IF(AW2<>"",INDEX($B$2:$B$502,AW2),"") -> 9.610171677 | AY2: =IF(AW2<>"",INDEX($C$2:$C$502,AW2),"") -> 14.48852042 | AZ2: =IF($A2<=n,INT(501*RAND()+1),"") -> 450 | BA2: =IF(AZ2<>"",INDEX($B$2:$B$502,AZ2),"") -> 2.439381668 | BB2: =IF(AZ2<>"",INDEX($C$2:$C$502,AZ2),"") -> 2.658876136 | BC2: =IF($A2<=n,INT(501*RAND()+1),"") -> 272 | BD2: =IF(BC2<>"",INDEX($B$2:$B$502,BC2),"") -> 2.900179276 | BE2: =IF(BC2<>"",INDEX($C$2:$C$502,BC2),"") -> 3.381056319 | BF2: =IF($A2<=n,INT(501*RAND()+1),"") -> 79 | BG2: =IF(BF2<>"",INDEX($B$2:$B$502,BF2),"") -> 1.39826337 | BH2: =IF(BF2<>"",INDEX($C$2:$C$502,BF2),"") -> 1.12138749 | BI2: =IF($A2<=n,INT(501*RAND()+1),"") -> 405 | BJ2: =IF(BI2<>"",INDEX($B$2:$B$502,BI2),"") -> 6.308263957 | BK2: =IF(BI2<>"",INDEX($C$2:$C$502,BI2),"") -> 8.417126503 | BL2: =IF($A2<=n,INT(501*RAND()+1),"") -> 420 | BM2: =IF(BL2<>"",INDEX($B$2:$B$502,BL2),"") -> 6.569000717 | BN2: =IF(BL2<>"",INDEX($C$2:$C$502,BL2),"") -> 8.167703691 | BO2: =IF($A2<=n,INT(501*RAND()+1),"") -> 452 | BP2: =IF(BO2<>"",INDEX($B$2:$B$502,BO2),"") -> 6.647937713 | BQ2: =IF(BO2<>"",INDEX($C$2:$C$502,BO2),"") -> 10.67406087 | BR2: =IF($A2<=n,INT(501*RAND()+1),"") -> 110 | BS2: =IF(BR2<>"",INDEX($B$2:$B$502,BR2),"") -> 2.589965259 | BT2: =IF(BR2<>"",INDEX($C$2:$C$502,BR2),"") -> 2.941322045 | BU2: =IF($A2<=n,INT(501*RAND()+1),"") -> 491 | BV2: =IF(BU2<>"",INDEX($B$2:$B$502,BU2),"") -> 5.400268075 | BW2: =IF(BU2<>"",INDEX($C$2:$C$502,BU2),"") -> 9.32922091 | BX2: =IF($A2<=n,INT(501*RAND()+1),"") -> 283 | BY2: =IF(BX2<>"",INDEX($B$2:$B$502,BX2),"") -> 6.18427252 | BZ2: =IF(BX2<>"",INDEX($C$2:$C$502,BX2),"") -> 7.808466477 | CA2: =IF($A2<=n,INT(501*RAND()+1),"") -> 483 | CB2: =IF(CA2<>"",INDEX($B$2:$B$502,CA2),"") -> 9.73870308 | CC2: =IF(CA2<>"",INDEX($C$2:$C$502,CA2),"") -> 13.47678108 | CD2: =IF($A2<=n,INT(501*RAND()+1),"") -> 109 | CE2: =IF(CD2<>"",INDEX($B$2:$B$502,CD2),"") -> 4.247385375 | CF2: =IF(CD2<>"",INDEX($C$2:$C$502,CD2),"") -> 5.531413809 | CG2: =IF($A2<=n,INT(501*RAND()+1),"") -> 210 | CH2: =IF(CG2<>"",INDEX($B$2:$B$502,CG2),"") -> 9.490853698 | CI2: =IF(CG2<>"",INDEX($C$2:$C$502,CG2),"") -> 13.20251609 | CJ2: =IF($A2<=n,INT(501*RAND()+1),"") -> 427 | CK2: =IF(CJ2<>"",INDEX($B$2:$B$502,CJ2),"") -> 6.988534876 | CL2: =IF(CJ2<>"",INDEX($C$2:$C$502,CJ2),"") -> 9.345507758 | CM2: =IF($A2<=n,INT(501*RAND()+1),"") -> 16 | CN2: =IF(CM2<>"",INDEX($B$2:$B$502,CM2),"") -> 1.20622191 | CO2: =IF(CM2<>"",INDEX($C$2:$C$502,CM2),"") -> -1.56819643 | CP2: =IF($A2<=n,INT(501*RAND()+1),"") -> 247 | CQ2: =IF(CP2<>"",INDEX($B$2:$B$502,CP2),"") -> 3.968362843 | CR2: =IF(CP2<>"",INDEX($C$2:$C$502,CP2),"") -> 4.56225389 | CS2: =IF($A2<=n,INT(501*RAND()+1),"") -> 110 | CT2: =IF(CS2<>"",INDEX($B$2:$B$502,CS2),"") -> 2.589965259 | CU2: =IF(CS2<>"",INDEX($C$2:$C$502,CS2),"") -> 2.941322045 | CV2: =IF($A2<=n,INT(501*RAND()+1),"") -> 10 | CW2: =IF(CV2<>"",INDEX($B$2:$B$502,CV2),"") -> 4.30812811 | CX2: =IF(CV2<>"",INDEX($C$2:$C$502,CV2),"") -> 4.96796458 | CY2: =IF($A2<=n,INT(501*RAND()+1),"") -> 8 | CZ2: =IF(CY2<>"",INDEX($B$2:$B$502,CY2),"") -> 2.1716921 | DA2: =IF(CY2<>"",INDEX($C$2:$C$502,CY2),"") -> 4.08450283 | DB2: =IF($A2<=n,INT(501*RAND()+1),"") -> 44 | DC2: =IF(DB2<>"",INDEX($B$2:$B$502,DB2),"") -> 2.51870786 | DD2: =IF(DB2<>"",INDEX($C$2:$C$502,DB2),"") -> 3.95381 | DE2: =IF($A2<=n,INT(501*RAND()+1),"") -> 479 | DF2: =IF(DE2<>"",INDEX($B$2:$B$502,DE2),"") -> 8.46281105 | DG2: =IF(DE2<>"",INDEX($C$2:$C$502,DE2),"") -> 9.640987524 | DH2: =IF($A2<=n,INT(501*RAND()+1),"") -> 453 | DI2: =IF(DH2<>"",INDEX($B$2:$B$502,DH2),"") -> 0.3355561041 | DJ2: =IF(DH2<>"",INDEX($C$2:$C$502,DH2),"") -> -0.4537530918 | DK2: =IF($A2<=n,INT(501*RAND()+1),"") -> 186 | DL2: =IF(DK2<>"",INDEX($B$2:$B$502,DK2),"") -> 8.005788583 | DM2: =IF(DK2<>"",INDEX($C$2:$C$502,DK2),"") -> 10.37636983 | DN2: =IF($A2<=n,INT(501*RAND()+1),"") -> 489 | DO2: =IF(DN2<>"",INDEX($B$2:$B$502,DN2),"") -> 2.356217366 | DP2: =IF(DN2<>"",INDEX($C$2:$C$502,DN2),"") -> 3.386803926 | DQ2: =IF($A2<=n,INT(501*RAND()+1),"") -> 38 | DR2: =IF(DQ2<>"",INDEX($B$2:$B$502,DQ2),"") -> 5.18673108 | DS2: =IF(DQ2<>"",INDEX($C$2:$C$502,DQ2),"") -> 5.84375759 | DT2: =IF($A2<=n,INT(501*RAND()+1),"") -> 440 | DU2: =IF(DT2<>"",INDEX($B$2:$B$502,DT2),"") -> 9.908334403 | DV2: =IF(DT2<>"",INDEX($C$2:$C$502,DT2),"") -> 14.03019626 | DW2: =IF($A2<=n,INT(501*RAND()+1),"") -> 453 | DX2: =IF(DW2<>"",INDEX($B$2:$B$502,DW2),"") -> 0.3355561041 | DY2: =IF(DW2<>"",INDEX($C$2:$C$502,DW2),"") -> -0.4537530918 | DZ2: =IF($A2<=n,INT(501*RAND()+1),"") -> 108 | EA2: =IF(DZ2<>"",INDEX($B$2:$B$502,DZ2),"") -> 6.002723661 | EB2: =IF(DZ2<>"",INDEX($C$2:$C$502,DZ2),"") -> 7.872636575 | EC2: =IF($A2<=n,INT(501*RAND()+1),"") -> 3 | ED2: =IF(EC2<>"",INDEX($B$2:$B$502,EC2),"") -> 7.96784314 | EE2: =IF(EC2<>"",INDEX($C$2:$C$502,EC2),"") -> 7.84023659 | EF2: =IF($A2<=n,INT(501*RAND()+1),"") -> 270 | EG2: =IF(EF2<>"",INDEX($B$2:$B$502,EF2),"") -> 4.892477198 | EH2: =IF(EF2<>"",INDEX($C$2:$C$502,EF2),"") -> 9.449142022 | EI2: =IF($A2<=n,INT(501*RAND()+1),"") -> 338 | EJ2: =IF(EI2<>"",INDEX($B$2:$B$502,EI2),"") -> 6.139911704 | EK2: =IF(EI2<>"",INDEX($C$2:$C$502,EI2),"") -> 8.221082624 | EL2: =IF($A2<=n,INT(501*RAND()+1),"") -> 84 | EM2: =IF(EL2<>"",INDEX($B$2:$B$502,EL2),"") -> 8.61456682 | EN2: =IF(EL2<>"",INDEX($C$2:$C$502,EL2),"") -> 11.9266656 | EO2: =IF($A2<=n,INT(501*RAND()+1),"") -> 381 | EP2: =IF(EO2<>"",INDEX($B$2:$B$502,EO2),"") -> 9.131934317 | EQ2: =IF(EO2<>"",INDEX($C$2:$C$502,EO2),"") -> 12.55291319 | ER2: =IF($A2<=n,INT(501*RAND()+1),"") -> 297 | ES2: =IF(ER2<>"",INDEX($B$2:$B$502,ER2),"") -> 4.810584176 | ET2: =IF(ER2<>"",INDEX($C$2:$C$502,ER2),"") -> 5.7242914 | EU2: =IF($A2<=n,INT(501*RAND()+1),"") -> 18 | EV2: =IF(EU2<>"",INDEX($B$2:$B$502,EU2),"") -> 6.2052832 | EW2: =IF(EU2<>"",INDEX($C$2:$C$502,EU2),"") -> 8.9630256 | EX2: =IF(AND($A2<=n,EY$1<=flips),INT(501*RAND()+1),"") -> 40 | EY2: =IF(EX2<>"",INDEX($B$2:$B$502,EX2),"") -> 8.07864525 | EZ2: =IF(EX2<>"",INDEX($C$2:$C$502,EX2),"") -> 8.03795487 | FA2: =IF(AND($A2<=n,FB$1<=flips),INT(501*RAND()+1),"") -> 218 | FB2: =IF(FA2<>"",INDEX($B$2:$B$502,FA2),"") -> 9.17666073 | FC2: =IF(FA2<>"",INDEX($C$2:$C$502,FA2),"") -> 13.32428062 | FD2: =IF(AND($A2<=n,FE$1<=flips),INT(501*RAND()+1),"") -> 403 | FE2: =IF(FD2<>"",INDEX($B$2:$B$502,FD2),"") -> 6.126795992 | FF2: =IF(FD2<>"",INDEX($C$2:$C$502,FD2),"") -> 11.91214737 | FG2: =IF(AND($A2<=n,FH$1<=flips),INT(501*RAND()+1),"") -> 249 | FH2: =IF(FG2<>"",INDEX($B$2:$B$502,FG2),"") -> 9.80191764 | FI2: =IF(FG2<>"",INDEX($C$2:$C$502,FG2),"") -> 16.65592597 | FJ2: =IF(AND($A2<=n,FK$1<=flips),INT(501*RAND()+1),"") -> 110 | FK2: =IF(FJ2<>"",INDEX($B$2:$B$502,FJ2),"") -> 2.589965259 | FL2: =IF(FJ2<>"",INDEX($C$2:$C$502,FJ2),"") -> 2.941322045 | FM2: =IF(AND($A2<=n,FN$1<=flips),INT(501*RAND()+1),"") -> 487 | FN2: =IF(FM2<>"",INDEX($B$2:$B$502,FM2),"") -> 6.039849047 | FO2: =IF(FM2<>"",INDEX($C$2:$C$502,FM2),"") -> 8.001931175 | FP2: =IF(AND($A2<=n,FQ$1<=flips),INT(501*RAND()+1),"") -> 260 | FQ2: =IF(FP2<>"",INDEX($B$2:$B$502,FP2),"") -> 0.7940843459 | FR2: =IF(FP2<>"",INDEX($C$2:$C$502,FP2),"") -> 0.1172914201 | FS2: =IF(AND($A2<=n,FT$1<=flips),INT(501*RAND()+1),"") -> 134 | FT2: =IF(FS2<>"",INDEX($B$2:$B$502,FS2),"") -> 9.150091434 | FU2: =IF(FS2<>"",INDEX($C$2:$C$502,FS2),"") -> 14.55331338 | FV2: =IF(AND($A2<=n,FW$1<=flips),INT(501*RAND()+1),"") -> 466 | FW2: =IF(FV2<>"",INDEX($B$2:$B$502,FV2),"") -> 2.272121236 | FX2: =IF(FV2<>"",INDEX($C$2:$C$502,FV2),"") -> 2.41393604 | FY2: =IF(AND($A2<=n,FZ$1<=flips),INT(501*RAND()+1),"") -> 350 | FZ2: =IF(FY2<>"",INDEX($B$2:$B$502,FY2),"") -> 7.767622897 | GA2: =IF(FY2<>"",INDEX($C$2:$C$502,FY2),"") -> 10.42043023 | GB2: =IF(AND($A2<=n,GC$1<=flips),INT(501*RAND()+1),"") -> 344 | GC2: =IF(GB2<>"",INDEX($B$2:$B$502,GB2),"") -> 1.513570813 | GD2: =IF(GB2<>"",INDEX($C$2:$C$502,GB2),"") -> 4.658768124 | GE2: =IF(AND($A2<=n,GF$1<=flips),INT(501*RAND()+1),"") -> 153 | GF2: =IF(GE2<>"",INDEX($B$2:$B$502,GE2),"") -> 3.238454736 | GG2: =IF(GE2<>"",INDEX($C$2:$C$502,GE2),"") -> 4.354441304 | GH2: =IF(AND($A2<=n,GI$1<=flips),INT(501*RAND()+1),"") -> 129 | GI2: =IF(GH2<>"",INDEX($B$2:$B$502,GH2),"") -> 3.40214906 | GJ2: =IF(GH2<>"",INDEX($C$2:$C$502,GH2),"") -> 7.329144141 | GK2: =IF(AND($A2<=n,GL$1<=flips),INT(501*RAND()+1),"") -> 287 | GL2: =IF(GK2<>"",INDEX($B$2:$B$502,GK2),"") -> 7.795973625 | GM2: =IF(GK2<>"",INDEX($C$2:$C$502,GK2),"") -> 11.0065259 | GN2: =IF(AND($A2<=n,GO$1<=flips),INT(501*RAND()+1),"") -> 424 | GO2: =IF(GN2<>"",INDEX($B$2:$B$502,GN2),"") -> 8.071995394 | GP2: =IF(GN2<>"",INDEX($C$2:$C$502,GN2),"") -> 11.1640532 | GQ2: =IF(AND($A2<=n,GR$1<=flips),INT(501*RAND()+1),"") -> 491 | GR2: =IF(GQ2<>"",INDEX($B$2:$B$502,GQ2),"") -> 5.400268075 | GS2: =IF(GQ2<>"",INDEX($C$2:$C$502,GQ2),"") -> 9.32922091 | GT2: =IF(AND($A2<=n,GU$1<=flips),INT(501*RAND()+1),"") -> 187 | GU2: =IF(GT2<>"",INDEX($B$2:$B$502,GT2),"") -> 6.519533522 | GV2: =IF(GT2<>"",INDEX($C$2:$C$502,GT2),"") -> 9.25470835 | GW2: =IF(AND($A2<=n,GX$1<=flips),INT(501*RAND()+1),"") -> 219 | GX2: =IF(GW2<>"",INDEX($B$2:$B$502,GW2),"") -> 1.413592493 | GY2: =IF(GW2<>"",INDEX($C$2:$C$502,GW2),"") -> 3.748166262 | GZ2: =IF(AND($A2<=n,HA$1<=flips),INT(501*RAND()+1),"") -> 142 | HA2: =IF(GZ2<>"",INDEX($B$2:$B$502,GZ2),"") -> 9.911222215 | HB2: =IF(GZ2<>"",INDEX($C$2:$C$502,GZ2),"") -> 14.01070131 | HC2: =IF(AND($A2<=n,HD$1<=flips),INT(501*RAND()+1),"") -> 100 | HD2: =IF(HC2<>"",INDEX($B$2:$B$502,HC2),"") -> 5.163454745 | HE2: =IF(HC2<>"",INDEX($C$2:$C$502,HC2),"") -> 8.387427899 | HF2: =IF(AND($A2<=n,HG$1<=flips),INT(501*RAND()+1),"") -> 71 | HG2: =IF(HF2<>"",INDEX($B$2:$B$502,HF2),"") -> 5.25211799 | HH2: =IF(HF2<>"",INDEX($C$2:$C$502,HF2),"") -> 8.95341605 | HI2: =IF(AND($A2<=n,HJ$1<=flips),INT(501*RAND()+1),"") -> 1 | HJ2: =IF(HI2<>"",INDEX($B$2:$B$502,HI2),"") -> 9.09214193 | HK2: =IF(HI2<>"",INDEX($C$2:$C$502,HI2),"") -> 9.22605615 | HL2: =IF(AND($A2<=n,HM$1<=flips),INT(501*RAND()+1),"") -> 280 | HM2: =IF(HL2<>"",INDEX($B$2:$B$502,HL2),"") -> 4.696012252 | HN2: =IF(HL2<>"",INDEX($C$2:$C$502,HL2),"") -> 6.343121289 | HO2: =IF(AND($A2<=n,HP$1<=flips),INT(501*RAND()+1),"") -> 268 | HP2: =IF(HO2<>"",INDEX($B$2:$B$502,HO2),"") -> 4.805000123 | HQ2: =IF(HO2<>"",INDEX($C$2:$C$502,HO2),"") -> 6.178547716 | HR2: =IF(AND($A2<=n,HS$1<=flips),INT(501*RAND()+1),"") -> 220 | HS2: =IF(HR2<>"",INDEX($B$2:$B$502,HR2),"") -> 4.377394823 | HT2: =IF(HR2<>"",INDEX($C$2:$C$502,HR2),"") -> 7.335011065 | HU2: =IF(AND($A2<=n,HV$1<=flips),INT(501*RAND()+1),"") -> 465 | HV2: =IF(HU2<>"",INDEX($B$2:$B$502,HU2),"") -> 3.941634222 | HW2: =IF(HU2<>"",INDEX($C$2:$C$502,HU2),"") -> 5.536921984 | HX2: =IF(AND($A2<=n,HY$1<=flips),INT(501*RAND()+1),"") -> 130 | HY2: =IF(HX2<>"",INDEX($B$2:$B$502,HX2),"") -> 5.006036796 | HZ2: =IF(HX2<>"",INDEX($C$2:$C$502,HX2),"") -> 5.953308079 | IA2: =IF(AND($A2<=n,IB$1<=flips),INT(501*RAND()+1),"") -> 458 | IB2: =IF(IA2<>"",INDEX($B$2:$B$502,IA2),"") -> 1.35782845 | IC2: =IF(IA2<>"",INDEX($C$2:$C$502,IA2),"") -> 2.537922209 | ID2: =IF(AND($A2<=n,IE$1<=flips),INT(501*RAND()+1),"") -> 71 | IE2: =IF(ID2<>"",INDEX($B$2:$B$502,ID2),"") -> 5.25211799 | IF2: =IF(ID2<>"",INDEX($C$2:$C$502,ID2),"") -> 8.95341605 | IG2: =IF(AND($A2<=n,IH$1<=flips),INT(501*RAND()+1),"") -> 317 | IH2: =IF(IG2<>"",INDEX($B$2:$B$502,IG2),"") -> 4.941073579 | II2: =IF(IG2<>"",INDEX($C$2:$C$502,IG2),"") -> 6.332746976 | IJ2: =IF(AND($A2<=n,IK$1<=flips),INT(501*RAND()+1),"") -> 475 | IK2: =IF(IJ2<>"",INDEX($B$2:$B$502,IJ2),"") -> 7.913844215 | IL2: =IF(IJ2<>"",INDEX($C$2:$C$502,IJ2),"") -> 10.70302079 | IM2: =IF(AND($A2<=n,IN$1<=flips),INT(501*RAND()+1),"") -> 500 | IN2: =IF(IM2<>"",INDEX($B$2:$B$502,IM2),"") -> 3.906187461 | IO2: =IF(IM2<>"",INDEX($C$2:$C$502,IM2),"") -> 5.317612298 | IP2: =IF(AND($A2<=n,IQ$1<=flips),INT(501*RAND()+1),"") -> 185 | IQ2: =IF(IP2<>"",INDEX($B$2:$B$502,IP2),"") -> 8.169997321 | IR2: =IF(IP2<>"",INDEX($C$2:$C$502,IP2),"") -> 11.34178243 | IS2: =IF(AND($A2<=n,IT$1<=flips),INT(501*RAND()+1),"") -> 188 | IT2: =IF(IS2<>"",INDEX($B$2:$B$502,IS2),"") -> 0.09134565558 | IU2: =IF(IS2<>"",INDEX($C$2:$C$502,IS2),"") -> -1.467150419 | IV2: =E54 -> 0.9740984305
A3: 2 | B3: 7.73094449 | C3: 8.6631947 | D3: 229 | E3: =IF(D3<>"",INDEX($B$2:$B$502,D3),"") -> 9.402733103 | F3: =IF(D3<>"",INDEX($C$2:$C$502,D3),"") -> 14.39290875 | G3: 357 | H3: =IF(G3<>"",INDEX($B$2:$B$502,G3),"") -> 6.490032108 | I3: =IF(G3<>"",INDEX($C$2:$C$502,G3),"") -> 13.12021971 | J3: 414 | K3: 2.795053785 | L3: 4.507392892 | M3: 386 | N3: 1.00732757 | O3: 3.048504996 | P3: 138 | Q3: 7.241567808 | R3: 9.575507065 | S3: 366 | T3: 7.6590329 | U3: 9.989380986 | V3: 371 | W3: 6.752381468 | X3: 9.856969303 | Y3: 361 | Z3: 7.710401941 | AA3: 11.23578606 | AB3: 156 | AC3: 7.522274139 | AD3: 10.39817808 | AE3: 326 | AF3: 0.7666741114 | AG3: 2.163013737 | AH3: 462 | AI3: 1.005958156 | AJ3: 0.1279779159 | AK3: 114 | AL3: 1.252853786 | AM3: 1.010064003 | AN3: 455 | AO3: 6.07526398 | AP3: 11.28246175 | AQ3: 342 | AR3: 6.114036448 | AS3: 7.669303551 | AT3: 246 | AU3: 2.596367965 | AV3: 8.656875039 | AW3: 44 | AX3: 2.51870786 | AY3: 3.95381 | AZ3: 357 | BA3: 6.490032108 | BB3: 13.12021971 | BC3: 192 | BD3: 6.637214147 | BE3: 9.03810549 | BF3: 394 | BG3: 3.764890111 | BH3: 7.021718768 | BI3: 46 | BJ3: 6.94092202 | BK3: 6.74365555 | BL3: 170 | BM3: 3.744694891 | BN3: 4.464181774 | BO3: 406 | BP3: 6.117424329 | BQ3: 11.63591888 | BR3: 181 | BS3: 6.289004383 | BT3: 12.75129234 | BU3: 427 | BV3: 6.988534876 | BW3: 9.345507758 | BX3: 204 | BY3: 3.308265585 | BZ3: 6.837932728 | CA3: 129 | CB3: 3.40214906 | CC3: 7.329144141 | CD3: 396 | CE3: 8.227863763 | CF3: 11.78531089 | CG3: 80 | CH3: 8.34654802 | CI3: 10.0915653 | CJ3: 351 | CK3: 7.293595837 | CL3: 9.629381538 | CM3: 172 | CN3: 7.31031285 | CO3: 10.56882332 | CP3: 222 | CQ3: 2.90122966 | CR3: 7.523131809 | CS3: 436 | CT3: 4.08208054 | CU3: 8.754425988 | CV3: 434 | CW3: 3.539981698 | CX3: 4.284114898 | CY3: 303 | CZ3: 8.552884061 | DA3: 11.9354146 | DB3: 186 | DC3: 8.005788583 | DD3: 10.37636983 | DE3: 277 | DF3: 5.220468369 | DG3: 8.113977016 | DH3: 272 | DI3: 2.900179276 | DJ3: 3.381056319 | DK3: 386 | DL3: 1.00732757 | DM3: 3.048504996 | DN3: 310 | DO3: 7.14790739 | DP3: 9.169635587 | DQ3: 267 | DR3: 6.511081731 | DS3: 13.80006018 | DT3: 407 | DU3: 9.457898032 | DV3: 13.16265353 | DW3: 475 | DX3: 7.913844215 | DY3: 10.70302079 | DZ3: 225 | EA3: 4.79274557 | EB3: 7.82741516 | EC3: 237 | ED3: 6.486293915 | EE3: 13.61285379 | EF3: 251 | EG3: 7.658241522 | EH3: 10.14417821 | EI3: 455 | EJ3: 6.07526398 | EK3: 11.28246175 | EL3: 267 | EM3: 6.511081731 | EN3: 13.80006018 | EO3: 84 | EP3: 8.61456682 | EQ3: 11.9266656 | ER3: 501 | ES3: 2.026902879 | ET3: 1.783289167 | EU3: 495 | EV3: 5.667088121 | EW3: 8.747440497 | EX3: 78 | EY3: 5.7589141 | EZ3: 6.31902082 | FA3: 277 | FB3: 5.220468369 | FC3: 8.113977016 | FD3: 339 | FE3: 6.261276544 | FF3: 9.013125262 | FG3: 224 | FH3: 8.850093268 | FI3: 12.1058805 | FJ3: 177 | FK3: 5.367929196 | FL3: 6.510966796 | FM3: 392 | FN3: 7.864227825 | FO3: 10.69512537 | FP3: 331 | FQ3: 1.324308153 | FR3: 1.060296162 | FS3: 216 | FT3: 7.890382852 | FU3: 6.741540801 | FV3: 36 | FW3: 1.66489539 | FX3: 1.82337856 | FY3: 168 | FZ3: 5.71037702 | GA3: 7.239777269 | GB3: 147 | GC3: 5.446111592 | GD3: 7.140385258 | GE3: 92 | GF3: 8.05066739 | GG3: 11.5738894 | GH3: 54 | GI3: 6.4843481 | GJ3: 10.3540317 | GK3: 223 | GL3: 1.467799943 | GM3: 1.327611227 | GN3: 435 | GO3: 3.864226179 | GP3: 9.279665255 | GQ3: 293 | GR3: 1.567534421 | GS3: 1.753396563 | GT3: 461 | GU3: 4.884585275 | GV3: 6.634864362 | GW3: 377 | GX3: 3.040897536 | GY3: 2.660250533 | GZ3: 214 | HA3: 1.69418388 | HB3: 0.8329451764 | HC3: 397 | HD3: 0.06730846132 | HE3: -0.5970273583 | HF3: 50 | HG3: 3.33730571 | HH3: 0.911521898 | HI3: 220 | HJ3: 4.377394823 | HK3: 7.335011065 | HL3: 350 | HM3: 7.767622897 | HN3: 10.42043023 | HO3: 400 | HP3: 1.392814532 | HQ3: 4.642694218 | HR3: 162 | HS3: 1.728656525 | HT3: 1.465485586 | HU3: 366 | HV3: 7.6590329 | HW3: 9.989380986 | HX3: 213 | HY3: 6.698350044 | HZ3: 10.79299441 | IA3: 294 | IB3: 5.35026498 | IC3: 9.399215378 | ID3: 26 | IE3: 8.43104463 | IF3: 11.3286742 | IG3: 233 | IH3: 7.984854235 | II3: 10.79015383 | IJ3: 21 | IK3: 9.6300482 | IL3: 11.9626183 | IM3: 126 | IN3: 8.834973268 | IO3: 11.91770108 | IP3: 379 | IQ3: 2.483427613 | IR3: 4.839969022 | IS3: 59 | IT3: 0.119493964 | IU3: -4.58243463 | IV3: =H54 -> 0.9347627069
A4: 3 | B4: 7.96784314 | C4: 7.84023659 | D4: 257 | E4: 0.04867114321 | F4: 0.356675773 | G4: 301 | H4: 1.488031961 | I4: 1.081609244 | J4: 402 | K4: 0.6384557254 | L4: -0.5952878399 | M4: 438 | N4: 4.32155824 | O4: 5.55616181 | P4: 363 | Q4: 8.890395843 | R4: 12.04287797 | S4: 296 | T4: 8.233341992 | U4: 13.71682407 | V4: 363 | W4: 8.890395843 | X4: 12.04287797 | Y4: 360 | Z4: 4.894750061 | AA4: 7.704533946 | AB4: 19 | AC4: 5.95518034 | AD4: 4.7732746 | AE4: 472 | AF4: 1.423333408 | AG4: 0.4477294041 | AH4: 27 | AI4: 6.06165876 | AJ4: 5.55362394 | AK4: 465 | AL4: 3.941634222 | AM4: 5.536921984 | AN4: 196 | AO4: 0.7680377099 | AP4: -0.1752951546 | AQ4: 112 | AR4: 4.329394739 | AS4: 5.482066263 | AT4: 135 | AU4: 1.144664187 | AV4: 3.169718417 | AW4: 334 | AX4: 0.1426316555 | AY4: -0.7878630769 | AZ4: 398 | BA4: 5.964057635 | BB4: 7.386417809 | BC4: 4 | BD4: 6.21715943 | BE4: 9.71304483 | BF4: 130 | BG4: 5.006036796 | BH4: 5.953308079 | BI4: 155 | BJ4: 4.825641159 | BK4: 6.160031288 | BL4: 479 | BM4: 8.46281105 | BN4: 9.640987524 | BO4: 331 | BP4: 1.324308153 | BQ4: 1.060296162 | BR4: 402 | BS4: 0.6384557254 | BT4: -0.5952878399 | BU4: 23 | BV4: 4.51350669 | BW4: 4.25871039 | BX4: 448 | BY4: 4.993158858 | BZ4: 7.267460034 | CA4: 316 | CB4: 8.14110643 | CC4: 13.61048011 | CD4: 210 | CE4: 9.490853698 | CF4: 13.20251609 | CG4: 27 | CH4: 6.06165876 | CI4: 5.55362394 | CJ4: 170 | CK4: 3.744694891 | CL4: 4.464181774 | CM4: 327 | CN4: 9.039115292 | CO4: 12.35758991 | CP4: 287 | CQ4: 7.795973625 | CR4: 11.0065259 | CS4: 407 | CT4: 9.457898032 | CU4: 13.16265353 | CV4: 479 | CW4: 8.46281105 | CX4: 9.640987524 | CY4: 100 | CZ4: 5.163454745 | DA4: 8.387427899 | DB4: 73 | DC4: 6.30581833 | DD4: 5.82147702 | DE4: 3 | DF4: 7.96784314 | DG4: 7.84023659 | DH4: 209 | DI4: 5.442971283 | DJ4: 7.625845857 | DK4: 429 | DL4: 0.8415084968 | DM4: 1.046254156 | DN4: 128 | DO4: 9.117770126 | DP4: 11.88939036 | DQ4: 454 | DR4: 5.977813993 | DS4: 8.931188696 | DT4: 42 | DU4: 7.55933738 | DV4: 12.6835751 | DW4: 478 | DX4: 0.4187276272 | DY4: -0.6333903862 | DZ4: 45 | EA4: 9.37237474 | EB4: 9.61764637 | EC4: 370 | ED4: 4.421525079 | EE4: 10.52706806 | EF4: 20 | EG4: 8.97702256 | EH4: 12.3319163 | EI4: 381 | EJ4: 9.131934317 | EK4: 12.55291319 | EL4: 158 | EM4: 6.576493163 | EN4: 13.21882269 | EO4: 182 | EP4: 1.308641244 | EQ4: 3.608110363 | ER4: 158 | ES4: 6.576493163 | ET4: 13.21882269 | EU4: 108 | EV4: 6.002723661 | EW4: 7.872636575 | EX4: 347 | EY4: 6.324796 | EZ4: 7.868572822 | FA4: 425 | FB4: 1.807086452 | FC4: 1.741611039 | FD4: 284 | FE4: 7.818623012 | FF4: 14.28801044 | FG4: 388 | FH4: 3.013659549 | FI4: 2.853138418 | FJ4: 3 | FK4: 7.96784314 | FL4: 7.84023659 | FM4: 202 | FN4: 6.99696996 | FO4: 8.805367962 | FP4: 152 | FQ4: 6.920232629 | FR4: 8.974504092 | FS4: 22 | FT4: 8.10172595 | FU4: 12.6793998 | FV4: 20 | FW4: 8.97702256 | FX4: 12.3319163 | FY4: 98 | FZ4: 4.41793735 | GA4: 3.44458382 | GB4: 12 | GC4: 9.19486152 | GD4: 11.0320721 | GE4: 82 | GF4: 5.18564613 | GG4: 7.96590089 | GH4: 306 | GI4: 0.9621403479 | GJ4: 0.8049534493 | GK4: 492 | GL4: 6.532434169 | GM4: 13.28559818 | GN4: 382 | GO4: 3.940599549 | GP4: 6.604869359 | GQ4: 265 | GR4: 0.3652262438 | GS4: -0.1992222761 | GT4: 174 | GU4: 6.322354733 | GV4: 8.213277336 | GW4: 40 | GX4: 8.07864525 | GY4: 8.03795487 | GZ4: 493 | HA4: 2.497687815 | HB4: 2.851170853 | HC4: 58 | HD4: 5.9462981 | HE4: 9.71863808 | HF4: 173 | HG4: 4.28562054 | HH4: 5.710111432 | HI4: 312 | HJ4: 5.41607617 | HK4: 7.098110858 | HL4: 126 | HM4: 8.834973268 | HN4: 11.91770108 | HO4: 86 | HP4: 1.25997063 | HQ4: 0.880998895 | HR4: 95 | HS4: 7.44459369 | HT4: 10.1652119 | HU4: 259 | HV4: 6.523956287 | HW4: 8.547004043 | HX4: 365 | HY4: 8.87820011 | HZ4: 12.34900153 | IA4: 231 | IB4: 6.589376396 | IC4: 8.971115924 | ID4: 412 | IE4: 7.832014881 | IF4: 14.43572556 | IG4: 185 | IH4: 8.169997321 | II4: 11.34178243 | IJ4: 31 | IK4: 5.68477606 | IL4: 4.15507128 | IM4: 292 | IN4: 3.061066028 | IO4: 8.188867168 | IP4: 224 | IQ4: 8.850093268 | IR4: 12.1058805 | IS4: 134 | IT4: 9.150091434 | IU4: 14.55331338 | IV4: =K54 -> 0.9546787256
A5: 4 | B5: 6.21715943 | C5: 9.71304483 | D5: 383 | E5: 3.777211505 | F5: 4.817224966 | G5: 67 | H5: 8.53363023 | I5: 11.8219133 | J5: 302 | K5: 1.759983121 | L5: 1.590951122 | M5: 224 | N5: 8.850093268 | O5: 12.1058805 | P5: 65 | Q5: 2.17258428 | R5: -0.318387121 | S5: 370 | T5: 4.421525079 | U5: 10.52706806 | V5: 377 | W5: 3.040897536 | X5: 2.660250533 | Y5: 37 | Z5: 3.92028448 | AA5: 2.04055271 | AB5: 437 | AC5: 5.393602692 | AD5: 7.52693078 | AE5: 183 | AF5: 2.321756073 | AG5: 2.924827135 | AH5: 390 | AI5: 9.474642267 | AJ5: 13.83094599 | AK5: 49 | AL5: 1.22022199 | AM5: -2.85875217 | AN5: 421 | AO5: 0.5466026595 | AP5: -0.1865322591 | AQ5: 238 | AR5: 8.978948917 | AS5: 14.5718286 | AT5: 143 | AU5: 3.129816222 | AV5: 4.067824527 | AW5: 166 | AX5: 8.690891498 | AY5: 15.60378946 | AZ5: 101 | BA5: 5.445845676 | BB5: 6.668110029 | BC5: 266 | BD5: 7.216192691 | BE5: 9.885922997 | BF5: 51 | BG5: 9.91048198 | BH5: 11.89212396 | BI5: 132 | BJ5: 2.365753917 | BK5: 1.900883604 | BL5: 328 | BM5: 2.043848608 | BN5: 1.771787991 | BO5: 147 | BP5: 5.446111592 | BQ5: 7.140385258 | BR5: 43 | BS5: 5.13345519 | BT5: 8.29723619 | BU5: 39 | BV5: 2.77939124 | BW5: 5.31050283 | BX5: 288 | BY5: 3.67873895 | BZ5: 5.422914189 | CA5: 354 | CB5: 1.47035973 | CC5: 0.771101292 | CD5: 155 | CE5: 4.825641159 | CF5: 6.160031288 | CG5: 193 | CH5: 7.323838368 | CI5: 9.848668602 | CJ5: 472 | CK5: 1.423333408 | CL5: 0.4477294041 | CM5: 89 | CN5: 2.35202778 | CO5: -0.517630912 | CP5: 239 | CQ5: 1.687141981 | CR5: 2.169797273 | CS5: 356 | CT5: 1.49331766 | CU5: 2.1275884 | CV5: 175 | CW5: 2.231528297 | CX5: 2.404254766 | CY5: 49 | CZ5: 1.22022199 | DA5: -2.85875217 | DB5: 111 | DC5: 3.85638947 | DD5: 4.92575438 | DE5: 52 | DF5: 8.42129982 | DG5: 10.24603712 | DH5: 257 | DI5: 0.04867114321 | DJ5: 0.356675773 | DK5: 171 | DL5: 8.778074625 | DM5: 13.50642065 | DN5: 159 | DO5: 7.14326188 | DP5: 9.249714156 | DQ5: 420 | DR5: 6.569000717 | DS5: 8.167703691 | DT5: 423 | DU5: 4.749420422 | DV5: 6.856950393 | DW5: 253 | DX5: 2.727046859 | DY5: 1.182870083 | DZ5: 107 | EA5: 1.14052562 | EB5: 1.012054609 | EC5: 430 | ED5: 4.023100064 | EE5: 4.593234866 | EF5: 457 | EG5: 7.717987014 | EH5: 10.45831336 | EI5: 179 | EJ5: 0.03264896274 | EK5: 0.141121088 | EL5: 322 | EM5: 0.1510361956 | EN5: 0.7485558619 | EO5: 213 | EP5: 6.698350044 | EQ5: 10.79299441 | ER5: 90 | ES5: 6.60656315 | ET5: 9.51956445 | EU5: 33 | EV5: 2.44821177 | EW5: -1.09291696 | EX5: 420 | EY5: 6.569000717 | EZ5: 8.167703691 | FA5: 49 | FB5: 1.22022199 | FC5: -2.85875217 | FD5: 325 | FE5: 5.172426329 | FF5: 6.22184678 | FG5: 332 | FH5: 0.6180184208 | FI5: 1.242401963 | FJ5: 91 | FK5: 4.4224596 | FL5: 7.08149033 | FM5: 293 | FN5: 1.567534421 | FO5: 1.753396563 | FP5: 163 | FQ5: 5.493235531 | FR5: 8.865620796 | FS5: 272 | FT5: 2.900179276 | FU5: 3.381056319 | FV5: 144 | FW5: 6.618233798 | FX5: 10.93446982 | FY5: 68 | FZ5: 4.59207945 | GA5: 2.43433646 | GB5: 107 | GC5: 1.14052562 | GD5: 1.012054609 | GE5: 192 | GF5: 6.637214147 | GG5: 9.03810549 | GH5: 454 | GI5: 5.977813993 | GJ5: 8.931188696 | GK5: 406 | GL5: 6.117424329 | GM5: 11.63591888 | GN5: 16 | GO5: 1.20622191 | GP5: -1.56819643 | GQ5: 133 | GR5: 2.683019603 | GS5: 3.038998418 | GT5: 373 | GU5: 7.459185446 | GV5: 10.32061623 | GW5: 370 | GX5: 4.421525079 | GY5: 10.52706806 | GZ5: 330 | HA5: 2.837752764 | HB5: 3.333338781 | HC5: 394 | HD5: 3.764890111 | HE5: 7.021718768 | HF5: 134 | HG5: 9.150091434 | HH5: 14.55331338 | HI5: 79 | HJ5: 1.39826337 | HK5: 1.12138749 | HL5: 347 | HM5: 6.324796 | HN5: 7.868572822 | HO5: 365 | HP5: 8.87820011 | HQ5: 12.34900153 | HR5: 246 | HS5: 2.596367965 | HT5: 8.656875039 | HU5: 246 | HV5: 2.596367965 | HW5: 8.656875039 | HX5: 1 | HY5: 9.09214193 | HZ5: 9.22605615 | IA5: 339 | IB5: 6.261276544 | IC5: 9.013125262 | ID5: 286 | IE5: 0.1544658321 | IF5: -0.8391181197 | IG5: 325 | IH5: 5.172426329 | II5: 6.22184678 | IJ5: 21 | IK5: 9.6300482 | IL5: 11.9626183 | IM5: 425 | IN5: 1.807086452 | IO5: 1.741611039 | IP5: 490 | IQ5: 0.7545066176 | IR5: -0.1220050074 | IS5: 328 | IT5: 2.043848608 | IU5: 1.771787991 | IV5: =N54 -> 0.9159053297
A6: 5 | B6: 7.80181084 | C6: 8.84088725 | D6: 332 | E6: 0.6180184208 | F6: 1.242401963 | G6: 373 | H6: 7.459185446 | I6: 10.32061623 | J6: 59 | K6: 0.119493964 | L6: -4.58243463 | M6: 451 | N6: 9.655504893 | O6: 13.60299673 | P6: 442 | Q6: 2.595642529 | R6: 2.780463014 | S6: 10 | T6: 4.30812811 | U6: 4.96796458 | V6: 324 | W6: 4.355816874 | X6: 7.801517983 | Y6: 186 | Z6: 8.005788583 | AA6: 10.37636983 | AB6: 135 | AC6: 1.144664187 | AD6: 3.169718417 | AE6: 209 | AF6: 5.442971283 | AG6: 7.625845857 | AH6: 262 | AI6: 1.831443435 | AJ6: 1.904713148 | AK6: 26 | AL6: 8.43104463 | AM6: 11.3286742 | AN6: 72 | AO6: 8.44975986 | AP6: 10.1485986 | AQ6: 140 | AR6: 0.7627152342 | AS6: 0.2338329209 | AT6: 253 | AU6: 2.727046859 | AV6: 1.182870083 | AW6: 268 | AX6: 4.805000123 | AY6: 6.178547716 | AZ6: 82 | BA6: 5.18564613 | BB6: 7.96590089 | BC6: 301 | BD6: 1.488031961 | BE6: 1.081609244 | BF6: 464 | BG6: 1.458109682 | BH6: 0.6503997955 | BI6: 272 | BJ6: 2.900179276 | BK6: 3.381056319 | BL6: 211 | BM6: 4.968910103 | BN6: 6.516151621 | BO6: 196 | BP6: 0.7680377099 | BQ6: -0.1752951546 | BR6: 482 | BS6: 5.814914671 | BT6: 7.78950537 | BU6: 208 | BV6: 1.505178803 | BW6: 4.963805751 | BX6: 441 | BY6: 9.354878443 | BZ6: 16.68950893 | CA6: 46 | CB6: 6.94092202 | CC6: 6.74365555 | CD6: 477 | CE6: 3.158842985 | CF6: 4.968486672 | CG6: 366 | CH6: 7.6590329 | CI6: 9.989380986 | CJ6: 95 | CK6: 7.44459369 | CL6: 10.1652119 | CM6: 418 | CN6: 9.610171677 | CO6: 14.48852042 | CP6: 271 | CQ6: 9.500293657 | CR6: 15.38973158 | CS6: 12 | CT6: 9.19486152 | CU6: 11.0320721 | CV6: 200 | CW6: 4.007136933 | CX6: 5.814902586 | CY6: 275 | CZ6: 7.337435299 | DA6: 9.574814402 | DB6: 349 | DC6: 4.99668919 | DD6: 6.064861197 | DE6: 11 | DF6: 0.983887791 | DG6: -0.190496477 | DH6: 270 | DI6: 4.892477198 | DJ6: 9.449142022 | DK6: 147 | DL6: 5.446111592 | DM6: 7.140385258 | DN6: 181 | DO6: 6.289004383 | DP6: 12.75129234 | DQ6: 472 | DR6: 1.423333408 | DS6: 0.4477294041 | DT6: 451 | DU6: 9.655504893 | DV6: 13.60299673 | DW6: 162 | DX6: 1.728656525 | DY6: 1.465485586 | DZ6: 449 | EA6: 4.350642998 | EB6: 5.655058357 | EC6: 438 | ED6: 4.32155824 | EE6: 5.55616181 | EF6: 409 | EG6: 9.850359682 | EH6: 13.65602827 | EI6: 406 | EJ6: 6.117424329 | EK6: 11.63591888 | EL6: 210 | EM6: 9.490853698 | EN6: 13.20251609 | EO6: 9 | EP6: 4.55813861 | EQ6: 7.46997257 | ER6: 483 | ES6: 9.73870308 | ET6: 13.47678108 | EU6: 435 | EV6: 3.864226179 | EW6: 9.279665255 | EX6: 96 | EY6: 4.82454293 | EZ6: 3.85889457 | FA6: 42 | FB6: 7.55933738 | FC6: 12.6835751 | FD6: 352 | FE6: 3.254234685 | FF6: 3.92834473 | FG6: 44 | FH6: 2.51870786 | FI6: 3.95381 | FJ6: 258 | FK6: 1.239488249 | FL6: 0.733556646 | FM6: 149 | FN6: 8.090021663 | FO6: 10.60334957 | FP6: 407 | FQ6: 9.457898032 | FR6: 13.16265353 | FS6: 421 | FT6: 0.5466026595 | FU6: -0.1865322591 | FV6: 370 | FW6: 4.421525079 | FX6: 10.52706806 | FY6: 145 | FZ6: 0.8525446832 | GA6: 2.999647937 | GB6: 225 | GC6: 4.79274557 | GD6: 7.82741516 | GE6: 486 | GF6: 6.56941847 | GG6: 13.47234969 | GH6: 97 | GI6: 5.57222481 | GJ6: 7.54623243 | GK6: 170 | GL6: 3.744694891 | GM6: 4.464181774 | GN6: 464 | GO6: 1.458109682 | GP6: 0.6503997955 | GQ6: 48 | GR6: 1.16874791 | GS6: -3.10672775 | GT6: 48 | GU6: 1.16874791 | GV6: -3.10672775 | GW6: 407 | GX6: 9.457898032 | GY6: 13.16265353 | GZ6: 128 | HA6: 9.117770126 | HB6: 11.88939036 | HC6: 317 | HD6: 4.941073579 | HE6: 6.332746976 | HF6: 26 | HG6: 8.43104463 | HH6: 11.3286742 | HI6: 345 | HJ6: 7.107225212 | HK6: 9.733400637 | HL6: 339 | HM6: 6.261276544 | HN6: 9.013125262 | HO6: 490 | HP6: 0.7545066176 | HQ6: -0.1220050074 | HR6: 426 | HS6: 4.53261845 | HT6: 7.265817564 | HU6: 131 | HV6: 6.886491299 | HW6: 9.410603282 | HX6: 190 | HY6: 3.609999136 | HZ6: 5.909913366 | IA6: 29 | IB6: 4.60908685 | IC6: 2.60411558 | ID6: 341 | IE6: 9.976123292 | IF6: 13.98057436 | IG6: 47 | IH6: 3.47347018 | II6: 0.356953922 | IJ6: 290 | IK6: 3.582628109 | IL6: 4.30831353 | IM6: 169 | IN6: 7.858001029 | IO6: 12.82808101 | IP6: 188 | IQ6: 0.09134565558 | IR6: -1.467150419 | IS6: 364 | IT6: 2.674927642 | IU6: 4.836107233 | IV6: =Q54 -> 0.9700149667
A7: 6 | B7: 9.53953478 | C7: 13.2443258 | D7: 266 | E7: 7.216192691 | F7: 9.885922997 | G7: 276 | H7: 4.038188423 | I7: 5.385728429 | J7: 108 | K7: 6.002723661 | L7: 7.872636575 | M7: 374 | N7: 7.957446025 | O7: 16.22207536 | P7: 39 | Q7: 2.77939124 | R7: 5.31050283 | S7: 348 | T7: 6.227747289 | U7: 7.935555211 | V7: 282 | W7: 7.39346008 | X7: 12.65488959 | Y7: 425 | Z7: 1.807086452 | AA7: 1.741611039 | AB7: 19 | AC7: 5.95518034 | AD7: 4.7732746 | AE7: 332 | AF7: 0.6180184208 | AG7: 1.242401963 | AH7: 294 | AI7: 5.35026498 | AJ7: 9.399215378 | AK7: 288 | AL7: 3.67873895 | AM7: 5.422914189 | AN7: 315 | AO7: 8.93552466 | AP7: 15.39354821 | AQ7: 139 | AR7: 3.54670902 | AS7: 8.890824402 | AT7: 430 | AU7: 4.023100064 | AV7: 4.593234866 | AW7: 489 | AX7: 2.356217366 | AY7: 3.386803926 | AZ7: 251 | BA7: 7.658241522 | BB7: 10.14417821 | BC7: 300 | BD7: 6.952560467 | BE7: 8.837411445 | BF7: 388 | BG7: 3.013659549 | BH7: 2.853138418 | BI7: 462 | BJ7: 1.005958156 | BK7: 0.1279779159 | BL7: 170 | BM7: 3.744694891 | BN7: 4.464181774 | BO7: 438 | BP7: 4.32155824 | BQ7: 5.55616181 | BR7: 123 | BS7: 8.35537869 | BT7: 12.24402141 | BU7: 155 | BV7: 4.825641159 | BW7: 6.160031288 | BX7: 274 | BY7: 3.026255872 | BZ7: 9.169401729 | CA7: 281 | CB7: 1.477663452 | CC7: 3.051087067 | CD7: 393 | CE7: 1.855486528 | CF7: 1.822264596 | CG7: 341 | CH7: 9.976123292 | CI7: 13.98057436 | CJ7: 456 | CK7: 9.057933881 | CL7: 14.24205924 | CM7: 22 | CN7: 8.10172595 | CO7: 12.6793998 | CP7: 268 | CQ7: 4.805000123 | CR7: 6.178547716 | CS7: 485 | CT7: 2.879562454 | CU7: 5.363452296 | CV7: 286 | CW7: 0.1544658321 | CX7: -0.8391181197 | CY7: 431 | CZ7: 0.1273226373 | DA7: -1.660518432 | DB7: 32 | DC7: 4.66966127 | DD7: 5.38860315 | DE7: 199 | DF7: 1.695444701 | DG7: 1.766260807 | DH7: 483 | DI7: 9.73870308 | DJ7: 13.47678108 | DK7: 262 | DL7: 1.831443435 | DM7: 1.904713148 | DN7: 116 | DO7: 5.325049375 | DP7: 11.29006282 | DQ7: 40 | DR7: 8.07864525 | DS7: 8.03795487 | DT7: 171 | DU7: 8.778074625 | DV7: 13.50642065 | DW7: 36 | DX7: 1.66489539 | DY7: 1.82337856 | DZ7: 221 | EA7: 4.243818768 | EB7: 6.283891218 | EC7: 444 | ED7: 4.582912705 | EE7: 9.718836 | EF7: 26 | EG7: 8.43104463 | EH7: 11.3286742 | EI7: 194 | EJ7: 3.618389603 | EK7: 4.39875626 | EL7: 114 | EM7: 1.252853786 | EN7: 1.010064003 | EO7: 289 | EP7: 9.155854659 | EQ7: 13.34545517 | ER7: 167 | ES7: 5.694993418 | ET7: 7.587259181 | EU7: 368 | EV7: 4.420517322 | EW7: 5.404310704 | EX7: 75 | EY7: 4.48220544 | EZ7: 4.67629661 | FA7: 369 | FB7: 6.965849474 | FC7: 9.498295911 | FD7: 248 | FE7: 3.941254589 | FF7: 6.282762401 | FG7: 164 | FH7: 9.965606271 | FI7: 13.99774901 | FJ7: 172 | FK7: 7.31031285 | FL7: 10.56882332 | FM7: 26 | FN7: 8.43104463 | FO7: 11.3286742 | FP7: 63 | FQ7: 5.24469467 | FR7: 7.8713711 | FS7: 135 | FT7: 1.144664187 | FU7: 3.169718417 | FV7: 80 | FW7: 8.34654802 | FX7: 10.0915653 | FY7: 446 | FZ7: 1.765411358 | GA7: 2.141253773 | GB7: 256 | GC7: 0.06050357581 | GD7: -0.8821582164 | GE7: 263 | GF7: 6.577134574 | GG7: 10.12972695 | GH7: 360 | GI7: 4.894750061 | GJ7: 7.704533946 | GK7: 77 | GL7: 2.62332655 | GM7: 4.44153764 | GN7: 147 | GO7: 5.446111592 | GP7: 7.140385258 | GQ7: 281 | GR7: 1.477663452 | GS7: 3.051087067 | GT7: 41 | GU7: 2.3735837 | GV7: -1.59270459 | GW7: 175 | GX7: 2.231528297 | GY7: 2.404254766 | GZ7: 265 | HA7: 0.3652262438 | HB7: -0.1992222761 | HC7: 213 | HD7: 6.698350044 | HE7: 10.79299441 | HF7: 194 | HG7: 3.618389603 | HH7: 4.39875626 | HI7: 41 | HJ7: 2.3735837 | HK7: -1.59270459 | HL7: 376 | HM7: 0.4650527462 | HN7: -0.2259309196 | HO7: 434 | HP7: 3.539981698 | HQ7: 4.284114898 | HR7: 155 | HS7: 4.825641159 | HT7: 6.160031288 | HU7: 285 | HV7: 6.662071448 | HW7: 9.632167559 | HX7: 487 | HY7: 6.039849047 | HZ7: 8.001931175 | IA7: 259 | IB7: 6.523956287 | IC7: 8.547004043 | ID7: 421 | IE7: 0.5466026595 | IF7: -0.1865322591 | IG7: 445 | IH7: 6.911595518 | II7: 9.498922387 | IJ7: 40 | IK7: 8.07864525 | IL7: 8.03795487 | IM7: 17 | IN7: 2.13610764 | IO7: 4.70049726 | IP7: 107 | IQ7: 1.14052562 | IR7: 1.012054609 | IS7: 396 | IT7: 8.227863763 | IU7: 11.78531089 | IV7: =T54 -> 0.9265366343
A8: 7 | B8: 5.57186894 | C8: 3.42029568 | D8: 386 | E8: 1.00732757 | F8: 3.048504996 | G8: 289 | H8: 9.155854659 | I8: 13.34545517 | J8: 348 | K8: 6.227747289 | L8: 7.935555211 | M8: 375 | N8: 4.391145188 | O8: 5.019223424 | P8: 377 | Q8: 3.040897536 | R8: 2.660250533 | S8: 303 | T8: 8.552884061 | U8: 11.9354146 | V8: 216 | W8: 7.890382852 | X8: 6.741540801 | Y8: 407 | Z8: 9.457898032 | AA8: 13.16265353 | AB8: 260 | AC8: 0.7940843459 | AD8: 0.1172914201 | AE8: 212 | AF8: 5.365483177 | AG8: 6.462492919 | AH8: 366 | AI8: 7.6590329 | AJ8: 9.989380986 | AK8: 82 | AL8: 5.18564613 | AM8: 7.96590089 | AN8: 45 | AO8: 9.37237474 | AP8: 9.61764637 | AQ8: 193 | AR8: 7.323838368 | AS8: 9.848668602 | AT8: 216 | AU8: 7.890382852 | AV8: 6.741540801 | AW8: 302 | AX8: 1.759983121 | AY8: 1.590951122 | AZ8: 129 | BA8: 3.40214906 | BB8: 7.329144141 | BC8: 222 | BD8: 2.90122966 | BE8: 7.523131809 | BF8: 429 | BG8: 0.8415084968 | BH8: 1.046254156 | BI8: 229 | BJ8: 9.402733103 | BK8: 14.39290875 | BL8: 484 | BM8: 4.004509415 | BN8: 5.725778105 | BO8: 43 | BP8: 5.13345519 | BQ8: 8.29723619 | BR8: 180 | BS8: 3.121413244 | BT8: 3.831618274 | BU8: 343 | BV8: 5.150367068 | BW8: 6.738228967 | BX8: 368 | BY8: 4.420517322 | BZ8: 5.404310704 | CA8: 189 | CB8: 1.10180771 | CC8: 0.4625460936 | CD8: 341 | CE8: 9.976123292 | CF8: 13.98057436 | CG8: 377 | CH8: 3.040897536 | CI8: 2.660250533 | CJ8: 178 | CK8: 7.251810584 | CL8: 11.87564702 | CM8: 89 | CN8: 2.35202778 | CO8: -0.517630912 | CP8: 78 | CQ8: 5.7589141 | CR8: 6.31902082 | CS8: 104 | CT8: 2.796236799 | CU8: 3.829449248 | CV8: 295 | CW8: 5.360451804 | CX8: 8.172456847 | CY8: 213 | CZ8: 6.698350044 | DA8: 10.79299441 | DB8: 12 | DC8: 9.19486152 | DD8: 11.0320721 | DE8: 159 | DF8: 7.14326188 | DG8: 9.249714156 | DH8: 297 | DI8: 4.810584176 | DJ8: 5.7242914 | DK8: 132 | DL8: 2.365753917 | DM8: 1.900883604 | DN8: 112 | DO8: 4.329394739 | DP8: 5.482066263 | DQ8: 424 | DR8: 8.071995394 | DS8: 11.1640532 | DT8: 277 | DU8: 5.220468369 | DV8: 8.113977016 | DW8: 51 | DX8: 9.91048198 | DY8: 11.89212396 | DZ8: 422 | EA8: 8.900442608 | EB8: 12.35432215 | EC8: 323 | ED8: 6.840311799 | EE8: 8.832776868 | EF8: 225 | EG8: 4.79274557 | EH8: 7.82741516 | EI8: 40 | EJ8: 8.07864525 | EK8: 8.03795487 | EL8: 489 | EM8: 2.356217366 | EN8: 3.386803926 | EO8: 261 | EP8: 9.007457762 | EQ8: 13.25375122 | ER8: 55 | ES8: 9.14722657 | ET8: 9.71488637 | EU8: 381 | EV8: 9.131934317 | EW8: 12.55291319 | EX8: 155 | EY8: 4.825641159 | EZ8: 6.160031288 | FA8: 28 | FB8: 4.49460797 | FC8: 7.05270137 | FD8: 133 | FE8: 2.683019603 | FF8: 3.038998418 | FG8: 392 | FH8: 7.864227825 | FI8: 10.69512537 | FJ8: 346 | FK8: 1.191561255 | FL8: 2.269256354 | FM8: 35 | FN8: 1.7000925 | FO8: -2.08932327 | FP8: 345 | FQ8: 7.107225212 | FR8: 9.733400637 | FS8: 459 | FT8: 3.606810594 | FU8: 4.098366811 | FV8: 209 | FW8: 5.442971283 | FX8: 7.625845857 | FY8: 426 | FZ8: 4.53261845 | GA8: 7.265817564 | GB8: 254 | GC8: 1.141944231 | GD8: 1.574278353 | GE8: 273 | GF8: 1.881556294 | GG8: 1.750412101 | GH8: 254 | GI8: 1.141944231 | GJ8: 1.574278353 | GK8: 325 | GL8: 5.172426329 | GM8: 6.22184678 | GN8: 253 | GO8: 2.727046859 | GP8: 1.182870083 | GQ8: 283 | GR8: 6.18427252 | GS8: 7.808466477 | GT8: 29 | GU8: 4.60908685 | GV8: 2.60411558 | GW8: 131 | GX8: 6.886491299 | GY8: 9.410603282 | GZ8: 100 | HA8: 5.163454745 | HB8: 8.387427899 | HC8: 11 | HD8: 0.983887791 | HE8: -0.190496477 | HF8: 364 | HG8: 2.674927642 | HH8: 4.836107233 | HI8: 67 | HJ8: 8.53363023 | HK8: 11.8219133 | HL8: 31 | HM8: 5.68477606 | HN8: 4.15507128 | HO8: 36 | HP8: 1.66489539 | HQ8: 1.82337856 | HR8: 382 | HS8: 3.940599549 | HT8: 6.604869359 | HU8: 269 | HV8: 3.666581662 | HW8: 5.385328591 | HX8: 363 | HY8: 8.890395843 | HZ8: 12.04287797 | IA8: 465 | IB8: 3.941634222 | IC8: 5.536921984 | ID8: 213 | IE8: 6.698350044 | IF8: 10.79299441 | IG8: 150 | IH8: 6.823624893 | II8: 12.35404068 | IJ8: 134 | IK8: 9.150091434 | IL8: 14.55331338 | IM8: 115 | IN8: 5.792104739 | IO8: 6.937223923 | IP8: 468 | IQ8: 2.121102409 | IR8: 2.60679253 | IS8: 431 | IT8: 0.1273226373 | IU8: -1.660518432 | IV8: =W54 -> 0.9165434859
A9: 8 | B9: 2.1716921 | C9: 4.08450283 | D9: 397 | E9: 0.06730846132 | F9: -0.5970273583 | G9: 466 | H9: 2.272121236 | I9: 2.41393604 | J9: 267 | K9: 6.511081731 | L9: 13.80006018 | M9: 286 | N9: 0.1544658321 | O9: -0.8391181197 | P9: 363 | Q9: 8.890395843 | R9: 12.04287797 | S9: 441 | T9: 9.354878443 | U9: 16.68950893 | V9: 485 | W9: 2.879562454 | X9: 5.363452296 | Y9: 311 | Z9: 9.873277629 | AA9: 13.3993579 | AB9: 351 | AC9: 7.293595837 | AD9: 9.629381538 | AE9: 460 | AF9: 5.371909194 | AG9: 7.132566327 | AH9: 417 | AI9: 7.338660302 | AJ9: 15.29587208 | AK9: 258 | AL9: 1.239488249 | AM9: 0.733556646 | AN9: 408 | AO9: 4.568184901 | AP9: 5.960812926 | AQ9: 110 | AR9: 2.589965259 | AS9: 2.941322045 | AT9: 4 | AU9: 6.21715943 | AV9: 9.71304483 | AW9: 300 | AX9: 6.952560467 | AY9: 8.837411445 | AZ9: 421 | BA9: 0.5466026595 | BB9: -0.1865322591 | BC9: 62 | BD9: 6.53330364 | BE9: 9.85792786 | BF9: 19 | BG9: 5.95518034 | BH9: 4.7732746 | BI9: 249 | BJ9: 9.80191764 | BK9: 16.65592597 | BL9: 126 | BM9: 8.834973268 | BN9: 11.91770108 | BO9: 65 | BP9: 2.17258428 | BQ9: -0.318387121 | BR9: 131 | BS9: 6.886491299 | BT9: 9.410603282 | BU9: 18 | BV9: 6.2052832 | BW9: 8.9630256 | BX9: 361 | BY9: 7.710401941 | BZ9: 11.23578606 | CA9: 328 | CB9: 2.043848608 | CC9: 1.771787991 | CD9: 122 | CE9: 7.182313271 | CF9: 9.864613996 | CG9: 402 | CH9: 0.6384557254 | CI9: -0.5952878399 | CJ9: 470 | CK9: 3.253489636 | CL9: 3.282505817 | CM9: 330 | CN9: 2.837752764 | CO9: 3.333338781 | CP9: 217 | CQ9: 8.773797216 | CR9: 11.90187657 | CS9: 184 | CT9: 0.1414582344 | CU9: -0.8367194623 | CV9: 166 | CW9: 8.690891498 | CX9: 15.60378946 | CY9: 146 | CZ9: 8.091907966 | DA9: 12.02246854 | DB9: 5 | DC9: 7.80181084 | DD9: 8.84088725 | DE9: 412 | DF9: 7.832014881 | DG9: 14.43572556 | DH9: 91 | DI9: 4.4224596 | DJ9: 7.08149033 | DK9: 343 | DL9: 5.150367068 | DM9: 6.738228967 | DN9: 393 | DO9: 1.855486528 | DP9: 1.822264596 | DQ9: 69 | DR9: 9.3413851 | DS9: 14.2098571 | DT9: 193 | DU9: 7.323838368 | DV9: 9.848668602 | DW9: 243 | DX9: 7.372356743 | DY9: 14.15401139 | DZ9: 83 | EA9: 2.31240365 | EB9: 2.11440066 | EC9: 66 | ED9: 1.1164724 | EE9: -0.078287546 | EF9: 173 | EG9: 4.28562054 | EH9: 5.710111432 | EI9: 404 | EJ9: 6.686552734 | EK9: 9.184761682 | EL9: 109 | EM9: 4.247385375 | EN9: 5.531413809 | EO9: 335 | EP9: 3.649990595 | EQ9: 7.825033331 | ER9: 165 | ES9: 3.040116362 | ET9: 3.583370544 | EU9: 497 | EV9: 0.2208640332 | EW9: -1.369036123 | EX9: 296 | EY9: 8.233341992 | EZ9: 13.71682407 | FA9: 29 | FB9: 4.60908685 | FC9: 2.60411558 | FD9: 65 | FE9: 2.17258428 | FF9: -0.318387121 | FG9: 482 | FH9: 5.814914671 | FI9: 7.78950537 | FJ9: 482 | FK9: 5.814914671 | FL9: 7.78950537 | FM9: 23 | FN9: 4.51350669 | FO9: 4.25871039 | FP9: 317 | FQ9: 4.941073579 | FR9: 6.332746976 | FS9: 70 | FT9: 1.423125 | FU9: 0.646345121 | FV9: 159 | FW9: 7.14326188 | FX9: 9.249714156 | FY9: 248 | FZ9: 3.941254589 | GA9: 6.282762401 | GB9: 131 | GC9: 6.886491299 | GD9: 9.410603282 | GE9: 462 | GF9: 1.005958156 | GG9: 0.1279779159 | GH9: 473 | GI9: 8.810645422 | GJ9: 12.313253 | GK9: 148 | GL9: 1.137754207 | GM9: 4.165309598 | GN9: 81 | GO9: 5.5414156 | GP9: 8.21511411 | GQ9: 382 | GR9: 3.940599549 | GS9: 6.604869359 | GT9: 96 | GU9: 4.82454293 | GV9: 3.85889457 | GW9: 90 | GX9: 6.60656315 | GY9: 9.51956445 | GZ9: 222 | HA9: 2.90122966 | HB9: 7.523131809 | HC9: 290 | HD9: 3.582628109 | HE9: 4.30831353 | HF9: 433 | HG9: 3.274415857 | HH9: 6.784316827 | HI9: 254 | HJ9: 1.141944231 | HK9: 1.574278353 | HL9: 108 | HM9: 6.002723661 | HN9: 7.872636575 | HO9: 381 | HP9: 9.131934317 | HQ9: 12.55291319 | HR9: 155 | HS9: 4.825641159 | HT9: 6.160031288 | HU9: 125 | HV9: 2.422150472 | HW9: 2.138771277 | HX9: 77 | HY9: 2.62332655 | HZ9: 4.44153764 | IA9: 426 | IB9: 4.53261845 | IC9: 7.265817564 | ID9: 38 | IE9: 5.18673108 | IF9: 5.84375759 | IG9: 228 | IH9: 2.56348509 | II9: 2.476851699 | IJ9: 318 | IK9: 3.832366125 | IL9: 4.900589815 | IM9: 269 | IN9: 3.666581662 | IO9: 5.385328591 | IP9: 358 | IQ9: 6.864464443 | IR9: 9.27752281 | IS9: 456 | IT9: 9.057933881 | IU9: 14.24205924 | IV9: =Z54 -> 0.9665077735
A10: 9 | B10: 4.55813861 | C10: 7.46997257 | D10: 185 | E10: 8.169997321 | F10: 11.34178243 | G10: 16 | H10: 1.20622191 | I10: -1.56819643 | J10: 121 | K10: 4.272841113 | L10: 5.220618265 | M10: 78 | N10: 5.7589141 | O10: 6.31902082 | P10: 500 | Q10: 3.906187461 | R10: 5.317612298 | S10: 415 | T10: 9.709467598 | U10: 13.89648245 | V10: 187 | W10: 6.519533522 | X10: 9.25470835 | Y10: 159 | Z10: 7.14326188 | AA10: 9.249714156 | AB10: 83 | AC10: 2.31240365 | AD10: 2.11440066 | AE10: 491 | AF10: 5.400268075 | AG10: 9.32922091 | AH10: 149 | AI10: 8.090021663 | AJ10: 10.60334957 | AK10: 349 | AL10: 4.99668919 | AM10: 6.064861197 | AN10: 150 | AO10: 6.823624893 | AP10: 12.35404068 | AQ10: 406 | AR10: 6.117424329 | AS10: 11.63591888 | AT10: 477 | AU10: 3.158842985 | AV10: 4.968486672 | AW10: 48 | AX10: 1.16874791 | AY10: -3.10672775 | AZ10: 455 | BA10: 6.07526398 | BB10: 11.28246175 | BC10: 137 | BD10: 8.866205409 | BE10: 15.39516343 | BF10: 465 | BG10: 3.941634222 | BH10: 5.536921984 | BI10: 239 | BJ10: 1.687141981 | BK10: 2.169797273 | BL10: 460 | BM10: 5.371909194 | BN10: 7.132566327 | BO10: 227 | BP10: 3.673944527 | BQ10: 4.193770266 | BR10: 101 | BS10: 5.445845676 | BT10: 6.668110029 | BU10: 201 | BV10: 1.968656962 | BW10: 1.984178375 | BX10: 157 | BY10: 7.281089293 | BZ10: 9.735038872 | CA10: 213 | CB10: 6.698350044 | CC10: 10.79299441 | CD10: 70 | CE10: 1.423125 | CF10: 0.646345121 | CG10: 472 | CH10: 1.423333408 | CI10: 0.4477294041 | CJ10: 458 | CK10: 1.35782845 | CL10: 2.537922209 | CM10: 109 | CN10: 4.247385375 | CO10: 5.531413809 | CP10: 453 | CQ10: 0.3355561041 | CR10: -0.4537530918 | CS10: 85 | CT10: 1.82822638 | CU10: -2.92768506 | CV10: 233 | CW10: 7.984854235 | CX10: 10.79015383 | CY10: 269 | CZ10: 3.666581662 | DA10: 5.385328591 | DB10: 24 | DC10: 9.69084598 | DD10: 12.1507546 | DE10: 308 | DF10: 0.8614081392 | DG10: 2.89773469 | DH10: 461 | DI10: 4.884585275 | DJ10: 6.634864362 | DK10: 169 | DL10: 7.858001029 | DM10: 12.82808101 | DN10: 357 | DO10: 6.490032108 | DP10: 13.12021971 | DQ10: 344 | DR10: 1.513570813 | DS10: 4.658768124 | DT10: 334 | DU10: 0.1426316555 | DV10: -0.7878630769 | DW10: 311 | DX10: 9.873277629 | DY10: 13.3993579 | DZ10: 273 | EA10: 1.881556294 | EB10: 1.750412101 | EC10: 66 | ED10: 1.1164724 | EE10: -0.078287546 | EF10: 168 | EG10: 5.71037702 | EH10: 7.239777269 | EI10: 202 | EJ10: 6.99696996 | EK10: 8.805367962 | EL10: 293 | EM10: 1.567534421 | EN10: 1.753396563 | EO10: 34 | EP10: 6.75089173 | EQ10: 6.68082052 | ER10: 69 | ES10: 9.3413851 | ET10: 14.2098571 | EU10: 281 | EV10: 1.477663452 | EW10: 3.051087067 | EX10: 455 | EY10: 6.07526398 | EZ10: 11.28246175 | FA10: 208 | FB10: 1.505178803 | FC10: 4.963805751 | FD10: 354 | FE10: 1.47035973 | FF10: 0.771101292 | FG10: 418 | FH10: 9.610171677 | FI10: 14.48852042 | FJ10: 292 | FK10: 3.061066028 | FL10: 8.188867168 | FM10: 320 | FN10: 8.687714618 | FO10: 15.23353526 | FP10: 444 | FQ10: 4.582912705 | FR10: 9.718836 | FS10: 434 | FT10: 3.539981698 | FU10: 4.284114898 | FV10: 407 | FW10: 9.457898032 | FX10: 13.16265353 | FY10: 490 | FZ10: 0.7545066176 | GA10: -0.1220050074 | GB10: 339 | GC10: 6.261276544 | GD10: 9.013125262 | GE10: 430 | GF10: 4.023100064 | GG10: 4.593234866 | GH10: 308 | GI10: 0.8614081392 | GJ10: 2.89773469 | GK10: 291 | GL10: 9.318861731 | GM10: 15.16328245 | GN10: 173 | GO10: 4.28562054 | GP10: 5.710111432 | GQ10: 69 | GR10: 9.3413851 | GS10: 14.2098571 | GT10: 212 | GU10: 5.365483177 | GV10: 6.462492919 | GW10: 278 | GX10: 0.1986964382 | GY10: -1.548675627 | GZ10: 483 | HA10: 9.73870308 | HB10: 13.47678108 | HC10: 476 | HD10: 4.769237288 | HE10: 5.362900305 | HF10: 165 | HG10: 3.040116362 | HH10: 3.583370544 | HI10: 239 | HJ10: 1.687141981 | HK10: 2.169797273 | HL10: 415 | HM10: 9.709467598 | HN10: 13.89648245 | HO10: 454 | HP10: 5.977813993 | HQ10: 8.931188696 | HR10: 285 | HS10: 6.662071448 | HT10: 9.632167559 | HU10: 137 | HV10: 8.866205409 | HW10: 15.39516343 | HX10: 342 | HY10: 6.114036448 | HZ10: 7.669303551 | IA10: 245 | IB10: 7.971972343 | IC10: 14.07703668 | ID10: 134 | IE10: 9.150091434 | IF10: 14.55331338 | IG10: 126 | IH10: 8.834973268 | II10: 11.91770108 | IJ10: 423 | IK10: 4.749420422 | IL10: 6.856950393 | IM10: 153 | IN10: 3.238454736 | IO10: 4.354441304 | IP10: 213 | IQ10: 6.698350044 | IR10: 10.79299441 | IS10: 23 | IT10: 4.51350669 | IU10: 4.25871039 | IV10: =AC54 -> 0.839126602
A11: 10 | B11: 4.30812811 | C11: 4.96796458 | D11: 483 | E11: 9.73870308 | F11: 13.47678108 | G11: 396 | H11: 8.227863763 | I11: 11.78531089 | J11: 95 | K11: 7.44459369 | L11: 10.1652119 | M11: 101 | N11: 5.445845676 | O11: 6.668110029 | P11: 336 | Q11: 1.870541375 | R11: 1.180551634 | S11: 195 | T11: 7.896239566 | U11: 10.4676899 | V11: 320 | W11: 8.687714618 | X11: 15.23353526 | Y11: 275 | Z11: 7.337435299 | AA11: 9.574814402 | AB11: 274 | AC11: 3.026255872 | AD11: 9.169401729 | AE11: 3 | AF11: 7.96784314 | AG11: 7.84023659 | AH11: 183 | AI11: 2.321756073 | AJ11: 2.924827135 | AK11: 131 | AL11: 6.886491299 | AM11: 9.410603282 | AN11: 132 | AO11: 2.365753917 | AP11: 1.900883604 | AQ11: 67 | AR11: 8.53363023 | AS11: 11.8219133 | AT11: 409 | AU11: 9.850359682 | AV11: 13.65602827 | AW11: 382 | AX11: 3.940599549 | AY11: 6.604869359 | AZ11: 62 | BA11: 6.53330364 | BB11: 9.85792786 | BC11: 53 | BD11: 0.206671698 | BE11: -0.791170175 | BF11: 247 | BG11: 3.968362843 | BH11: 4.56225389 | BI11: 371 | BJ11: 6.752381468 | BK11: 9.856969303 | BL11: 423 | BM11: 4.749420422 | BN11: 6.856950393 | BO11: 366 | BP11: 7.6590329 | BQ11: 9.989380986 | BR11: 326 | BS11: 0.7666741114 | BT11: 2.163013737 | BU11: 195 | BV11: 7.896239566 | BW11: 10.4676899 | BX11: 107 | BY11: 1.14052562 | BZ11: 1.012054609 | CA11: 27 | CB11: 6.06165876 | CC11: 5.55362394 | CD11: 282 | CE11: 7.39346008 | CF11: 12.65488959 | CG11: 289 | CH11: 9.155854659 | CI11: 13.34545517 | CJ11: 361 | CK11: 7.710401941 | CL11: 11.23578606 | CM11: 436 | CN11: 4.08208054 | CO11: 8.754425988 | CP11: 500 | CQ11: 3.906187461 | CR11: 5.317612298 | CS11: 247 | CT11: 3.968362843 | CU11: 4.56225389 | CV11: 435 | CW11: 3.864226179 | CX11: 9.279665255 | CY11: 67 | CZ11: 8.53363023 | DA11: 11.8219133 | DB11: 235 | DC11: 0.6789448919 | DD11: 0.5089704514 | DE11: 114 | DF11: 1.252853786 | DG11: 1.010064003 | DH11: 496 | DI11: 4.532684235 | DJ11: 5.173349815 | DK11: 462 | DL11: 1.005958156 | DM11: 0.1279779159 | DN11: 341 | DO11: 9.976123292 | DP11: 13.98057436 | DQ11: 476 | DR11: 4.769237288 | DS11: 5.362900305 | DT11: 25 | DU11: 3.27332773 | DV11: 2.7018407 | DW11: 86 | DX11: 1.25997063 | DY11: 0.880998895 | DZ11: 224 | EA11: 8.850093268 | EB11: 12.1058805 | EC11: 222 | ED11: 2.90122966 | EE11: 7.523131809 | EF11: 75 | EG11: 4.48220544 | EH11: 4.67629661 | EI11: 239 | EJ11: 1.687141981 | EK11: 2.169797273 | EL11: 223 | EM11: 1.467799943 | EN11: 1.327611227 | EO11: 181 | EP11: 6.289004383 | EQ11: 12.75129234 | ER11: 272 | ES11: 2.900179276 | ET11: 3.381056319 | EU11: 256 | EV11: 0.06050357581 | EW11: -0.8821582164 | EX11: 276 | EY11: 4.038188423 | EZ11: 5.385728429 | FA11: 340 | FB11: 1.799892287 | FC11: 1.859591207 | FD11: 110 | FE11: 2.589965259 | FF11: 2.941322045 | FG11: 295 | FH11: 5.360451804 | FI11: 8.172456847 | FJ11: 441 | FK11: 9.354878443 | FL11: 16.68950893 | FM11: 10 | FN11: 4.30812811 | FO11: 4.96796458 | FP11: 357 | FQ11: 6.490032108 | FR11: 13.12021971 | FS11: 41 | FT11: 2.3735837 | FU11: -1.59270459 | FV11: 39 | FW11: 2.77939124 | FX11: 5.31050283 | FY11: 364 | FZ11: 2.674927642 | GA11: 4.836107233 | GB11: 481 | GC11: 4.57915076 | GD11: 6.437017195 | GE11: 492 | GF11: 6.532434169 | GG11: 13.28559818 | GH11: 427 | GI11: 6.988534876 | GJ11: 9.345507758 | GK11: 278 | GL11: 0.1986964382 | GM11: -1.548675627 | GN11: 94 | GO11: 6.26208838 | GP11: 10.6125892 | GQ11: 219 | GR11: 1.413592493 | GS11: 3.748166262 | GT11: 245 | GU11: 7.971972343 | GV11: 14.07703668 | GW11: 237 | GX11: 6.486293915 | GY11: 13.61285379 | GZ11: 267 | HA11: 6.511081731 | HB11: 13.80006018 | HC11: 277 | HD11: 5.220468369 | HE11: 8.113977016 | HF11: 432 | HG11: 0.8076230621 | HH11: 0.3307896717 | HI11: 69 | HJ11: 9.3413851 | HK11: 14.2098571 | HL11: 238 | HM11: 8.978948917 | HN11: 14.5718286 | HO11: 179 | HP11: 0.03264896274 | HQ11: 0.141121088 | HR11: 283 | HS11: 6.18427252 | HT11: 7.808466477 | HU11: 235 | HV11: 0.6789448919 | HW11: 0.5089704514 | HX11: 136 | HY11: 1.851418317 | HZ11: 2.269419017 | IA11: 425 | IB11: 1.807086452 | IC11: 1.741611039 | ID11: 191 | IE11: 8.862057696 | IF11: 12.36862636 | IG11: 400 | IH11: 1.392814532 | II11: 4.642694218 | IJ11: 13 | IK11: 5.69596444 | IL11: 8.77827914 | IM11: 410 | IN11: 1.476856874 | IO11: 1.379903282 | IP11: 10 | IQ11: 4.30812811 | IR11: 4.96796458 | IS11: 451 | IT11: 9.655504893 | IU11: 13.60299673 | IV11: =AF54 -> 0.8407672077
A12: 11 | B12: 0.983887791 | C12: -0.190496477 | D12: 426 | E12: 4.53261845 | F12: 7.265817564 | G12: 171 | H12: 8.778074625 | I12: 13.50642065 | J12: 499 | K12: 6.162694315 | L12: 9.958051254 | M12: 248 | N12: 3.941254589 | O12: 6.282762401 | P12: 351 | Q12: 7.293595837 | R12: 9.629381538 | S12: 445 | T12: 6.911595518 | U12: 9.498922387 | V12: 488 | W12: 1.429231249 | X12: 3.538179942 | Y12: 264 | Z12: 0.386707151 | AA12: 1.534111384 | AB12: 462 | AC12: 1.005958156 | AD12: 0.1279779159 | AE12: 31 | AF12: 5.68477606 | AG12: 4.15507128 | AH12: 353 | AI12: 5.644777954 | AJ12: 8.648018441 | AK12: 490 | AL12: 0.7545066176 | AM12: -0.1220050074 | AN12: 327 | AO12: 9.039115292 | AP12: 12.35758991 | AQ12: 450 | AR12: 2.439381668 | AS12: 2.658876136 | AT12: 357 | AU12: 6.490032108 | AV12: 13.12021971 | AW12: 356 | AX12: 1.49331766 | AY12: 2.1275884 | AZ12: 342 | BA12: 6.114036448 | BB12: 7.669303551 | BC12: 333 | BD12: 6.981730499 | BE12: 8.979745074 | BF12: 34 | BG12: 6.75089173 | BH12: 6.68082052 | BI12: 177 | BJ12: 5.367929196 | BK12: 6.510966796 | BL12: 343 | BM12: 5.150367068 | BN12: 6.738228967 | BO12: 15 | BP12: 0.741468446 | BQ12: -3.10509067 | BR12: 257 | BS12: 0.04867114321 | BT12: 0.356675773 | BU12: 72 | BV12: 8.44975986 | BW12: 10.1485986 | BX12: 412 | BY12: 7.832014881 | BZ12: 14.43572556 | CA12: 322 | CB12: 0.1510361956 | CC12: 0.7485558619 | CD12: 294 | CE12: 5.35026498 | CF12: 9.399215378 | CG12: 373 | CH12: 7.459185446 | CI12: 10.32061623 | CJ12: 389 | CK12: 7.334305489 | CL12: 9.743790496 | CM12: 222 | CN12: 2.90122966 | CO12: 7.523131809 | CP12: 201 | CQ12: 1.968656962 | CR12: 1.984178375 | CS12: 80 | CT12: 8.34654802 | CU12: 10.0915653 | CV12: 377 | CW12: 3.040897536 | CX12: 2.660250533 | CY12: 345 | CZ12: 7.107225212 | DA12: 9.733400637 | DB12: 297 | DC12: 4.810584176 | DD12: 5.7242914 | DE12: 428 | DF12: 4.325001095 | DG12: 5.070870255 | DH12: 281 | DI12: 1.477663452 | DJ12: 3.051087067 | DK12: 254 | DL12: 1.141944231 | DM12: 1.574278353 | DN12: 376 | DO12: 0.4650527462 | DP12: -0.2259309196 | DQ12: 391 | DR12: 6.558558768 | DS12: 8.634685594 | DT12: 214 | DU12: 1.69418388 | DV12: 0.8329451764 | DW12: 357 | DX12: 6.490032108 | DY12: 13.12021971 | DZ12: 423 | EA12: 4.749420422 | EB12: 6.856950393 | EC12: 163 | ED12: 5.493235531 | EE12: 8.865620796 | EF12: 408 | EG12: 4.568184901 | EH12: 5.960812926 | EI12: 183 | EJ12: 2.321756073 | EK12: 2.924827135 | EL12: 66 | EM12: 1.1164724 | EN12: -0.078287546 | EO12: 288 | EP12: 3.67873895 | EQ12: 5.422914189 | ER12: 216 | ES12: 7.890382852 | ET12: 6.741540801 | EU12: 305 | EV12: 5.474790083 | EW12: 7.246591396 | EX12: 458 | EY12: 1.35782845 | EZ12: 2.537922209 | FA12: 471 | FB12: 5.974281387 | FC12: 7.87051432 | FD12: 417 | FE12: 7.338660302 | FF12: 15.29587208 | FG12: 22 | FH12: 8.10172595 | FI12: 12.6793998 | FJ12: 305 | FK12: 5.474790083 | FL12: 7.246591396 | FM12: 391 | FN12: 6.558558768 | FO12: 8.634685594 | FP12: 310 | FQ12: 7.14790739 | FR12: 9.169635587 | FS12: 172 | FT12: 7.31031285 | FU12: 10.56882332 | FV12: 8 | FW12: 2.1716921 | FX12: 4.08450283 | FY12: 60 | FZ12: 4.51046758 | GA12: 6.96945848 | GB12: 315 | GC12: 8.93552466 | GD12: 15.39354821 | GE12: 136 | GF12: 1.851418317 | GG12: 2.269419017 | GH12: 141 | GI12: 4.800506312 | GJ12: 5.610688637 | GK12: 465 | GL12: 3.941634222 | GM12: 5.536921984 | GN12: 111 | GO12: 3.85638947 | GP12: 4.92575438 | GQ12: 116 | GR12: 5.325049375 | GS12: 11.29006282 | GT12: 63 | GU12: 5.24469467 | GV12: 7.8713711 | GW12: 220 | GX12: 4.377394823 | GY12: 7.335011065 | GZ12: 306 | HA12: 0.9621403479 | HB12: 0.8049534493 | HC12: 434 | HD12: 3.539981698 | HE12: 4.284114898 | HF12: 368 | HG12: 4.420517322 | HH12: 5.404310704 | HI12: 288 | HJ12: 3.67873895 | HK12: 5.422914189 | HL12: 76 | HM12: 4.3412922 | HN12: 4.0240331 | HO12: 119 | HP12: 4.16612675 | HQ12: 7.437545505 | HR12: 126 | HS12: 8.834973268 | HT12: 11.91770108 | HU12: 94 | HV12: 6.26208838 | HW12: 10.6125892 | HX12: 214 | HY12: 1.69418388 | HZ12: 0.8329451764 | IA12: 53 | IB12: 0.206671698 | IC12: -0.791170175 | ID12: 51 | IE12: 9.91048198 | IF12: 11.89212396 | IG12: 395 | IH12: 7.826619217 | II12: 10.13472144 | IJ12: 315 | IK12: 8.93552466 | IL12: 15.39354821 | IM12: 405 | IN12: 6.308263957 | IO12: 8.417126503 | IP12: 31 | IQ12: 5.68477606 | IR12: 4.15507128 | IS12: 428 | IT12: 4.325001095 | IU12: 5.070870255 | IV12: =AI54 -> 0.9164192237
A13: 12 | B13: 9.19486152 | C13: 11.0320721 | D13: 65 | E13: 2.17258428 | F13: -0.318387121 | G13: 90 | H13: 6.60656315 | I13: 9.51956445 | J13: 354 | K13: 1.47035973 | L13: 0.771101292 | M13: 238 | N13: 8.978948917 | O13: 14.5718286 | P13: 380 | Q13: 7.858917859 | R13: 10.05101649 | S13: 291 | T13: 9.318861731 | U13: 15.16328245 | V13: 338 | W13: 6.139911704 | X13: 8.221082624 | Y13: 450 | Z13: 2.439381668 | AA13: 2.658876136 | AB13: 478 | AC13: 0.4187276272 | AD13: -0.6333903862 | AE13: 371 | AF13: 6.752381468 | AG13: 9.856969303 | AH13: 26 | AI13: 8.43104463 | AJ13: 11.3286742 | AK13: 271 | AL13: 9.500293657 | AM13: 15.38973158 | AN13: 190 | AO13: 3.609999136 | AP13: 5.909913366 | AQ13: 235 | AR13: 0.6789448919 | AS13: 0.5089704514 | AT13: 236 | AU13: 6.769019098 | AV13: 9.22653117 | AW13: 80 | AX13: 8.34654802 | AY13: 10.0915653 | AZ13: 117 | BA13: 1.634033923 | BB13: 3.020722199 | BC13: 380 | BD13: 7.858917859 | BE13: 10.05101649 | BF13: 77 | BG13: 2.62332655 | BH13: 4.44153764 | BI13: 46 | BJ13: 6.94092202 | BK13: 6.74365555 | BL13: 433 | BM13: 3.274415857 | BN13: 6.784316827 | BO13: 67 | BP13: 8.53363023 | BQ13: 11.8219133 | BR13: 443 | BS13: 9.640023234 | BT13: 14.71434734 | BU13: 37 | BV13: 3.92028448 | BW13: 2.04055271 | BX13: 119 | BY13: 4.16612675 | BZ13: 7.437545505 | CA13: 163 | CB13: 5.493235531 | CC13: 8.865620796 | CD13: 448 | CE13: 4.993158858 | CF13: 7.267460034 | CG13: 210 | CH13: 9.490853698 | CI13: 13.20251609 | CJ13: 132 | CK13: 2.365753917 | CL13: 1.900883604 | CM13: 210 | CN13: 9.490853698 | CO13: 13.20251609 | CP13: 430 | CQ13: 4.023100064 | CR13: 4.593234866 | CS13: 277 | CT13: 5.220468369 | CU13: 8.113977016 | CV13: 59 | CW13: 0.119493964 | CX13: -4.58243463 | CY13: 387 | CZ13: 9.50044315 | DA13: 12.75987321 | DB13: 89 | DC13: 2.35202778 | DD13: -0.517630912 | DE13: 410 | DF13: 1.476856874 | DG13: 1.379903282 | DH13: 68 | DI13: 4.59207945 | DJ13: 2.43433646 | DK13: 439 | DL13: 3.936687521 | DM13: 4.356405707 | DN13: 97 | DO13: 5.57222481 | DP13: 7.54623243 | DQ13: 81 | DR13: 5.5414156 | DS13: 8.21511411 | DT13: 268 | DU13: 4.805000123 | DV13: 6.178547716 | DW13: 413 | DX13: 9.777377063 | DY13: 13.80512482 | DZ13: 482 | EA13: 5.814914671 | EB13: 7.78950537 | EC13: 168 | ED13: 5.71037702 | EE13: 7.239777269 | EF13: 362 | EG13: 7.053309402 | EH13: 9.50515826 | EI13: 212 | EJ13: 5.365483177 | EK13: 6.462492919 | EL13: 131 | EM13: 6.886491299 | EN13: 9.410603282 | EO13: 160 | EP13: 2.379058156 | EQ13: 5.635721578 | ER13: 165 | ES13: 3.040116362 | ET13: 3.583370544 | EU13: 480 | EV13: 8.279630606 | EW13: 11.0342258 | EX13: 75 | EY13: 4.48220544 | EZ13: 4.67629661 | FA13: 317 | FB13: 4.941073579 | FC13: 6.332746976 | FD13: 243 | FE13: 7.372356743 | FF13: 14.15401139 | FG13: 178 | FH13: 7.251810584 | FI13: 11.87564702 | FJ13: 107 | FK13: 1.14052562 | FL13: 1.012054609 | FM13: 367 | FN13: 5.760370768 | FO13: 7.791472067 | FP13: 221 | FQ13: 4.243818768 | FR13: 6.283891218 | FS13: 236 | FT13: 6.769019098 | FU13: 9.22653117 | FV13: 334 | FW13: 0.1426316555 | FX13: -0.7878630769 | FY13: 104 | FZ13: 2.796236799 | GA13: 3.829449248 | GB13: 217 | GC13: 8.773797216 | GD13: 11.90187657 | GE13: 501 | GF13: 2.026902879 | GG13: 1.783289167 | GH13: 142 | GI13: 9.911222215 | GJ13: 14.01070131 | GK13: 399 | GL13: 4.108297445 | GM13: 5.28539735 | GN13: 224 | GO13: 8.850093268 | GP13: 12.1058805 | GQ13: 324 | GR13: 4.355816874 | GS13: 7.801517983 | GT13: 64 | GU13: 2.33171315 | GV13: 3.9683671 | GW13: 53 | GX13: 0.206671698 | GY13: -0.791170175 | GZ13: 383 | HA13: 3.777211505 | HB13: 4.817224966 | HC13: 221 | HD13: 4.243818768 | HE13: 6.283891218 | HF13: 2 | HG13: 7.73094449 | HH13: 8.6631947 | HI13: 295 | HJ13: 5.360451804 | HK13: 8.172456847 | HL13: 75 | HM13: 4.48220544 | HN13: 4.67629661 | HO13: 286 | HP13: 0.1544658321 | HQ13: -0.8391181197 | HR13: 396 | HS13: 8.227863763 | HT13: 11.78531089 | HU13: 72 | HV13: 8.44975986 | HW13: 10.1485986 | HX13: 457 | HY13: 7.717987014 | HZ13: 10.45831336 | IA13: 188 | IB13: 0.09134565558 | IC13: -1.467150419 | ID13: 1 | IE13: 9.09214193 | IF13: 9.22605615 | IG13: 182 | IH13: 1.308641244 | II13: 3.608110363 | IJ13: 439 | IK13: 3.936687521 | IL13: 4.356405707 | IM13: 112 | IN13: 4.329394739 | IO13: 5.482066263 | IP13: 380 | IQ13: 7.858917859 | IR13: 10.05101649 | IS13: 364 | IT13: 2.674927642 | IU13: 4.836107233 | IV13: =AL54 -> 0.9420979576
A14: 13 | B14: 5.69596444 | C14: 8.77827914 | D14: 328 | E14: 2.043848608 | F14: 1.771787991 | G14: 296 | H14: 8.233341992 | I14: 13.71682407 | J14: 263 | K14: 6.577134574 | L14: 10.12972695 | M14: 467 | N14: 3.874689857 | O14: 5.137450001 | P14: 134 | Q14: 9.150091434 | R14: 14.55331338 | S14: 280 | T14: 4.696012252 | U14: 6.343121289 | V14: 150 | W14: 6.823624893 | X14: 12.35404068 | Y14: 145 | Z14: 0.8525446832 | AA14: 2.999647937 | AB14: 479 | AC14: 8.46281105 | AD14: 9.640987524 | AE14: 125 | AF14: 2.422150472 | AG14: 2.138771277 | AH14: 248 | AI14: 3.941254589 | AJ14: 6.282762401 | AK14: 141 | AL14: 4.800506312 | AM14: 5.610688637 | AN14: 468 | AO14: 2.121102409 | AP14: 2.60679253 | AQ14: 115 | AR14: 5.792104739 | AS14: 6.937223923 | AT14: 260 | AU14: 0.7940843459 | AV14: 0.1172914201 | AW14: 176 | AX14: 3.506806691 | AY14: 4.916780199 | AZ14: 101 | BA14: 5.445845676 | BB14: 6.668110029 | BC14: 401 | BD14: 2.487477645 | BE14: 2.554848882 | BF14: 150 | BG14: 6.823624893 | BH14: 12.35404068 | BI14: 441 | BJ14: 9.354878443 | BK14: 16.68950893 | BL14: 199 | BM14: 1.695444701 | BN14: 1.766260807 | BO14: 112 | BP14: 4.329394739 | BQ14: 5.482066263 | BR14: 312 | BS14: 5.41607617 | BT14: 7.098110858 | BU14: 171 | BV14: 8.778074625 | BW14: 13.50642065 | BX14: 349 | BY14: 4.99668919 | BZ14: 6.064861197 | CA14: 453 | CB14: 0.3355561041 | CC14: -0.4537530918 | CD14: 19 | CE14: 5.95518034 | CF14: 4.7732746 | CG14: 202 | CH14: 6.99696996 | CI14: 8.805367962 | CJ14: 189 | CK14: 1.10180771 | CL14: 0.4625460936 | CM14: 93 | CN14: 9.77137147 | CO14: 11.31715752 | CP14: 487 | CQ14: 6.039849047 | CR14: 8.001931175 | CS14: 144 | CT14: 6.618233798 | CU14: 10.93446982 | CV14: 159 | CW14: 7.14326188 | CX14: 9.249714156 | CY14: 196 | CZ14: 0.7680377099 | DA14: -0.1752951546 | DB14: 332 | DC14: 0.6180184208 | DD14: 1.242401963 | DE14: 358 | DF14: 6.864464443 | DG14: 9.27752281 | DH14: 73 | DI14: 6.30581833 | DJ14: 5.82147702 | DK14: 229 | DL14: 9.402733103 | DM14: 14.39290875 | DN14: 23 | DO14: 4.51350669 | DP14: 4.25871039 | DQ14: 486 | DR14: 6.56941847 | DS14: 13.47234969 | DT14: 334 | DU14: 0.1426316555 | DV14: -0.7878630769 | DW14: 392 | DX14: 7.864227825 | DY14: 10.69512537 | DZ14: 285 | EA14: 6.662071448 | EB14: 9.632167559 | EC14: 427 | ED14: 6.988534876 | EE14: 9.345507758 | EF14: 22 | EG14: 8.10172595 | EH14: 12.6793998 | EI14: 494 | EJ14: 1.221872109 | EK14: 2.230447021 | EL14: 255 | EM14: 4.550639386 | EN14: 5.838884714 | EO14: 280 | EP14: 4.696012252 | EQ14: 6.343121289 | ER14: 490 | ES14: 0.7545066176 | ET14: -0.1220050074 | EU14: 372 | EV14: 0.4149404452 | EW14: 0.4724075273 | EX14: 114 | EY14: 1.252853786 | EZ14: 1.010064003 | FA14: 30 | FB14: 3.60214925 | FC14: 6.04667724 | FD14: 307 | FE14: 5.95734778 | FF14: 7.914266872 | FG14: 175 | FH14: 2.231528297 | FI14: 2.404254766 | FJ14: 173 | FK14: 4.28562054 | FL14: 5.710111432 | FM14: 359 | FN14: 5.163693113 | FO14: 7.34968356 | FP14: 252 | FQ14: 2.670225027 | FR14: 2.925908317 | FS14: 280 | FT14: 4.696012252 | FU14: 6.343121289 | FV14: 442 | FW14: 2.595642529 | FX14: 2.780463014 | FY14: 292 | FZ14: 3.061066028 | GA14: 8.188867168 | GB14: 347 | GC14: 6.324796 | GD14: 7.868572822 | GE14: 273 | GF14: 1.881556294 | GG14: 1.750412101 | GH14: 158 | GI14: 6.576493163 | GJ14: 13.21882269 | GK14: 178 | GL14: 7.251810584 | GM14: 11.87564702 | GN14: 216 | GO14: 7.890382852 | GP14: 6.741540801 | GQ14: 342 | GR14: 6.114036448 | GS14: 7.669303551 | GT14: 307 | GU14: 5.95734778 | GV14: 7.914266872 | GW14: 112 | GX14: 4.329394739 | GY14: 5.482066263 | GZ14: 12 | HA14: 9.19486152 | HB14: 11.0320721 | HC14: 343 | HD14: 5.150367068 | HE14: 6.738228967 | HF14: 79 | HG14: 1.39826337 | HH14: 1.12138749 | HI14: 98 | HJ14: 4.41793735 | HK14: 3.44458382 | HL14: 385 | HM14: 5.920896375 | HN14: 8.406240256 | HO14: 9 | HP14: 4.55813861 | HQ14: 7.46997257 | HR14: 485 | HS14: 2.879562454 | HT14: 5.363452296 | HU14: 84 | HV14: 8.61456682 | HW14: 11.9266656 | HX14: 184 | HY14: 0.1414582344 | HZ14: -0.8367194623 | IA14: 457 | IB14: 7.717987014 | IC14: 10.45831336 | ID14: 240 | IE14: 3.420867287 | IF14: 8.927884453 | IG14: 296 | IH14: 8.233341992 | II14: 13.71682407 | IJ14: 8 | IK14: 2.1716921 | IL14: 4.08450283 | IM14: 167 | IN14: 5.694993418 | IO14: 7.587259181 | IP14: 17 | IQ14: 2.13610764 | IR14: 4.70049726 | IS14: 354 | IT14: 1.47035973 | IU14: 0.771101292 | IV14: =AO54 -> 0.9241035422
A15: 14 | B15: 2.35391531 | C15: 1.08322714 | D15: 269 | E15: 3.666581662 | F15: 5.385328591 | G15: 51 | H15: 9.91048198 | I15: 11.89212396 | J15: 221 | K15: 4.243818768 | L15: 6.283891218 | M15: 480 | N15: 8.279630606 | O15: 11.0342258 | P15: 419 | Q15: 8.195668396 | R15: 11.456946 | S15: 148 | T15: 1.137754207 | U15: 4.165309598 | V15: 353 | W15: 5.644777954 | X15: 8.648018441 | Y15: 440 | Z15: 9.908334403 | AA15: 14.03019626 | AB15: 100 | AC15: 5.163454745 | AD15: 8.387427899 | AE15: 235 | AF15: 0.6789448919 | AG15: 0.5089704514 | AH15: 67 | AI15: 8.53363023 | AJ15: 11.8219133 | AK15: 194 | AL15: 3.618389603 | AM15: 4.39875626 | AN15: 316 | AO15: 8.14110643 | AP15: 13.61048011 | AQ15: 421 | AR15: 0.5466026595 | AS15: -0.1865322591 | AT15: 319 | AU15: 0.5659222878 | AV15: 0.9882044618 | AW15: 133 | AX15: 2.683019603 | AY15: 3.038998418 | AZ15: 416 | BA15: 4.882399141 | BB15: 6.436020676 | BC15: 148 | BD15: 1.137754207 | BE15: 4.165309598 | BF15: 22 | BG15: 8.10172595 | BH15: 12.6793998 | BI15: 264 | BJ15: 0.386707151 | BK15: 1.534111384 | BL15: 121 | BM15: 4.272841113 | BN15: 5.220618265 | BO15: 92 | BP15: 8.05066739 | BQ15: 11.5738894 | BR15: 353 | BS15: 5.644777954 | BT15: 8.648018441 | BU15: 83 | BV15: 2.31240365 | BW15: 2.11440066 | BX15: 183 | BY15: 2.321756073 | BZ15: 2.924827135 | CA15: 363 | CB15: 8.890395843 | CC15: 12.04287797 | CD15: 9 | CE15: 4.55813861 | CF15: 7.46997257 | CG15: 39 | CH15: 2.77939124 | CI15: 5.31050283 | CJ15: 261 | CK15: 9.007457762 | CL15: 13.25375122 | CM15: 34 | CN15: 6.75089173 | CO15: 6.68082052 | CP15: 316 | CQ15: 8.14110643 | CR15: 13.61048011 | CS15: 452 | CT15: 6.647937713 | CU15: 10.67406087 | CV15: 54 | CW15: 6.4843481 | CX15: 10.3540317 | CY15: 142 | CZ15: 9.911222215 | DA15: 14.01070131 | DB15: 60 | DC15: 4.51046758 | DD15: 6.96945848 | DE15: 125 | DF15: 2.422150472 | DG15: 2.138771277 | DH15: 220 | DI15: 4.377394823 | DJ15: 7.335011065 | DK15: 374 | DL15: 7.957446025 | DM15: 16.22207536 | DN15: 416 | DO15: 4.882399141 | DP15: 6.436020676 | DQ15: 454 | DR15: 5.977813993 | DS15: 8.931188696 | DT15: 176 | DU15: 3.506806691 | DV15: 4.916780199 | DW15: 353 | DX15: 5.644777954 | DY15: 8.648018441 | DZ15: 52 | EA15: 8.42129982 | EB15: 10.24603712 | EC15: 348 | ED15: 6.227747289 | EE15: 7.935555211 | EF15: 100 | EG15: 5.163454745 | EH15: 8.387427899 | EI15: 357 | EJ15: 6.490032108 | EK15: 13.12021971 | EL15: 6 | EM15: 9.53953478 | EN15: 13.2443258 | EO15: 439 | EP15: 3.936687521 | EQ15: 4.356405707 | ER15: 134 | ES15: 9.150091434 | ET15: 14.55331338 | EU15: 100 | EV15: 5.163454745 | EW15: 8.387427899 | EX15: 240 | EY15: 3.420867287 | EZ15: 8.927884453 | FA15: 43 | FB15: 5.13345519 | FC15: 8.29723619 | FD15: 185 | FE15: 8.169997321 | FF15: 11.34178243 | FG15: 220 | FH15: 4.377394823 | FI15: 7.335011065 | FJ15: 363 | FK15: 8.890395843 | FL15: 12.04287797 | FM15: 477 | FN15: 3.158842985 | FO15: 4.968486672 | FP15: 219 | FQ15: 1.413592493 | FR15: 3.748166262 | FS15: 271 | FT15: 9.500293657 | FU15: 15.38973158 | FV15: 294 | FW15: 5.35026498 | FX15: 9.399215378 | FY15: 423 | FZ15: 4.749420422 | GA15: 6.856950393 | GB15: 155 | GC15: 4.825641159 | GD15: 6.160031288 | GE15: 108 | GF15: 6.002723661 | GG15: 7.872636575 | GH15: 348 | GI15: 6.227747289 | GJ15: 7.935555211 | GK15: 283 | GL15: 6.18427252 | GM15: 7.808466477 | GN15: 318 | GO15: 3.832366125 | GP15: 4.900589815 | GQ15: 226 | GR15: 9.250060212 | GS15: 11.3512084 | GT15: 312 | GU15: 5.41607617 | GV15: 7.098110858 | GW15: 225 | GX15: 4.79274557 | GY15: 7.82741516 | GZ15: 484 | HA15: 4.004509415 | HB15: 5.725778105 | HC15: 454 | HD15: 5.977813993 | HE15: 8.931188696 | HF15: 193 | HG15: 7.323838368 | HH15: 9.848668602 | HI15: 367 | HJ15: 5.760370768 | HK15: 7.791472067 | HL15: 44 | HM15: 2.51870786 | HN15: 3.95381 | HO15: 288 | HP15: 3.67873895 | HQ15: 5.422914189 | HR15: 331 | HS15: 1.324308153 | HT15: 1.060296162 | HU15: 435 | HV15: 3.864226179 | HW15: 9.279665255 | HX15: 251 | HY15: 7.658241522 | HZ15: 10.14417821 | IA15: 239 | IB15: 1.687141981 | IC15: 2.169797273 | ID15: 275 | IE15: 7.337435299 | IF15: 9.574814402 | IG15: 61 | IH15: 5.68622801 | II15: 9.69014381 | IJ15: 440 | IK15: 9.908334403 | IL15: 14.03019626 | IM15: 319 | IN15: 0.5659222878 | IO15: 0.9882044618 | IP15: 360 | IQ15: 4.894750061 | IR15: 7.704533946 | IS15: 422 | IT15: 8.900442608 | IU15: 12.35432215 | IV15: =AR54 -> 0.9330614061
A16: 15 | B16: 0.741468446 | C16: -3.10509067 | D16: 184 | E16: 0.1414582344 | F16: -0.8367194623 | G16: 444 | H16: 4.582912705 | I16: 9.718836 | J16: 172 | K16: 7.31031285 | L16: 10.56882332 | M16: 42 | N16: 7.55933738 | O16: 12.6835751 | P16: 341 | Q16: 9.976123292 | R16: 13.98057436 | S16: 218 | T16: 9.17666073 | U16: 13.32428062 | V16: 235 | W16: 0.6789448919 | X16: 0.5089704514 | Y16: 77 | Z16: 2.62332655 | AA16: 4.44153764 | AB16: 40 | AC16: 8.07864525 | AD16: 8.03795487 | AE16: 25 | AF16: 3.27332773 | AG16: 2.7018407 | AH16: 353 | AI16: 5.644777954 | AJ16: 8.648018441 | AK16: 182 | AL16: 1.308641244 | AM16: 3.608110363 | AN16: 136 | AO16: 1.851418317 | AP16: 2.269419017 | AQ16: 438 | AR16: 4.32155824 | AS16: 5.55616181 | AT16: 384 | AU16: 5.476693426 | AV16: 7.128083543 | AW16: 290 | AX16: 3.582628109 | AY16: 4.30831353 | AZ16: 455 | BA16: 6.07526398 | BB16: 11.28246175 | BC16: 324 | BD16: 4.355816874 | BE16: 7.801517983 | BF16: 383 | BG16: 3.777211505 | BH16: 4.817224966 | BI16: 46 | BJ16: 6.94092202 | BK16: 6.74365555 | BL16: 39 | BM16: 2.77939124 | BN16: 5.31050283 | BO16: 259 | BP16: 6.523956287 | BQ16: 8.547004043 | BR16: 88 | BS16: 8.87683015 | BT16: 11.8436226 | BU16: 271 | BV16: 9.500293657 | BW16: 15.38973158 | BX16: 469 | BY16: 9.413159238 | BZ16: 13.25105176 | CA16: 461 | CB16: 4.884585275 | CC16: 6.634864362 | CD16: 137 | CE16: 8.866205409 | CF16: 15.39516343 | CG16: 127 | CH16: 6.346243302 | CI16: 11.08876583 | CJ16: 324 | CK16: 4.355816874 | CL16: 7.801517983 | CM16: 492 | CN16: 6.532434169 | CO16: 13.28559818 | CP16: 144 | CQ16: 6.618233798 | CR16: 10.93446982 | CS16: 392 | CT16: 7.864227825 | CU16: 10.69512537 | CV16: 235 | CW16: 0.6789448919 | CX16: 0.5089704514 | CY16: 65 | CZ16: 2.17258428 | DA16: -0.318387121 | DB16: 393 | DC16: 1.855486528 | DD16: 1.822264596 | DE16: 167 | DF16: 5.694993418 | DG16: 7.587259181 | DH16: 378 | DI16: 8.374748085 | DJ16: 10.51065091 | DK16: 81 | DL16: 5.5414156 | DM16: 8.21511411 | DN16: 55 | DO16: 9.14722657 | DP16: 9.71488637 | DQ16: 447 | DR16: 1.721789725 | DS16: 1.475773433 | DT16: 479 | DU16: 8.46281105 | DV16: 9.640987524 | DW16: 175 | DX16: 2.231528297 | DY16: 2.404254766 | DZ16: 46 | EA16: 6.94092202 | EB16: 6.74365555 | EC16: 48 | ED16: 1.16874791 | EE16: -3.10672775 | EF16: 164 | EG16: 9.965606271 | EH16: 13.99774901 | EI16: 376 | EJ16: 0.4650527462 | EK16: -0.2259309196 | EL16: 321 | EM16: 8.643298308 | EN16: 11.79523886 | EO16: 441 | EP16: 9.354878443 | EQ16: 16.68950893 | ER16: 189 | ES16: 1.10180771 | ET16: 0.4625460936 | EU16: 419 | EV16: 8.195668396 | EW16: 11.456946 | EX16: 316 | EY16: 8.14110643 | EZ16: 13.61048011 | FA16: 497 | FB16: 0.2208640332 | FC16: -1.369036123 | FD16: 9 | FE16: 4.55813861 | FF16: 7.46997257 | FG16: 331 | FH16: 1.324308153 | FI16: 1.060296162 | FJ16: 18 | FK16: 6.2052832 | FL16: 8.9630256 | FM16: 208 | FN16: 1.505178803 | FO16: 4.963805751 | FP16: 450 | FQ16: 2.439381668 | FR16: 2.658876136 | FS16: 476 | FT16: 4.769237288 | FU16: 5.362900305 | FV16: 247 | FW16: 3.968362843 | FX16: 4.56225389 | FY16: 346 | FZ16: 1.191561255 | GA16: 2.269256354 | GB16: 219 | GC16: 1.413592493 | GD16: 3.748166262 | GE16: 317 | GF16: 4.941073579 | GG16: 6.332746976 | GH16: 118 | GI16: 7.945931319 | GJ16: 12.86608569 | GK16: 47 | GL16: 3.47347018 | GM16: 0.356953922 | GN16: 178 | GO16: 7.251810584 | GP16: 11.87564702 | GQ16: 340 | GR16: 1.799892287 | GS16: 1.859591207 | GT16: 213 | GU16: 6.698350044 | GV16: 10.79299441 | GW16: 18 | GX16: 6.2052832 | GY16: 8.9630256 | GZ16: 436 | HA16: 4.08208054 | HB16: 8.754425988 | HC16: 294 | HD16: 5.35026498 | HE16: 9.399215378 | HF16: 53 | HG16: 0.206671698 | HH16: -0.791170175 | HI16: 52 | HJ16: 8.42129982 | HK16: 10.24603712 | HL16: 373 | HM16: 7.459185446 | HN16: 10.32061623 | HO16: 306 | HP16: 0.9621403479 | HQ16: 0.8049534493 | HR16: 421 | HS16: 0.5466026595 | HT16: -0.1865322591 | HU16: 299 | HV16: 6.897112035 | HW16: 10.37391401 | HX16: 467 | HY16: 3.874689857 | HZ16: 5.137450001 | IA16: 36 | IB16: 1.66489539 | IC16: 1.82337856 | ID16: 392 | IE16: 7.864227825 | IF16: 10.69512537 | IG16: 470 | IH16: 3.253489636 | II16: 3.282505817 | IJ16: 344 | IK16: 1.513570813 | IL16: 4.658768124 | IM16: 269 | IN16: 3.666581662 | IO16: 5.385328591 | IP16: 226 | IQ16: 9.250060212 | IR16: 11.3512084 | IS16: 458 | IT16: 1.35782845 | IU16: 2.537922209 | IV16: =AU54 -> 0.8464837133
A17: 16 | B17: 1.20622191 | C17: -1.56819643 | D17: 438 | E17: 4.32155824 | F17: 5.55616181 | G17: 108 | H17: 6.002723661 | I17: 7.872636575 | J17: 419 | K17: 8.195668396 | L17: 11.456946 | M17: 122 | N17: 7.182313271 | O17: 9.864613996 | P17: 99 | Q17: 8.498654961 | R17: 15.26596291 | S17: 445 | T17: 6.911595518 | U17: 9.498922387 | V17: 122 | W17: 7.182313271 | X17: 9.864613996 | Y17: 266 | Z17: 7.216192691 | AA17: 9.885922997 | AB17: 190 | AC17: 3.609999136 | AD17: 5.909913366 | AE17: 370 | AF17: 4.421525079 | AG17: 10.52706806 | AH17: 446 | AI17: 1.765411358 | AJ17: 2.141253773 | AK17: 498 | AL17: 9.791089032 | AM17: 13.16004479 | AN17: 164 | AO17: 9.965606271 | AP17: 13.99774901 | AQ17: 330 | AR17: 2.837752764 | AS17: 3.333338781 | AT17: 445 | AU17: 6.911595518 | AV17: 9.498922387 | AW17: 64 | AX17: 2.33171315 | AY17: 3.9683671 | AZ17: 36 | BA17: 1.66489539 | BB17: 1.82337856 | BC17: 225 | BD17: 4.79274557 | BE17: 7.82741516 | BF17: 13 | BG17: 5.69596444 | BH17: 8.77827914 | BI17: 120 | BJ17: 0.3535435374 | BK17: -1.073164342 | BL17: 2 | BM17: 7.73094449 | BN17: 8.6631947 | BO17: 58 | BP17: 5.9462981 | BQ17: 9.71863808 | BR17: 44 | BS17: 2.51870786 | BT17: 3.95381 | BU17: 121 | BV17: 4.272841113 | BW17: 5.220618265 | BX17: 187 | BY17: 6.519533522 | BZ17: 9.25470835 | CA17: 367 | CB17: 5.760370768 | CC17: 7.791472067 | CD17: 120 | CE17: 0.3535435374 | CF17: -1.073164342 | CG17: 210 | CH17: 9.490853698 | CI17: 13.20251609 | CJ17: 196 | CK17: 0.7680377099 | CL17: -0.1752951546 | CM17: 441 | CN17: 9.354878443 | CO17: 16.68950893 | CP17: 361 | CQ17: 7.710401941 | CR17: 11.23578606 | CS17: 407 | CT17: 9.457898032 | CU17: 13.16265353 | CV17: 115 | CW17: 5.792104739 | CX17: 6.937223923 | CY17: 421 | CZ17: 0.5466026595 | DA17: -0.1865322591 | DB17: 487 | DC17: 6.039849047 | DD17: 8.001931175 | DE17: 497 | DF17: 0.2208640332 | DG17: -1.369036123 | DH17: 144 | DI17: 6.618233798 | DJ17: 10.93446982 | DK17: 362 | DL17: 7.053309402 | DM17: 9.50515826 | DN17: 327 | DO17: 9.039115292 | DP17: 12.35758991 | DQ17: 46 | DR17: 6.94092202 | DS17: 6.74365555 | DT17: 212 | DU17: 5.365483177 | DV17: 6.462492919 | DW17: 241 | DX17: 1.441955256 | DY17: 1.265402956 | DZ17: 271 | EA17: 9.500293657 | EB17: 15.38973158 | EC17: 374 | ED17: 7.957446025 | EE17: 16.22207536 | EF17: 23 | EG17: 4.51350669 | EH17: 4.25871039 | EI17: 159 | EJ17: 7.14326188 | EK17: 9.249714156 | EL17: 196 | EM17: 0.7680377099 | EN17: -0.1752951546 | EO17: 287 | EP17: 7.795973625 | EQ17: 11.0065259 | ER17: 115 | ES17: 5.792104739 | ET17: 6.937223923 | EU17: 420 | EV17: 6.569000717 | EW17: 8.167703691 | EX17: 196 | EY17: 0.7680377099 | EZ17: -0.1752951546 | FA17: 446 | FB17: 1.765411358 | FC17: 2.141253773 | FD17: 265 | FE17: 0.3652262438 | FF17: -0.1992222761 | FG17: 85 | FH17: 1.82822638 | FI17: -2.92768506 | FJ17: 383 | FK17: 3.777211505 | FL17: 4.817224966 | FM17: 140 | FN17: 0.7627152342 | FO17: 0.2338329209 | FP17: 290 | FQ17: 3.582628109 | FR17: 4.30831353 | FS17: 33 | FT17: 2.44821177 | FU17: -1.09291696 | FV17: 451 | FW17: 9.655504893 | FX17: 13.60299673 | FY17: 297 | FZ17: 4.810584176 | GA17: 5.7242914 | GB17: 75 | GC17: 4.48220544 | GD17: 4.67629661 | GE17: 372 | GF17: 0.4149404452 | GG17: 0.4724075273 | GH17: 164 | GI17: 9.965606271 | GJ17: 13.99774901 | GK17: 376 | GL17: 0.4650527462 | GM17: -0.2259309196 | GN17: 9 | GO17: 4.55813861 | GP17: 7.46997257 | GQ17: 114 | GR17: 1.252853786 | GS17: 1.010064003 | GT17: 46 | GU17: 6.94092202 | GV17: 6.74365555 | GW17: 43 | GX17: 5.13345519 | GY17: 8.29723619 | GZ17: 447 | HA17: 1.721789725 | HB17: 1.475773433 | HC17: 175 | HD17: 2.231528297 | HE17: 2.404254766 | HF17: 100 | HG17: 5.163454745 | HH17: 8.387427899 | HI17: 226 | HJ17: 9.250060212 | HK17: 11.3512084 | HL17: 141 | HM17: 4.800506312 | HN17: 5.610688637 | HO17: 121 | HP17: 4.272841113 | HQ17: 5.220618265 | HR17: 259 | HS17: 6.523956287 | HT17: 8.547004043 | HU17: 32 | HV17: 4.66966127 | HW17: 5.38860315 | HX17: 77 | HY17: 2.62332655 | HZ17: 4.44153764 | IA17: 278 | IB17: 0.1986964382 | IC17: -1.548675627 | ID17: 252 | IE17: 2.670225027 | IF17: 2.925908317 | IG17: 371 | IH17: 6.752381468 | II17: 9.856969303 | IJ17: 100 | IK17: 5.163454745 | IL17: 8.387427899 | IM17: 361 | IN17: 7.710401941 | IO17: 11.23578606 | IP17: 237 | IQ17: 6.486293915 | IR17: 13.61285379 | IS17: 216 | IT17: 7.890382852 | IU17: 6.741540801 | IV17: =AX54 -> 0.951625813
A18: 17 | B18: 2.13610764 | C18: 4.70049726 | D18: 484 | E18: 4.004509415 | F18: 5.725778105 | G18: 381 | H18: 9.131934317 | I18: 12.55291319 | J18: 14 | K18: 2.35391531 | L18: =IF(J18<>"",INDEX($C$2:$C$502,J18),"") -> 1.08322714 | M18: 24 | N18: 9.69084598 | O18: =IF(M18<>"",INDEX($C$2:$C$502,M18),"") -> 12.1507546 | P18: 53 | Q18: 0.206671698 | R18: =IF(P18<>"",INDEX($C$2:$C$502,P18),"") -> -0.791170175 | S18: 322 | T18: 0.1510361956 | U18: =IF(S18<>"",INDEX($C$2:$C$502,S18),"") -> 0.7485558619 | V18: 110 | W18: 2.589965259 | X18: =IF(V18<>"",INDEX($C$2:$C$502,V18),"") -> 2.941322045 | Y18: 339 | Z18: 6.261276544 | AA18: =IF(Y18<>"",INDEX($C$2:$C$502,Y18),"") -> 9.013125262 | AB18: 454 | AC18: 5.977813993 | AD18: =IF(AB18<>"",INDEX($C$2:$C$502,AB18),"") -> 8.931188696 | AE18: 331 | AF18: 1.324308153 | AG18: =IF(AE18<>"",INDEX($C$2:$C$502,AE18),"") -> 1.060296162 | AH18: 380 | AI18: 7.858917859 | AJ18: =IF(AH18<>"",INDEX($C$2:$C$502,AH18),"") -> 10.05101649 | AK18: 403 | AL18: 6.126795992 | AM18: =IF(AK18<>"",INDEX($C$2:$C$502,AK18),"") -> 11.91214737 | AN18: 267 | AO18: 6.511081731 | AP18: =IF(AN18<>"",INDEX($C$2:$C$502,AN18),"") -> 13.80006018 | AQ18: 415 | AR18: 9.709467598 | AS18: =IF(AQ18<>"",INDEX($C$2:$C$502,AQ18),"") -> 13.89648245 | AT18: 307 | AU18: 5.95734778 | AV18: =IF(AT18<>"",INDEX($C$2:$C$502,AT18),"") -> 7.914266872 | AW18: 416 | AX18: 4.882399141 | AY18: =IF(AW18<>"",INDEX($C$2:$C$502,AW18),"") -> 6.436020676 | AZ18: 305 | BA18: 5.474790083 | BB18: =IF(AZ18<>"",INDEX($C$2:$C$502,AZ18),"") -> 7.246591396 | BC18: 61 | BD18: 5.68622801 | BE18: =IF(BC18<>"",INDEX($C$2:$C$502,BC18),"") -> 9.69014381 | BF18: 280 | BG18: 4.696012252 | BH18: =IF(BF18<>"",INDEX($C$2:$C$502,BF18),"") -> 6.343121289 | BI18: 212 | BJ18: 5.365483177 | BK18: =IF(BI18<>"",INDEX($C$2:$C$502,BI18),"") -> 6.462492919 | BL18: 1 | BM18: 9.09214193 | BN18: =IF(BL18<>"",INDEX($C$2:$C$502,BL18),"") -> 9.22605615 | BO18: 22 | BP18: 8.10172595 | BQ18: =IF(BO18<>"",INDEX($C$2:$C$502,BO18),"") -> 12.6793998 | BR18: 489 | BS18: 2.356217366 | BT18: =IF(BR18<>"",INDEX($C$2:$C$502,BR18),"") -> 3.386803926 | BU18: 398 | BV18: 5.964057635 | BW18: =IF(BU18<>"",INDEX($C$2:$C$502,BU18),"") -> 7.386417809 | BX18: 195 | BY18: 7.896239566 | BZ18: =IF(BX18<>"",INDEX($C$2:$C$502,BX18),"") -> 10.4676899 | CA18: 191 | CB18: 8.862057696 | CC18: =IF(CA18<>"",INDEX($C$2:$C$502,CA18),"") -> 12.36862636 | CD18: 20 | CE18: 8.97702256 | CF18: =IF(CD18<>"",INDEX($C$2:$C$502,CD18),"") -> 12.3319163 | CG18: 122 | CH18: 7.182313271 | CI18: =IF(CG18<>"",INDEX($C$2:$C$502,CG18),"") -> 9.864613996 | CJ18: 468 | CK18: 2.121102409 | CL18: =IF(CJ18<>"",INDEX($C$2:$C$502,CJ18),"") -> 2.60679253 | CM18: 349 | CN18: 4.99668919 | CO18: =IF(CM18<>"",INDEX($C$2:$C$502,CM18),"") -> 6.064861197 | CP18: 117 | CQ18: 1.634033923 | CR18: =IF(CP18<>"",INDEX($C$2:$C$502,CP18),"") -> 3.020722199 | CS18: 167 | CT18: 5.694993418 | CU18: =IF(CS18<>"",INDEX($C$2:$C$502,CS18),"") -> 7.587259181 | CV18: 45 | CW18: 9.37237474 | CX18: =IF(CV18<>"",INDEX($C$2:$C$502,CV18),"") -> 9.61764637 | CY18: 149 | CZ18: 8.090021663 | DA18: =IF(CY18<>"",INDEX($C$2:$C$502,CY18),"") -> 10.60334957 | DB18: 380 | DC18: 7.858917859 | DD18: =IF(DB18<>"",INDEX($C$2:$C$502,DB18),"") -> 10.05101649 | DE18: 469 | DF18: 9.413159238 | DG18: =IF(DE18<>"",INDEX($C$2:$C$502,DE18),"") -> 13.25105176 | DH18: 86 | DI18: 1.25997063 | DJ18: =IF(DH18<>"",INDEX($C$2:$C$502,DH18),"") -> 0.880998895 | DK18: 291 | DL18: 9.318861731 | DM18: =IF(DK18<>"",INDEX($C$2:$C$502,DK18),"") -> 15.16328245 | DN18: 126 | DO18: 8.834973268 | DP18: =IF(DN18<>"",INDEX($C$2:$C$502,DN18),"") -> 11.91770108 | DQ18: 443 | DR18: 9.640023234 | DS18: =IF(DQ18<>"",INDEX($C$2:$C$502,DQ18),"") -> 14.71434734 | DT18: 3 | DU18: 7.96784314 | DV18: =IF(DT18<>"",INDEX($C$2:$C$502,DT18),"") -> 7.84023659 | DW18: 396 | DX18: 8.227863763 | DY18: =IF(DW18<>"",INDEX($C$2:$C$502,DW18),"") -> 11.78531089 | DZ18: 290 | EA18: 3.582628109 | EB18: =IF(DZ18<>"",INDEX($C$2:$C$502,DZ18),"") -> 4.30831353 | EC18: 362 | ED18: 7.053309402 | EE18: =IF(EC18<>"",INDEX($C$2:$C$502,EC18),"") -> 9.50515826 | EF18: 25 | EG18: 3.27332773 | EH18: =IF(EF18<>"",INDEX($C$2:$C$502,EF18),"") -> 2.7018407 | EI18: 178 | EJ18: 7.251810584 | EK18: =IF(EI18<>"",INDEX($C$2:$C$502,EI18),"") -> 11.87564702 | EL18: 67 | EM18: 8.53363023 | EN18: =IF(EL18<>"",INDEX($C$2:$C$502,EL18),"") -> 11.8219133 | EO18: 397 | EP18: 0.06730846132 | EQ18: =IF(EO18<>"",INDEX($C$2:$C$502,EO18),"") -> -0.5970273583 | ER18: 360 | ES18: 4.894750061 | ET18: =IF(ER18<>"",INDEX($C$2:$C$502,ER18),"") -> 7.704533946 | EU18: 55 | EV18: 9.14722657 | EW18: =IF(EU18<>"",INDEX($C$2:$C$502,EU18),"") -> 9.71488637 | EX18: 297 | EY18: 4.810584176 | EZ18: =IF(EX18<>"",INDEX($C$2:$C$502,EX18),"") -> 5.7242914 | FA18: 18 | FB18: 6.2052832 | FC18: 8.9630256 | FD18: 471 | FE18: 5.974281387 | FF18: 7.87051432 | FG18: 254 | FH18: 1.141944231 | FI18: 1.574278353 | FJ18: 138 | FK18: 7.241567808 | FL18: 9.575507065 | FM18: 384 | FN18: 5.476693426 | FO18: 7.128083543 | FP18: 67 | FQ18: 8.53363023 | FR18: 11.8219133 | FS18: 62 | FT18: 6.53330364 | FU18: 9.85792786 | FV18: 247 | FW18: 3.968362843 | FX18: 4.56225389 | FY18: 125 | FZ18: 2.422150472 | GA18: 2.138771277 | GB18: 158 | GC18: 6.576493163 | GD18: 13.21882269 | GE18: 219 | GF18: 1.413592493 | GG18: 3.748166262 | GH18: 343 | GI18: 5.150367068 | GJ18: 6.738228967 | GK18: 222 | GL18: 2.90122966 | GM18: 7.523131809 | GN18: 212 | GO18: 5.365483177 | GP18: 6.462492919 | GQ18: 405 | GR18: 6.308263957 | GS18: 8.417126503 | GT18: 97 | GU18: 5.57222481 | GV18: 7.54623243 | GW18: 257 | GX18: 0.04867114321 | GY18: 0.356675773 | GZ18: 493 | HA18: 2.497687815 | HB18: 2.851170853 | HC18: 411 | HD18: 4.50112695 | HE18: 7.939067025 | HF18: 439 | HG18: 3.936687521 | HH18: 4.356405707 | HI18: 400 | HJ18: 1.392814532 | HK18: 4.642694218 | HL18: 131 | HM18: 6.886491299 | HN18: 9.410603282 | HO18: 368 | HP18: 4.420517322 | HQ18: 5.404310704 | HR18: 131 | HS18: 6.886491299 | HT18: 9.410603282 | HU18: 489 | HV18: 2.356217366 | HW18: 3.386803926 | HX18: 204 | HY18: 3.308265585 | HZ18: 6.837932728 | IA18: 490 | IB18: 0.7545066176 | IC18: -0.1220050074 | ID18: 191 | IE18: 8.862057696 | IF18: 12.36862636 | IG18: 433 | IH18: 3.274415857 | II18: 6.784316827 | IJ18: 44 | IK18: 2.51870786 | IL18: 3.95381 | IM18: 443 | IN18: 9.640023234 | IO18: 14.71434734 | IP18: 356 | IQ18: 1.49331766 | IR18: 2.1275884 | IS18: 339 | IT18: 6.261276544 | IU18: 9.013125262 | IV18: =BA54 -> 0.895926203
A19: 18 | B19: 6.2052832 | C19: 8.9630256 | IV19: =BD54 -> 0.9239996497
A20: 19 | B20: 5.95518034 | C20: 4.7732746 | IV20: =BG54 -> 0.901337356
A21: 20 | B21: 8.97702256 | C21: 12.3319163 | IV21: =BJ54 -> 0.9437962824
A22: 21 | B22: 9.6300482 | C22: 11.9626183 | IV22: =BM54 -> 0.9219158718
A23: 22 | B23: 8.10172595 | C23: 12.6793998 | IV23: =BP54 -> 0.9628921591
A24: 23 | B24: 4.51350669 | C24: 4.25871039 | IV24: =BS54 -> 0.9641988555
A25: 24 | B25: 9.69084598 | C25: 12.1507546 | IV25: =BV54 -> 0.9088972847
A26: 25 | B26: 3.27332773 | C26: 2.7018407 | IV26: =BY54 -> 0.8954682066
A27: 26 | B27: 8.43104463 | C27: 11.3286742 | IV27: =CB54 -> 0.9478271332
A28: 27 | B28: 6.06165876 | C28: 5.55362394 | IV28: =CE54 -> 0.9564741303
A29: 28 | B29: 4.49460797 | C29: 7.05270137 | IV29: =CH54 -> 0.9665282772
A30: 29 | B30: 4.60908685 | C30: 2.60411558 | IV30: =CK54 -> 0.9824826397
A31: 30 | B31: 3.60214925 | C31: 6.04667724 | IV31: =CN54 -> 0.8972027661
A32: 31 | B32: 5.68477606 | C32: 4.15507128 | IV32: =CQ54 -> 0.9541183178
A33: 32 | B33: 4.66966127 | C33: 5.38860315 | IV33: =CT54 -> 0.9247743135
A34: 33 | B34: 2.44821177 | C34: -1.09291696 | D34: =IF($A34<=n,INT(501*RAND()+1),"") ->  | G34: =IF($A34<=n,INT(501*RAND()+1),"") ->  | J34: =IF($A34<=n,INT(501*RAND()+1),"") ->  | K34: =IF(J34<>"",INDEX($B$2:$B$502,J34),"") ->  | M34: =IF($A34<=n,INT(501*RAND()+1),"") ->  | N34: =IF(M34<>"",INDEX($B$2:$B$502,M34),"") ->  | P34: =IF($A34<=n,INT(501*RAND()+1),"") ->  | Q34: =IF(P34<>"",INDEX($B$2:$B$502,P34),"") ->  | S34: =IF($A34<=n,INT(501*RAND()+1),"") ->  | T34: =IF(S34<>"",INDEX($B$2:$B$502,S34),"") ->  | V34: =IF($A34<=n,INT(501*RAND()+1),"") ->  | W34: =IF(V34<>"",INDEX($B$2:$B$502,V34),"") ->  | Y34: =IF($A34<=n,INT(501*RAND()+1),"") ->  | Z34: =IF(Y34<>"",INDEX($B$2:$B$502,Y34),"") ->  | AB34: =IF($A34<=n,INT(501*RAND()+1),"") ->  | AC34: =IF(AB34<>"",INDEX($B$2:$B$502,AB34),"") ->  | AE34: =IF($A34<=n,INT(501*RAND()+1),"") ->  | AF34: =IF(AE34<>"",INDEX($B$2:$B$502,AE34),"") ->  | AH34: =IF($A34<=n,INT(501*RAND()+1),"") ->  | AI34: =IF(AH34<>"",INDEX($B$2:$B$502,AH34),"") ->  | AK34: =IF($A34<=n,INT(501*RAND()+1),"") ->  | AL34: =IF(AK34<>"",INDEX($B$2:$B$502,AK34),"") ->  | AN34: =IF($A34<=n,INT(501*RAND()+1),"") ->  | AO34: =IF(AN34<>"",INDEX($B$2:$B$502,AN34),"") ->  | AQ34: =IF($A34<=n,INT(501*RAND()+1),"") ->  | AR34: =IF(AQ34<>"",INDEX($B$2:$B$502,AQ34),"") ->  | AT34: =IF($A34<=n,INT(501*RAND()+1),"") ->  | AU34: =IF(AT34<>"",INDEX($B$2:$B$502,AT34),"") ->  | AW34: =IF($A34<=n,INT(501*RAND()+1),"") ->  | AX34: =IF(AW34<>"",INDEX($B$2:$B$502,AW34),"") ->  | AZ34: =IF($A34<=n,INT(501*RAND()+1),"") ->  | BA34: =IF(AZ34<>"",INDEX($B$2:$B$502,AZ34),"") ->  | BC34: =IF($A34<=n,INT(501*RAND()+1),"") ->  | BD34: =IF(BC34<>"",INDEX($B$2:$B$502,BC34),"") ->  | BF34: =IF($A34<=n,INT(501*RAND()+1),"") ->  | BG34: =IF(BF34<>"",INDEX($B$2:$B$502,BF34),"") ->  | BI34: =IF($A34<=n,INT(501*RAND()+1),"") ->  | BJ34: =IF(BI34<>"",INDEX($B$2:$B$502,BI34),"") ->  | BL34: =IF($A34<=n,INT(501*RAND()+1),"") ->  | BM34: =IF(BL34<>"",INDEX($B$2:$B$502,BL34),"") ->  | BO34: =IF($A34<=n,INT(501*RAND()+1),"") ->  | BP34: =IF(BO34<>"",INDEX($B$2:$B$502,BO34),"") ->  | BR34: =IF($A34<=n,INT(501*RAND()+1),"") ->  | BS34: =IF(BR34<>"",INDEX($B$2:$B$502,BR34),"") ->  | BU34: =IF($A34<=n,INT(501*RAND()+1),"") ->  | BV34: =IF(BU34<>"",INDEX($B$2:$B$502,BU34),"") ->  | BX34: =IF($A34<=n,INT(501*RAND()+1),"") ->  | BY34: =IF(BX34<>"",INDEX($B$2:$B$502,BX34),"") ->  | CA34: =IF($A34<=n,INT(501*RAND()+1),"") ->  | CB34: =IF(CA34<>"",INDEX($B$2:$B$502,CA34),"") ->  | CD34: =IF($A34<=n,INT(501*RAND()+1),"") ->  | CE34: =IF(CD34<>"",INDEX($B$2:$B$502,CD34),"") ->  | CG34: =IF($A34<=n,INT(501*RAND()+1),"") ->  | CH34: =IF(CG34<>"",INDEX($B$2:$B$502,CG34),"") ->  | CJ34: =IF($A34<=n,INT(501*RAND()+1),"") ->  | CK34: =IF(CJ34<>"",INDEX($B$2:$B$502,CJ34),"") ->  | CM34: =IF($A34<=n,INT(501*RAND()+1),"") ->  | CN34: =IF(CM34<>"",INDEX($B$2:$B$502,CM34),"") ->  | CP34: =IF($A34<=n,INT(501*RAND()+1),"") ->  | CQ34: =IF(CP34<>"",INDEX($B$2:$B$502,CP34),"") ->  | CS34: =IF($A34<=n,INT(501*RAND()+1),"") ->  | CT34: =IF(CS34<>"",INDEX($B$2:$B$502,CS34),"") ->  | CV34: =IF($A34<=n,INT(501*RAND()+1),"") ->  | CW34: =IF(CV34<>"",INDEX($B$2:$B$502,CV34),"") ->  | CY34: =IF($A34<=n,INT(501*RAND()+1),"") ->  | CZ34: =IF(CY34<>"",INDEX($B$2:$B$502,CY34),"") ->  | DB34: =IF($A34<=n,INT(501*RAND()+1),"") ->  | DC34: =IF(DB34<>"",INDEX($B$2:$B$502,DB34),"") ->  | DE34: =IF($A34<=n,INT(501*RAND()+1),"") ->  | DF34: =IF(DE34<>"",INDEX($B$2:$B$502,DE34),"") ->  | DH34: =IF($A34<=n,INT(501*RAND()+1),"") ->  | DI34: =IF(DH34<>"",INDEX($B$2:$B$502,DH34),"") ->  | DK34: =IF($A34<=n,INT(501*RAND()+1),"") ->  | DL34: =IF(DK34<>"",INDEX($B$2:$B$502,DK34),"") ->  | DN34: =IF($A34<=n,INT(501*RAND()+1),"") ->  | DO34: =IF(DN34<>"",INDEX($B$2:$B$502,DN34),"") ->  | DQ34: =IF($A34<=n,INT(501*RAND()+1),"") ->  | DR34: =IF(DQ34<>"",INDEX($B$2:$B$502,DQ34),"") ->  | DT34: =IF($A34<=n,INT(501*RAND()+1),"") ->  | DU34: =IF(DT34<>"",INDEX($B$2:$B$502,DT34),"") ->  | DW34: =IF($A34<=n,INT(501*RAND()+1),"") ->  | DX34: =IF(DW34<>"",INDEX($B$2:$B$502,DW34),"") ->  | DZ34: =IF($A34<=n,INT(501*RAND()+1),"") ->  | EA34: =IF(DZ34<>"",INDEX($B$2:$B$502,DZ34),"") ->  | EC34: =IF($A34<=n,INT(501*RAND()+1),"") ->  | ED34: =IF(EC34<>"",INDEX($B$2:$B$502,EC34),"") ->  | EF34: =IF($A34<=n,INT(501*RAND()+1),"") ->  | EG34: =IF(EF34<>"",INDEX($B$2:$B$502,EF34),"") ->  | EI34: =IF($A34<=n,INT(501*RAND()+1),"") ->  | EJ34: =IF(EI34<>"",INDEX($B$2:$B$502,EI34),"") ->  | EL34: =IF($A34<=n,INT(501*RAND()+1),"") ->  | EM34: =IF(EL34<>"",INDEX($B$2:$B$502,EL34),"") ->  | EO34: =IF($A34<=n,INT(501*RAND()+1),"") ->  | EP34: =IF(EO34<>"",INDEX($B$2:$B$502,EO34),"") ->  | ER34: =IF($A34<=n,INT(501*RAND()+1),"") ->  | ES34: =IF(ER34<>"",INDEX($B$2:$B$502,ER34),"") ->  | EU34: =IF($A34<=n,INT(501*RAND()+1),"") ->  | EV34: =IF(EU34<>"",INDEX($B$2:$B$502,EU34),"") ->  | EX34: =IF(AND($A34<=n,EY$1<=flips),INT(501*RAND()+1),"") ->  | EY34: =IF(EX34<>"",INDEX($B$2:$B$502,EX34),"") ->  | FA34: =IF(AND($A34<=n,FB$1<=flips),INT(501*RAND()+1),"") ->  | FB34: =IF(FA34<>"",INDEX($B$2:$B$502,FA34),"") ->  | FD34: =IF(AND($A34<=n,FE$1<=flips),INT(501*RAND()+1),"") ->  | FE34: =IF(FD34<>"",INDEX($B$2:$B$502,FD34),"") ->  | FG34: =IF(AND($A34<=n,FH$1<=flips),INT(501*RAND()+1),"") ->  | FH34: =IF(FG34<>"",INDEX($B$2:$B$502,FG34),"") ->  | FJ34: =IF(AND($A34<=n,FK$1<=flips),INT(501*RAND()+1),"") ->  | FK34: =IF(FJ34<>"",INDEX($B$2:$B$502,FJ34),"") ->  | FM34: =IF(AND($A34<=n,FN$1<=flips),INT(501*RAND()+1),"") ->  | FN34: =IF(FM34<>"",INDEX($B$2:$B$502,FM34),"") ->  | FP34: =IF(AND($A34<=n,FQ$1<=flips),INT(501*RAND()+1),"") ->  | FQ34: =IF(FP34<>"",INDEX($B$2:$B$502,FP34),"") ->  | FS34: =IF(AND($A34<=n,FT$1<=flips),INT(501*RAND()+1),"") ->  | FT34: =IF(FS34<>"",INDEX($B$2:$B$502,FS34),"") ->  | FV34: =IF(AND($A34<=n,FW$1<=flips),INT(501*RAND()+1),"") ->  | FW34: =IF(FV34<>"",INDEX($B$2:$B$502,FV34),"") ->  | FY34: =IF(AND($A34<=n,FZ$1<=flips),INT(501*RAND()+1),"") ->  | FZ34: =IF(FY34<>"",INDEX($B$2:$B$502,FY34),"") ->  | GB34: =IF(AND($A34<=n,GC$1<=flips),INT(501*RAND()+1),"") ->  | GC34: =IF(GB34<>"",INDEX($B$2:$B$502,GB34),"") ->  | GE34: =IF(AND($A34<=n,GF$1<=flips),INT(501*RAND()+1),"") ->  | GF34: =IF(GE34<>"",INDEX($B$2:$B$502,GE34),"") ->  | GH34: =IF(AND($A34<=n,GI$1<=flips),INT(501*RAND()+1),"") ->  | GI34: =IF(GH34<>"",INDEX($B$2:$B$502,GH34),"") ->  | GK34: =IF(AND($A34<=n,GL$1<=flips),INT(501*RAND()+1),"") ->  | GL34: =IF(GK34<>"",INDEX($B$2:$B$502,GK34),"") ->  | GN34: =IF(AND($A34<=n,GO$1<=flips),INT(501*RAND()+1),"") ->  | GO34: =IF(GN34<>"",INDEX($B$2:$B$502,GN34),"") ->  | GQ34: =IF(AND($A34<=n,GR$1<=flips),INT(501*RAND()+1),"") ->  | GR34: =IF(GQ34<>"",INDEX($B$2:$B$502,GQ34),"") ->  | GT34: =IF(AND($A34<=n,GU$1<=flips),INT(501*RAND()+1),"") ->  | GU34: =IF(GT34<>"",INDEX($B$2:$B$502,GT34),"") ->  | GW34: =IF(AND($A34<=n,GX$1<=flips),INT(501*RAND()+1),"") ->  | GX34: =IF(GW34<>"",INDEX($B$2:$B$502,GW34),"") ->  | GZ34: =IF(AND($A34<=n,HA$1<=flips),INT(501*RAND()+1),"") ->  | HA34: =IF(GZ34<>"",INDEX($B$2:$B$502,GZ34),"") ->  | HC34: =IF(AND($A34<=n,HD$1<=flips),INT(501*RAND()+1),"") ->  | HD34: =IF(HC34<>"",INDEX($B$2:$B$502,HC34),"") ->  | HF34: =IF(AND($A34<=n,HG$1<=flips),INT(501*RAND()+1),"") ->  | HG34: =IF(HF34<>"",INDEX($B$2:$B$502,HF34),"") ->  | HI34: =IF(AND($A34<=n,HJ$1<=flips),INT(501*RAND()+1),"") ->  | HJ34: =IF(HI34<>"",INDEX($B$2:$B$502,HI34),"") ->  | HL34: =IF(AND($A34<=n,HM$1<=flips),INT(501*RAND()+1),"") ->  | HM34: =IF(HL34<>"",INDEX($B$2:$B$502,HL34),"") ->  | HO34: =IF(AND($A34<=n,HP$1<=flips),INT(501*RAND()+1),"") ->  | HP34: =IF(HO34<>"",INDEX($B$2:$B$502,HO34),"") ->  | HR34: =IF(AND($A34<=n,HS$1<=flips),INT(501*RAND()+1),"") ->  | HS34: =IF(HR34<>"",INDEX($B$2:$B$502,HR34),"") ->  | HU34: =IF(AND($A34<=n,HV$1<=flips),INT(501*RAND()+1),"") ->  | HV34: =IF(HU34<>"",INDEX($B$2:$B$502,HU34),"") ->  | HX34: =IF(AND($A34<=n,HY$1<=flips),INT(501*RAND()+1),"") ->  | HY34: =IF(HX34<>"",INDEX($B$2:$B$502,HX34),"") ->  | IA34: =IF(AND($A34<=n,IB$1<=flips),INT(501*RAND()+1),"") ->  | IB34: =IF(IA34<>"",INDEX($B$2:$B$502,IA34),"") ->  | ID34: =IF(AND($A34<=n,IE$1<=flips),INT(501*RAND()+1),"") ->  | IE34: =IF(ID34<>"",INDEX($B$2:$B$502,ID34),"") ->  | IG34: =IF(AND($A34<=n,IH$1<=flips),INT(501*RAND()+1),"") ->  | IH34: =IF(IG34<>"",INDEX($B$2:$B$502,IG34),"") ->  | IJ34: =IF(AND($A34<=n,IK$1<=flips),INT(501*RAND()+1),"") ->  | IK34: =IF(IJ34<>"",INDEX($B$2:$B$502,IJ34),"") ->  | IM34: =IF(AND($A34<=n,IN$1<=flips),INT(501*RAND()+1),"") ->  | IN34: =IF(IM34<>"",INDEX($B$2:$B$502,IM34),"") ->  | IP34: =IF(AND($A34<=n,IQ$1<=flips),INT(501*RAND()+1),"") ->  | IQ34: =IF(IP34<>"",INDEX($B$2:$B$502,IP34),"") ->  | IS34: =IF(AND($A34<=n,IT$1<=flips),INT(501*RAND()+1),"") ->  | IT34: =IF(IS34<>"",INDEX($B$2:$B$502,IS34),"") ->  | IV34: =CW54 -> 0.9097859397
A35: 34 | B35: 6.75089173 | C35: 6.68082052 | IV35: =CZ54 -> 0.9721679738
A36: 35 | B36: 1.7000925 | C36: -2.08932327 | IV36: =DC54 -> 0.9566763401
A37: 36 | B37: 1.66489539 | C37: 1.82337856 | IV37: =DF54 -> 0.9471931191
A38: 37 | B38: 3.92028448 | C38: 2.04055271 | IV38: =DI54 -> 0.9113069759
A39: 38 | B39: 5.18673108 | C39: 5.84375759 | IV39: =DL54 -> 0.9652746428
A40: 39 | B40: 2.77939124 | C40: 5.31050283 | IV40: =DO54 -> 0.8847579742
A41: 40 | B41: 8.07864525 | C41: 8.03795487 | IV41: =DR54 -> 0.8504477028
A42: 41 | B42: 2.3735837 | C42: -1.59270459 | IV42: =DU54 -> 0.9668595884
A43: 42 | B43: 7.55933738 | C43: 12.6835751 | IV43: =DX54 -> 0.9600182927
A44: 43 | B44: 5.13345519 | C44: 8.29723619 | IV44: =EA54 -> 0.9406681169
A45: 44 | B45: 2.51870786 | C45: 3.95381 | IV45: =ED54 -> 0.8269363926
A46: 45 | B46: 9.37237474 | C46: 9.61764637 | IV46: =EG54 -> 0.9386759746
A47: 46 | B47: 6.94092202 | C47: 6.74365555 | IV47: =EJ54 -> 0.916110789
A48: 47 | B48: 3.47347018 | C48: 0.356953922 | IV48: =EM54 -> 0.9580357925
A49: 48 | B49: 1.16874791 | C49: -3.10672775 | IV49: =EP54 -> 0.9226275292
A50: 49 | B50: 1.22022199 | C50: -2.85875217 | IV50: =ES54 -> 0.9244538702
A51: 50 | B51: 3.33730571 | C51: 0.911521898 | IV51: =EV54 -> 0.9218674033
A52: 51 | B52: 9.91048198 | C52: 11.89212396 | FA52: =IF($A52<=n,INT(501*RAND()+1),"") ->  | FC52: =IF(FA52<>"",INDEX($C$2:$C$502,FA52),"") ->  | FD52: =IF($A52<=n,INT(501*RAND()+1),"") ->  | FF52: =IF(FD52<>"",INDEX($C$2:$C$502,FD52),"") ->  | FG52: =IF($A52<=n,INT(501*RAND()+1),"") ->  | FI52: =IF(FG52<>"",INDEX($C$2:$C$502,FG52),"") ->  | FJ52: =IF($A52<=n,INT(501*RAND()+1),"") ->  | FL52: =IF(FJ52<>"",INDEX($C$2:$C$502,FJ52),"") ->  | FM52: =IF($A52<=n,INT(501*RAND()+1),"") ->  | FO52: =IF(FM52<>"",INDEX($C$2:$C$502,FM52),"") ->  | FP52: =IF($A52<=n,INT(501*RAND()+1),"") ->  | FR52: =IF(FP52<>"",INDEX($C$2:$C$502,FP52),"") ->  | FS52: =IF($A52<=n,INT(501*RAND()+1),"") ->  | FU52: =IF(FS52<>"",INDEX($C$2:$C$502,FS52),"") ->  | FV52: =IF($A52<=n,INT(501*RAND()+1),"") ->  | FX52: =IF(FV52<>"",INDEX($C$2:$C$502,FV52),"") ->  | FY52: =IF($A52<=n,INT(501*RAND()+1),"") ->  | GA52: =IF(FY52<>"",INDEX($C$2:$C$502,FY52),"") ->  | GB52: =IF($A52<=n,INT(501*RAND()+1),"") ->  | GD52: =IF(GB52<>"",INDEX($C$2:$C$502,GB52),"") ->  | GE52: =IF($A52<=n,INT(501*RAND()+1),"") ->  | GG52: =IF(GE52<>"",INDEX($C$2:$C$502,GE52),"") ->  | GH52: =IF($A52<=n,INT(501*RAND()+1),"") ->  | GJ52: =IF(GH52<>"",INDEX($C$2:$C$502,GH52),"") ->  | GK52: =IF($A52<=n,INT(501*RAND()+1),"") ->  | GM52: =IF(GK52<>"",INDEX($C$2:$C$502,GK52),"") ->  | GN52: =IF($A52<=n,INT(501*RAND()+1),"") ->  | GP52: =IF(GN52<>"",INDEX($C$2:$C$502,GN52),"") ->  | GQ52: =IF($A52<=n,INT(501*RAND()+1),"") ->  | GS52: =IF(GQ52<>"",INDEX($C$2:$C$502,GQ52),"") ->  | GT52: =IF($A52<=n,INT(501*RAND()+1),"") ->  | GV52: =IF(GT52<>"",INDEX($C$2:$C$502,GT52),"") ->  | GW52: =IF($A52<=n,INT(501*RAND()+1),"") ->  | GY52: =IF(GW52<>"",INDEX($C$2:$C$502,GW52),"") ->  | GZ52: =IF($A52<=n,INT(501*RAND()+1),"") ->  | HB52: =IF(GZ52<>"",INDEX($C$2:$C$502,GZ52),"") ->  | HC52: =IF($A52<=n,INT(501*RAND()+1),"") ->  | HE52: =IF(HC52<>"",INDEX($C$2:$C$502,HC52),"") ->  | HF52: =IF($A52<=n,INT(501*RAND()+1),"") ->  | HH52: =IF(HF52<>"",INDEX($C$2:$C$502,HF52),"") ->  | HI52: =IF($A52<=n,INT(501*RAND()+1),"") ->  | HK52: =IF(HI52<>"",INDEX($C$2:$C$502,HI52),"") ->  | HL52: =IF($A52<=n,INT(501*RAND()+1),"") ->  | HN52: =IF(HL52<>"",INDEX($C$2:$C$502,HL52),"") ->  | HO52: =IF($A52<=n,INT(501*RAND()+1),"") ->  | HQ52: =IF(HO52<>"",INDEX($C$2:$C$502,HO52),"") ->  | HR52: =IF($A52<=n,INT(501*RAND()+1),"") ->  | HT52: =IF(HR52<>"",INDEX($C$2:$C$502,HR52),"") ->  | HU52: =IF($A52<=n,INT(501*RAND()+1),"") ->  | HW52: =IF(HU52<>"",INDEX($C$2:$C$502,HU52),"") ->  | HX52: =IF($A52<=n,INT(501*RAND()+1),"") ->  | HZ52: =IF(HX52<>"",INDEX($C$2:$C$502,HX52),"") ->  | IA52: =IF($A52<=n,INT(501*RAND()+1),"") ->  | IC52: =IF(IA52<>"",INDEX($C$2:$C$502,IA52),"") ->  | ID52: =IF($A52<=n,INT(501*RAND()+1),"") ->  | IF52: =IF(ID52<>"",INDEX($C$2:$C$502,ID52),"") ->  | IG52: =IF($A52<=n,INT(501*RAND()+1),"") ->  | II52: =IF(IG52<>"",INDEX($C$2:$C$502,IG52),"") ->  | IJ52: =IF($A52<=n,INT(501*RAND()+1),"") ->  | IL52: =IF(IJ52<>"",INDEX($C$2:$C$502,IJ52),"") ->  | IM52: =IF($A52<=n,INT(501*RAND()+1),"") ->  | IO52: =IF(IM52<>"",INDEX($C$2:$C$502,IM52),"") ->  | IP52: =IF($A52<=n,INT(501*RAND()+1),"") ->  | IR52: =IF(IP52<>"",INDEX($C$2:$C$502,IP52),"") ->  | IS52: =IF($A52<=n,INT(501*RAND()+1),"") ->  | IU52: =IF(IS52<>"",INDEX($C$2:$C$502,IS52),"") ->  | IV52: =EY54 -> 0.8541425103
A53: 52 | B53: 8.42129982 | C53: 10.24603712 | EX53: =IF($A53<=n,INT(501*RAND()+1),"") ->  | FA53: =IF($A53<=n,INT(501*RAND()+1),"") ->  | FC53: =IF(FA53<>"",INDEX($C$2:$C$502,FA53),"") ->  | FD53: =IF($A53<=n,INT(501*RAND()+1),"") ->  | FF53: =IF(FD53<>"",INDEX($C$2:$C$502,FD53),"") ->  | FG53: =IF($A53<=n,INT(501*RAND()+1),"") ->  | FI53: =IF(FG53<>"",INDEX($C$2:$C$502,FG53),"") ->  | FJ53: =IF($A53<=n,INT(501*RAND()+1),"") ->  | FL53: =IF(FJ53<>"",INDEX($C$2:$C$502,FJ53),"") ->  | FM53: =IF($A53<=n,INT(501*RAND()+1),"") ->  | FO53: =IF(FM53<>"",INDEX($C$2:$C$502,FM53),"") ->  | FP53: =IF($A53<=n,INT(501*RAND()+1),"") ->  | FR53: =IF(FP53<>"",INDEX($C$2:$C$502,FP53),"") ->  | FS53: =IF($A53<=n,INT(501*RAND()+1),"") ->  | FU53: =IF(FS53<>"",INDEX($C$2:$C$502,FS53),"") ->  | FV53: =IF($A53<=n,INT(501*RAND()+1),"") ->  | FX53: =IF(FV53<>"",INDEX($C$2:$C$502,FV53),"") ->  | FY53: =IF($A53<=n,INT(501*RAND()+1),"") ->  | GA53: =IF(FY53<>"",INDEX($C$2:$C$502,FY53),"") ->  | GB53: =IF($A53<=n,INT(501*RAND()+1),"") ->  | GD53: =IF(GB53<>"",INDEX($C$2:$C$502,GB53),"") ->  | GE53: =IF($A53<=n,INT(501*RAND()+1),"") ->  | GG53: =IF(GE53<>"",INDEX($C$2:$C$502,GE53),"") ->  | GH53: =IF($A53<=n,INT(501*RAND()+1),"") ->  | GJ53: =IF(GH53<>"",INDEX($C$2:$C$502,GH53),"") ->  | GK53: =IF($A53<=n,INT(501*RAND()+1),"") ->  | GM53: =IF(GK53<>"",INDEX($C$2:$C$502,GK53),"") ->  | GN53: =IF($A53<=n,INT(501*RAND()+1),"") ->  | GP53: =IF(GN53<>"",INDEX($C$2:$C$502,GN53),"") ->  | GQ53: =IF($A53<=n,INT(501*RAND()+1),"") ->  | GS53: =IF(GQ53<>"",INDEX($C$2:$C$502,GQ53),"") ->  | GT53: =IF($A53<=n,INT(501*RAND()+1),"") ->  | GV53: =IF(GT53<>"",INDEX($C$2:$C$502,GT53),"") ->  | GW53: =IF($A53<=n,INT(501*RAND()+1),"") ->  | GY53: =IF(GW53<>"",INDEX($C$2:$C$502,GW53),"") ->  | GZ53: =IF($A53<=n,INT(501*RAND()+1),"") ->  | HB53: =IF(GZ53<>"",INDEX($C$2:$C$502,GZ53),"") ->  | HC53: =IF($A53<=n,INT(501*RAND()+1),"") ->  | HE53: =IF(HC53<>"",INDEX($C$2:$C$502,HC53),"") ->  | HF53: =IF($A53<=n,INT(501*RAND()+1),"") ->  | HH53: =IF(HF53<>"",INDEX($C$2:$C$502,HF53),"") ->  | HI53: =IF($A53<=n,INT(501*RAND()+1),"") ->  | HK53: =IF(HI53<>"",INDEX($C$2:$C$502,HI53),"") ->  | HL53: =IF($A53<=n,INT(501*RAND()+1),"") ->  | HN53: =IF(HL53<>"",INDEX($C$2:$C$502,HL53),"") ->  | HO53: =IF($A53<=n,INT(501*RAND()+1),"") ->  | HQ53: =IF(HO53<>"",INDEX($C$2:$C$502,HO53),"") ->  | HR53: =IF($A53<=n,INT(501*RAND()+1),"") ->  | HT53: =IF(HR53<>"",INDEX($C$2:$C$502,HR53),"") ->  | HU53: =IF($A53<=n,INT(501*RAND()+1),"") ->  | HW53: =IF(HU53<>"",INDEX($C$2:$C$502,HU53),"") ->  | HX53: =IF($A53<=n,INT(501*RAND()+1),"") ->  | HZ53: =IF(HX53<>"",INDEX($C$2:$C$502,HX53),"") ->  | IA53: =IF($A53<=n,INT(501*RAND()+1),"") ->  | IC53: =IF(IA53<>"",INDEX($C$2:$C$502,IA53),"") ->  | ID53: =IF($A53<=n,INT(501*RAND()+1),"") ->  | IF53: =IF(ID53<>"",INDEX($C$2:$C$502,ID53),"") ->  | IG53: =IF($A53<=n,INT(501*RAND()+1),"") ->  | II53: =IF(IG53<>"",INDEX($C$2:$C$502,IG53),"") ->  | IJ53: =IF($A53<=n,INT(501*RAND()+1),"") ->  | IL53: =IF(IJ53<>"",INDEX($C$2:$C$502,IJ53),"") ->  | IM53: =IF($A53<=n,INT(501*RAND()+1),"") ->  | IO53: =IF(IM53<>"",INDEX($C$2:$C$502,IM53),"") ->  | IP53: =IF($A53<=n,INT(501*RAND()+1),"") ->  | IR53: =IF(IP53<>"",INDEX($C$2:$C$502,IP53),"") ->  | IS53: =IF($A53<=n,INT(501*RAND()+1),"") ->  | IU53: =IF(IS53<>"",INDEX($C$2:$C$502,IS53),"") ->  | IV53: =FB54 -> 0.9210112855
A54: 53 | B54: 0.206671698 | C54: -0.791170175 | D54: cc= | E54: =CORREL(E2:E52,F2:F52) -> 0.9740984305 | G54: cc= | H54: =CORREL(H2:H52,I2:I52) -> 0.9347627069 | J54: cc= | K54: =CORREL(K2:K52,L2:L52) -> 0.9546787256 | M54: cc= | N54: =CORREL(N2:N52,O2:O52) -> 0.9159053297 | P54: cc= | Q54: =CORREL(Q2:Q52,R2:R52) -> 0.9700149667 | S54: cc= | T54: =CORREL(T2:T52,U2:U52) -> 0.9265366343 | V54: cc= | W54: =CORREL(W2:W52,X2:X52) -> 0.9165434859 | Y54: cc= | Z54: =CORREL(Z2:Z52,AA2:AA52) -> 0.9665077735 | AB54: cc= | AC54: =CORREL(AC2:AC52,AD2:AD52) -> 0.839126602 | AE54: cc= | AF54: =CORREL(AF2:AF52,AG2:AG52) -> 0.8407672077 | AH54: cc= | AI54: =CORREL(AI2:AI52,AJ2:AJ52) -> 0.9164192237 | AK54: cc= | AL54: =CORREL(AL2:AL52,AM2:AM52) -> 0.9420979576 | AN54: cc= | AO54: =CORREL(AO2:AO52,AP2:AP52) -> 0.9241035422 | AQ54: cc= | AR54: =CORREL(AR2:AR52,AS2:AS52) -> 0.9330614061 | AT54: cc= | AU54: =CORREL(AU2:AU52,AV2:AV52) -> 0.8464837133 | AW54: cc= | AX54: =CORREL(AX2:AX52,AY2:AY52) -> 0.951625813 | AZ54: cc= | BA54: =CORREL(BA2:BA52,BB2:BB52) -> 0.895926203 | BC54: cc= | BD54: =CORREL(BD2:BD52,BE2:BE52) -> 0.9239996497 | BF54: cc= | BG54: =CORREL(BG2:BG52,BH2:BH52) -> 0.901337356 | BI54: cc= | BJ54: =CORREL(BJ2:BJ52,BK2:BK52) -> 0.9437962824 | BL54: cc= | BM54: =CORREL(BM2:BM52,BN2:BN52) -> 0.9219158718 | BO54: cc= | BP54: =CORREL(BP2:BP52,BQ2:BQ52) -> 0.9628921591 | BR54: cc= | BS54: =CORREL(BS2:BS52,BT2:BT52) -> 0.9641988555 | BU54: cc= | BV54: =CORREL(BV2:BV52,BW2:BW52) -> 0.9088972847 | BX54: cc= | BY54: =CORREL(BY2:BY52,BZ2:BZ52) -> 0.8954682066 | CA54: cc= | CB54: =CORREL(CB2:CB52,CC2:CC52) -> 0.9478271332 | CD54: cc= | CE54: =CORREL(CE2:CE52,CF2:CF52) -> 0.9564741303 | CG54: cc= | CH54: =CORREL(CH2:CH52,CI2:CI52) -> 0.9665282772 | CJ54: cc= | CK54: =CORREL(CK2:CK52,CL2:CL52) -> 0.9824826397 | CM54: cc= | CN54: =CORREL(CN2:CN52,CO2:CO52) -> 0.8972027661 | CP54: cc= | CQ54: =CORREL(CQ2:CQ52,CR2:CR52) -> 0.9541183178 | CS54: cc= | CT54: =CORREL(CT2:CT52,CU2:CU52) -> 0.9247743135 | CV54: cc= | CW54: =CORREL(CW2:CW52,CX2:CX52) -> 0.9097859397 | CY54: cc= | CZ54: =CORREL(CZ2:CZ52,DA2:DA52) -> 0.9721679738 | DB54: cc= | DC54: =CORREL(DC2:DC52,DD2:DD52) -> 0.9566763401 | DE54: cc= | DF54: =CORREL(DF2:DF52,DG2:DG52) -> 0.9471931191 | DH54: cc= | DI54: =CORREL(DI2:DI52,DJ2:DJ52) -> 0.9113069759 | DK54: cc= | DL54: =CORREL(DL2:DL52,DM2:DM52) -> 0.9652746428 | DN54: cc= | DO54: =CORREL(DO2:DO52,DP2:DP52) -> 0.8847579742 | DQ54: cc= | DR54: =CORREL(DR2:DR52,DS2:DS52) -> 0.8504477028 | DT54: cc= | DU54: =CORREL(DU2:DU52,DV2:DV52) -> 0.9668595884 | DW54: cc= | DX54: =CORREL(DX2:DX52,DY2:DY52) -> 0.9600182927 | DZ54: cc= | EA54: =CORREL(EA2:EA52,EB2:EB52) -> 0.9406681169 | EC54: cc= | ED54: =CORREL(ED2:ED52,EE2:EE52) -> 0.8269363926 | EF54: cc= | EG54: =CORREL(EG2:EG52,EH2:EH52) -> 0.9386759746 | EI54: cc= | EJ54: =CORREL(EJ2:EJ52,EK2:EK52) -> 0.916110789 | EL54: cc= | EM54: =CORREL(EM2:EM52,EN2:EN52) -> 0.9580357925 | EO54: cc= | EP54: =CORREL(EP2:EP52,EQ2:EQ52) -> 0.9226275292 | ER54: cc= | ES54: =CORREL(ES2:ES52,ET2:ET52) -> 0.9244538702 | EU54: cc= | EV54: =CORREL(EV2:EV52,EW2:EW52) -> 0.9218674033 | EX54: cc= | EY54: =IF(EX2="","",CORREL(EY2:EY52,EZ2:EZ52)) -> 0.8541425103 | FA54: cc= | FB54: =IF(FA2="","",CORREL(FB2:FB52,FC2:FC52)) -> 0.9210112855 | FD54: cc= | FE54: =IF(FD2="","",CORREL(FE2:FE52,FF2:FF52)) -> 0.946338271 | FG54: cc= | FH54: =IF(FG2="","",CORREL(FH2:FH52,FI2:FI52)) -> 0.9638556823 | FJ54: cc= | FK54: =IF(FJ2="","",CORREL(FK2:FK52,FL2:FL52)) -> 0.9128200201 | FM54: cc= | FN54: =IF(FM2="","",CORREL(FN2:FN52,FO2:FO52)) -> 0.9253501104 | FP54: cc= | FQ54: =IF(FP2="","",CORREL(FQ2:FQ52,FR2:FR52)) -> 0.9303400192 | FS54: cc= | FT54: =IF(FS2="","",CORREL(FT2:FT52,FU2:FU52)) -> 0.9294281833 | FV54: cc= | FW54: =IF(FV2="","",CORREL(FW2:FW52,FX2:FX52)) -> 0.9403826439 | FY54: cc= | FZ54: =IF(FY2="","",CORREL(FZ2:FZ52,GA2:GA52)) -> 0.7865729385 | GB54: cc= | GC54: =IF(GB2="","",CORREL(GC2:GC52,GD2:GD52)) -> 0.9284155527 | GE54: cc= | GF54: =IF(GE2="","",CORREL(GF2:GF52,GG2:GG52)) -> 0.9422522667 | GH54: cc= | GI54: =IF(GH2="","",CORREL(GI2:GI52,GJ2:GJ52)) -> 0.9458938027 | GK54: cc= | GL54: =IF(GK2="","",CORREL(GL2:GL52,GM2:GM52)) -> 0.9069077292 | GN54: cc= | GO54: =IF(GN2="","",CORREL(GO2:GO52,GP2:GP52)) -> 0.8653156721 | GQ54: cc= | GR54: =IF(GQ2="","",CORREL(GR2:GR52,GS2:GS52)) -> 0.9196105505 | GT54: cc= | GU54: =IF(GT2="","",CORREL(GU2:GU52,GV2:GV52)) -> 0.9156251479 | GW54: cc= | GX54: =IF(GW2="","",CORREL(GX2:GX52,GY2:GY52)) -> 0.9022594741 | GZ54: cc= | HA54: =IF(GZ2="","",CORREL(HA2:HA52,HB2:HB52)) -> 0.9296991193 | HC54: cc= | HD54: =IF(HC2="","",CORREL(HD2:HD52,HE2:HE52)) -> 0.9587412179 | HF54: cc= | HG54: =IF(HF2="","",CORREL(HG2:HG52,HH2:HH52)) -> 0.9356109997 | HI54: cc= | HJ54: =IF(HI2="","",CORREL(HJ2:HJ52,HK2:HK52)) -> 0.9074090214 | HL54: cc= | HM54: =IF(HL2="","",CORREL(HM2:HM52,HN2:HN52)) -> 0.9546736773 | HO54: cc= | HP54: =IF(HO2="","",CORREL(HP2:HP52,HQ2:HQ52)) -> 0.9679093608 | HR54: cc= | HS54: =IF(HR2="","",CORREL(HS2:HS52,HT2:HT52)) -> 0.9116301894 | HU54: cc= | HV54: =IF(HU2="","",CORREL(HV2:HV52,HW2:HW52)) -> 0.872888559 | HX54: cc= | HY54: =IF(HX2="","",CORREL(HY2:HY52,HZ2:HZ52)) -> 0.9467034571 | IA54: cc= | IB54: =IF(IA2="","",CORREL(IB2:IB52,IC2:IC52)) -> 0.959282154 | ID54: cc= | IE54: =IF(ID2="","",CORREL(IE2:IE52,IF2:IF52)) -> 0.9144467007 | IG54: cc= | IH54: =IF(IG2="","",CORREL(IH2:IH52,II2:II52)) -> 0.879806178 | IJ54: cc= | IK54: =IF(IJ2="","",CORREL(IK2:IK52,IL2:IL52)) -> 0.8996385572 | IM54: cc= | IN54: =IF(IM2="","",CORREL(IN2:IN52,IO2:IO52)) -> 0.9496638548 | IP54: cc= | IQ54: =IF(IP2="","",CORREL(IQ2:IQ52,IR2:IR52)) -> 0.9246208757 | IS54: cc= | IT54: =IF(IS2="","",CORREL(IT2:IT52,IU2:IU52)) -> 0.956914539 | IV54: =FE54 -> 0.946338271
A55: 54 | B55: 6.4843481 | C55: 10.3540317 | IV55: =FH54 -> 0.9638556823
A56: 55 | B56: 9.14722657 | C56: 9.71488637 | D56: sample | E56: 85 | G56: sample | H56: =E56+1 -> 86 | J56: sample | K56: =H56+1 -> 87 | M56: sample | N56: =K56+1 -> 88 | P56: sample | Q56: =N56+1 -> 89 | S56: sample | T56: =Q56+1 -> 90 | V56: sample | W56: =T56+1 -> 91 | Y56: sample | Z56: =W56+1 -> 92 | AB56: sample | AC56: =Z56+1 -> 93 | AE56: sample | AF56: =AC56+1 -> 94 | AH56: sample | AI56: =AF56+1 -> 95 | AK56: sample | AL56: =AI56+1 -> 96 | AN56: sample | AO56: =AL56+1 -> 97 | AQ56: sample | AR56: =AO56+1 -> 98 | AT56: sample | AU56: =AR56+1 -> 99 | AW56: sample | AX56: =AU56+1 -> 100 | AZ56: sample | BA56: =AX56+1 -> 101 | BC56: sample | BD56: =BA56+1 -> 102 | BF56: sample | BG56: =BD56+1 -> 103 | BI56: sample | BJ56: =BG56+1 -> 104 | BL56: sample | BM56: =BJ56+1 -> 105 | BO56: sample | BP56: =BM56+1 -> 106 | BR56: sample | BS56: =BP56+1 -> 107 | BU56: sample | BV56: =BS56+1 -> 108 | BX56: sample | BY56: =BV56+1 -> 109 | CA56: sample | CB56: =BY56+1 -> 110 | CD56: sample | CE56: =CB56+1 -> 111 | CG56: sample | CH56: =CE56+1 -> 112 | CJ56: sample | CK56: =CH56+1 -> 113 | CM56: sample | CN56: =CK56+1 -> 114 | CP56: sample | CQ56: =CN56+1 -> 115 | CS56: sample | CT56: =CQ56+1 -> 116 | CV56: sample | CW56: =CT56+1 -> 117 | CY56: sample | CZ56: =CW56+1 -> 118 | DB56: sample | DC56: =CZ56+1 -> 119 | DE56: sample | DF56: =DC56+1 -> 120 | DH56: sample | DI56: =DF56+1 -> 121 | DK56: sample | DL56: =DI56+1 -> 122 | DN56: sample | DO56: =DL56+1 -> 123 | DQ56: sample | DR56: =DO56+1 -> 124 | DT56: sample | DU56: =DR56+1 -> 125 | DW56: sample | DX56: =DU56+1 -> 126 | DZ56: sample | EA56: =DX56+1 -> 127 | EC56: sample | ED56: =EA56+1 -> 128 | EF56: sample | EG56: =ED56+1 -> 129 | EI56: sample | EJ56: =EG56+1 -> 130 | EL56: sample | EM56: =EJ56+1 -> 131 | EO56: sample | EP56: =EM56+1 -> 132 | ER56: sample | ES56: =EP56+1 -> 133 | EU56: sample | EV56: =ES56+1 -> 134 | EX56: sample | EY56: =EV56+1 -> 135 | FA56: sample | FB56: =EY56+1 -> 136 | FD56: sample | FE56: =FB56+1 -> 137 | FG56: sample | FH56: =FE56+1 -> 138 | FJ56: sample | FK56: =FH56+1 -> 139 | FM56: sample | FN56: =FK56+1 -> 140 | FP56: sample | FQ56: =FN56+1 -> 141 | FS56: sample | FT56: =FQ56+1 -> 142 | FV56: sample | FW56: =FT56+1 -> 143 | FY56: sample | FZ56: =FW56+1 -> 144 | GB56: sample | GC56: =FZ56+1 -> 145 | GE56: sample | GF56: =GC56+1 -> 146 | GH56: sample | GI56: =GF56+1 -> 147 | GK56: sample | GL56: =GI56+1 -> 148 | GN56: sample | GO56: =GL56+1 -> 149 | GQ56: sample | GR56: =GO56+1 -> 150 | GT56: sample | GU56: =GR56+1 -> 151 | GW56: sample | GX56: =GU56+1 -> 152 | GZ56: sample | HA56: =GX56+1 -> 153 | HC56: sample | HD56: =HA56+1 -> 154 | HF56: sample | HG56: =HD56+1 -> 155 | HI56: sample | HJ56: =HG56+1 -> 156 | HL56: sample | HM56: =HJ56+1 -> 157 | HO56: sample | HP56: =HM56+1 -> 158 | HR56: sample | HS56: =HP56+1 -> 159 | HU56: sample | HV56: =HS56+1 -> 160 | HX56: sample | HY56: =HV56+1 -> 161 | IA56: sample | IB56: =HY56+1 -> 162 | ID56: sample | IE56: =IB56+1 -> 163 | IG56: sample | IH56: =IE56+1 -> 164 | IJ56: sample | IK56: =IH56+1 -> 165 | IM56: sample | IN56: =IK56+1 -> 166 | IP56: sample | IQ56: =IN56+1 -> 167 | IS56: sample | IT56: =IQ56+1 -> 168 | IV56: =FK54 -> 0.9128200201
A57: 56 | B57: 0.84874672 | C57: 0.715629715 | D57: =IF(AND($A2<=n,E$56<=flips),INT(501*RAND()+1),"") -> 409 | E57: =IF(D57<>"",INDEX($B$2:$B$502,D57),"") -> 9.850359682 | F57: =IF(D57<>"",INDEX($C$2:$C$502,D57),"") -> 13.65602827 | G57: =IF(AND($A2<=n,H$56<=flips),INT(501*RAND()+1),"") -> 141 | H57: =IF(G57<>"",INDEX($B$2:$B$502,G57),"") -> 4.800506312 | I57: =IF(G57<>"",INDEX($C$2:$C$502,G57),"") -> 5.610688637 | J57: =IF(AND($A2<=n,K$56<=flips),INT(501*RAND()+1),"") -> 490 | K57: =IF(J57<>"",INDEX($B$2:$B$502,J57),"") -> 0.7545066176 | L57: =IF(J57<>"",INDEX($C$2:$C$502,J57),"") -> -0.1220050074 | M57: =IF(AND($A2<=n,N$56<=flips),INT(501*RAND()+1),"") -> 206 | N57: =IF(M57<>"",INDEX($B$2:$B$502,M57),"") -> 6.572777827 | O57: =IF(M57<>"",INDEX($C$2:$C$502,M57),"") -> 8.747598583 | P57: =IF(AND($A2<=n,Q$56<=flips),INT(501*RAND()+1),"") -> 337 | Q57: =IF(P57<>"",INDEX($B$2:$B$502,P57),"") -> 6.900886764 | R57: =IF(P57<>"",INDEX($C$2:$C$502,P57),"") -> 10.20440911 | S57: =IF(AND($A2<=n,T$56<=flips),INT(501*RAND()+1),"") -> 127 | T57: =IF(S57<>"",INDEX($B$2:$B$502,S57),"") -> 6.346243302 | U57: =IF(S57<>"",INDEX($C$2:$C$502,S57),"") -> 11.08876583 | V57: =IF(AND($A2<=n,W$56<=flips),INT(501*RAND()+1),"") -> 308 | W57: =IF(V57<>"",INDEX($B$2:$B$502,V57),"") -> 0.8614081392 | X57: =IF(V57<>"",INDEX($C$2:$C$502,V57),"") -> 2.89773469 | Y57: =IF(AND($A2<=n,Z$56<=flips),INT(501*RAND()+1),"") -> 158 | Z57: =IF(Y57<>"",INDEX($B$2:$B$502,Y57),"") -> 6.576493163 | AA57: =IF(Y57<>"",INDEX($C$2:$C$502,Y57),"") -> 13.21882269 | AB57: =IF(AND($A2<=n,AC$56<=flips),INT(501*RAND()+1),"") -> 36 | AC57: =IF(AB57<>"",INDEX($B$2:$B$502,AB57),"") -> 1.66489539 | AD57: =IF(AB57<>"",INDEX($C$2:$C$502,AB57),"") -> 1.82337856 | AE57: =IF(AND($A2<=n,AF$56<=flips),INT(501*RAND()+1),"") -> 49 | AF57: =IF(AE57<>"",INDEX($B$2:$B$502,AE57),"") -> 1.22022199 | AG57: =IF(AE57<>"",INDEX($C$2:$C$502,AE57),"") -> -2.85875217 | AH57: =IF(AND($A2<=n,AI$56<=flips),INT(501*RAND()+1),"") -> 122 | AI57: =IF(AH57<>"",INDEX($B$2:$B$502,AH57),"") -> 7.182313271 | AJ57: =IF(AH57<>"",INDEX($C$2:$C$502,AH57),"") -> 9.864613996 | AK57: =IF(AND($A2<=n,AL$56<=flips),INT(501*RAND()+1),"") -> 52 | AL57: =IF(AK57<>"",INDEX($B$2:$B$502,AK57),"") -> 8.42129982 | AM57: =IF(AK57<>"",INDEX($C$2:$C$502,AK57),"") -> 10.24603712 | AN57: =IF(AND($A2<=n,AO$56<=flips),INT(501*RAND()+1),"") -> 107 | AO57: =IF(AN57<>"",INDEX($B$2:$B$502,AN57),"") -> 1.14052562 | AP57: =IF(AN57<>"",INDEX($C$2:$C$502,AN57),"") -> 1.012054609 | AQ57: =IF(AND($A2<=n,AR$56<=flips),INT(501*RAND()+1),"") -> 409 | AR57: =IF(AQ57<>"",INDEX($B$2:$B$502,AQ57),"") -> 9.850359682 | AS57: =IF(AQ57<>"",INDEX($C$2:$C$502,AQ57),"") -> 13.65602827 | AT57: =IF(AND($A2<=n,AU$56<=flips),INT(501*RAND()+1),"") -> 284 | AU57: =IF(AT57<>"",INDEX($B$2:$B$502,AT57),"") -> 7.818623012 | AV57: =IF(AT57<>"",INDEX($C$2:$C$502,AT57),"") -> 14.28801044 | AW57: =IF(AND($A2<=n,AX$56<=flips),INT(501*RAND()+1),"") -> 485 | AX57: =IF(AW57<>"",INDEX($B$2:$B$502,AW57),"") -> 2.879562454 | AY57: =IF(AW57<>"",INDEX($C$2:$C$502,AW57),"") -> 5.363452296 | AZ57: =IF(AND($A2<=n,BA$56<=flips),INT(501*RAND()+1),"") -> 387 | BA57: =IF(AZ57<>"",INDEX($B$2:$B$502,AZ57),"") -> 9.50044315 | BB57: =IF(AZ57<>"",INDEX($C$2:$C$502,AZ57),"") -> 12.75987321 | BC57: =IF(AND($A2<=n,BD$56<=flips),INT(501*RAND()+1),"") -> 183 | BD57: =IF(BC57<>"",INDEX($B$2:$B$502,BC57),"") -> 2.321756073 | BE57: =IF(BC57<>"",INDEX($C$2:$C$502,BC57),"") -> 2.924827135 | BF57: =IF(AND($A2<=n,BG$56<=flips),INT(501*RAND()+1),"") -> 196 | BG57: =IF(BF57<>"",INDEX($B$2:$B$502,BF57),"") -> 0.7680377099 | BH57: =IF(BF57<>"",INDEX($C$2:$C$502,BF57),"") -> -0.1752951546 | BI57: =IF(AND($A2<=n,BJ$56<=flips),INT(501*RAND()+1),"") -> 347 | BJ57: =IF(BI57<>"",INDEX($B$2:$B$502,BI57),"") -> 6.324796 | BK57: =IF(BI57<>"",INDEX($C$2:$C$502,BI57),"") -> 7.868572822 | BL57: =IF(AND($A2<=n,BM$56<=flips),INT(501*RAND()+1),"") -> 258 | BM57: =IF(BL57<>"",INDEX($B$2:$B$502,BL57),"") -> 1.239488249 | BN57: =IF(BL57<>"",INDEX($C$2:$C$502,BL57),"") -> 0.733556646 | BO57: =IF(AND($A2<=n,BP$56<=flips),INT(501*RAND()+1),"") -> 7 | BP57: =IF(BO57<>"",INDEX($B$2:$B$502,BO57),"") -> 5.57186894 | BQ57: =IF(BO57<>"",INDEX($C$2:$C$502,BO57),"") -> 3.42029568 | BR57: =IF(AND($A2<=n,BS$56<=flips),INT(501*RAND()+1),"") -> 120 | BS57: =IF(BR57<>"",INDEX($B$2:$B$502,BR57),"") -> 0.3535435374 | BT57: =IF(BR57<>"",INDEX($C$2:$C$502,BR57),"") -> -1.073164342 | BU57: =IF(AND($A2<=n,BV$56<=flips),INT(501*RAND()+1),"") -> 292 | BV57: =IF(BU57<>"",INDEX($B$2:$B$502,BU57),"") -> 3.061066028 | BW57: =IF(BU57<>"",INDEX($C$2:$C$502,BU57),"") -> 8.188867168 | BX57: =IF(AND($A2<=n,BY$56<=flips),INT(501*RAND()+1),"") -> 216 | BY57: =IF(BX57<>"",INDEX($B$2:$B$502,BX57),"") -> 7.890382852 | BZ57: =IF(BX57<>"",INDEX($C$2:$C$502,BX57),"") -> 6.741540801 | CA57: =IF(AND($A2<=n,CB$56<=flips),INT(501*RAND()+1),"") -> 283 | CB57: =IF(CA57<>"",INDEX($B$2:$B$502,CA57),"") -> 6.18427252 | CC57: =IF(CA57<>"",INDEX($C$2:$C$502,CA57),"") -> 7.808466477 | CD57: =IF(AND($A2<=n,CE$56<=flips),INT(501*RAND()+1),"") -> 474 | CE57: =IF(CD57<>"",INDEX($B$2:$B$502,CD57),"") -> 6.176780383 | CF57: =IF(CD57<>"",INDEX($C$2:$C$502,CD57),"") -> 11.11810267 | CG57: =IF(AND($A2<=n,CH$56<=flips),INT(501*RAND()+1),"") -> 91 | CH57: =IF(CG57<>"",INDEX($B$2:$B$502,CG57),"") -> 4.4224596 | CI57: =IF(CG57<>"",INDEX($C$2:$C$502,CG57),"") -> 7.08149033 | CJ57: =IF(AND($A2<=n,CK$56<=flips),INT(501*RAND()+1),"") -> 417 | CK57: =IF(CJ57<>"",INDEX($B$2:$B$502,CJ57),"") -> 7.338660302 | CL57: =IF(CJ57<>"",INDEX($C$2:$C$502,CJ57),"") -> 15.29587208 | CM57: =IF(AND($A2<=n,CN$56<=flips),INT(501*RAND()+1),"") -> 129 | CN57: =IF(CM57<>"",INDEX($B$2:$B$502,CM57),"") -> 3.40214906 | CO57: =IF(CM57<>"",INDEX($C$2:$C$502,CM57),"") -> 7.329144141 | CP57: =IF(AND($A2<=n,CQ$56<=flips),INT(501*RAND()+1),"") -> 252 | CQ57: =IF(CP57<>"",INDEX($B$2:$B$502,CP57),"") -> 2.670225027 | CR57: =IF(CP57<>"",INDEX($C$2:$C$502,CP57),"") -> 2.925908317 | CS57: =IF(AND($A2<=n,CT$56<=flips),INT(501*RAND()+1),"") -> 39 | CT57: =IF(CS57<>"",INDEX($B$2:$B$502,CS57),"") -> 2.77939124 | CU57: =IF(CS57<>"",INDEX($C$2:$C$502,CS57),"") -> 5.31050283 | CV57: =IF(AND($A2<=n,CW$56<=flips),INT(501*RAND()+1),"") -> 455 | CW57: =IF(CV57<>"",INDEX($B$2:$B$502,CV57),"") -> 6.07526398 | CX57: =IF(CV57<>"",INDEX($C$2:$C$502,CV57),"") -> 11.28246175 | CY57: =IF(AND($A2<=n,CZ$56<=flips),INT(501*RAND()+1),"") -> 491 | CZ57: =IF(CY57<>"",INDEX($B$2:$B$502,CY57),"") -> 5.400268075 | DA57: =IF(CY57<>"",INDEX($C$2:$C$502,CY57),"") -> 9.32922091 | DB57: =IF(AND($A2<=n,DC$56<=flips),INT(501*RAND()+1),"") -> 315 | DC57: =IF(DB57<>"",INDEX($B$2:$B$502,DB57),"") -> 8.93552466 | DD57: =IF(DB57<>"",INDEX($C$2:$C$502,DB57),"") -> 15.39354821 | DE57: =IF(AND($A2<=n,DF$56<=flips),INT(501*RAND()+1),"") -> 216 | DF57: =IF(DE57<>"",INDEX($B$2:$B$502,DE57),"") -> 7.890382852 | DG57: =IF(DE57<>"",INDEX($C$2:$C$502,DE57),"") -> 6.741540801 | DH57: =IF(AND($A2<=n,DI$56<=flips),INT(501*RAND()+1),"") -> 198 | DI57: =IF(DH57<>"",INDEX($B$2:$B$502,DH57),"") -> 6.01787814 | DJ57: =IF(DH57<>"",INDEX($C$2:$C$502,DH57),"") -> 7.387096473 | DK57: =IF(AND($A2<=n,DL$56<=flips),INT(501*RAND()+1),"") -> 433 | DL57: =IF(DK57<>"",INDEX($B$2:$B$502,DK57),"") -> 3.274415857 | DM57: =IF(DK57<>"",INDEX($C$2:$C$502,DK57),"") -> 6.784316827 | DN57: =IF(AND($A2<=n,DO$56<=flips),INT(501*RAND()+1),"") -> 261 | DO57: =IF(DN57<>"",INDEX($B$2:$B$502,DN57),"") -> 9.007457762 | DP57: =IF(DN57<>"",INDEX($C$2:$C$502,DN57),"") -> 13.25375122 | DQ57: =IF(AND($A2<=n,DR$56<=flips),INT(501*RAND()+1),"") -> 462 | DR57: =IF(DQ57<>"",INDEX($B$2:$B$502,DQ57),"") -> 1.005958156 | DS57: =IF(DQ57<>"",INDEX($C$2:$C$502,DQ57),"") -> 0.1279779159 | DT57: =IF(AND($A2<=n,DU$56<=flips),INT(501*RAND()+1),"") -> 255 | DU57: =IF(DT57<>"",INDEX($B$2:$B$502,DT57),"") -> 4.550639386 | DV57: =IF(DT57<>"",INDEX($C$2:$C$502,DT57),"") -> 5.838884714 | DW57: =IF(AND($A2<=n,DX$56<=flips),INT(501*RAND()+1),"") -> 101 | DX57: =IF(DW57<>"",INDEX($B$2:$B$502,DW57),"") -> 5.445845676 | DY57: =IF(DW57<>"",INDEX($C$2:$C$502,DW57),"") -> 6.668110029 | DZ57: =IF(AND($A2<=n,EA$56<=flips),INT(501*RAND()+1),"") -> 357 | EA57: =IF(DZ57<>"",INDEX($B$2:$B$502,DZ57),"") -> 6.490032108 | EB57: =IF(DZ57<>"",INDEX($C$2:$C$502,DZ57),"") -> 13.12021971 | EC57: =IF(AND($A2<=n,ED$56<=flips),INT(501*RAND()+1),"") -> 68 | ED57: =IF(EC57<>"",INDEX($B$2:$B$502,EC57),"") -> 4.59207945 | EE57: =IF(EC57<>"",INDEX($C$2:$C$502,EC57),"") -> 2.43433646 | EF57: =IF(AND($A2<=n,EG$56<=flips),INT(501*RAND()+1),"") -> 381 | EG57: =IF(EF57<>"",INDEX($B$2:$B$502,EF57),"") -> 9.131934317 | EH57: =IF(EF57<>"",INDEX($C$2:$C$502,EF57),"") -> 12.55291319 | EI57: =IF(AND($A2<=n,EJ$56<=flips),INT(501*RAND()+1),"") -> 78 | EJ57: =IF(EI57<>"",INDEX($B$2:$B$502,EI57),"") -> 5.7589141 | EK57: =IF(EI57<>"",INDEX($C$2:$C$502,EI57),"") -> 6.31902082 | EL57: =IF(AND($A2<=n,EM$56<=flips),INT(501*RAND()+1),"") -> 368 | EM57: =IF(EL57<>"",INDEX($B$2:$B$502,EL57),"") -> 4.420517322 | EN57: =IF(EL57<>"",INDEX($C$2:$C$502,EL57),"") -> 5.404310704 | EO57: =IF(AND($A2<=n,EP$56<=flips),INT(501*RAND()+1),"") -> 351 | EP57: =IF(EO57<>"",INDEX($B$2:$B$502,EO57),"") -> 7.293595837 | EQ57: =IF(EO57<>"",INDEX($C$2:$C$502,EO57),"") -> 9.629381538 | ER57: =IF(AND($A2<=n,ES$56<=flips),INT(501*RAND()+1),"") -> 401 | ES57: =IF(ER57<>"",INDEX($B$2:$B$502,ER57),"") -> 2.487477645 | ET57: =IF(ER57<>"",INDEX($C$2:$C$502,ER57),"") -> 2.554848882 | EU57: =IF(AND($A2<=n,EV$56<=flips),INT(501*RAND()+1),"") -> 61 | EV57: =IF(EU57<>"",INDEX($B$2:$B$502,EU57),"") -> 5.68622801 | EW57: =IF(EU57<>"",INDEX($C$2:$C$502,EU57),"") -> 9.69014381 | EX57: =IF(AND($A2<=n,EY$56<=flips),INT(501*RAND()+1),"") -> 421 | EY57: =IF(EX57<>"",INDEX($B$2:$B$502,EX57),"") -> 0.5466026595 | EZ57: =IF(EX57<>"",INDEX($C$2:$C$502,EX57),"") -> -0.1865322591 | FA57: =IF(AND($A2<=n,FB$56<=flips),INT(501*RAND()+1),"") -> 155 | FB57: =IF(FA57<>"",INDEX($B$2:$B$502,FA57),"") -> 4.825641159 | FC57: =IF(FA57<>"",INDEX($C$2:$C$502,FA57),"") -> 6.160031288 | FD57: =IF(AND($A2<=n,FE$56<=flips),INT(501*RAND()+1),"") ->  | FE57: =IF(FD57<>"",INDEX($B$2:$B$502,FD57),"") ->  | FF57: =IF(FD57<>"",INDEX($C$2:$C$502,FD57),"") ->  | FG57: =IF(AND($A2<=n,FH$56<=flips),INT(501*RAND()+1),"") ->  | FH57: =IF(FG57<>"",INDEX($B$2:$B$502,FG57),"") ->  | FI57: =IF(FG57<>"",INDEX($C$2:$C$502,FG57),"") ->  | FJ57: =IF(AND($A2<=n,FK$56<=flips),INT(501*RAND()+1),"") ->  | FK57: =IF(FJ57<>"",INDEX($B$2:$B$502,FJ57),"") ->  | FL57: =IF(FJ57<>"",INDEX($C$2:$C$502,FJ57),"") ->  | FM57: =IF(AND($A2<=n,FN$56<=flips),INT(501*RAND()+1),"") ->  | FN57: =IF(FM57<>"",INDEX($B$2:$B$502,FM57),"") ->  | FO57: =IF(FM57<>"",INDEX($C$2:$C$502,FM57),"") ->  | FP57: =IF(AND($A2<=n,FQ$56<=flips),INT(501*RAND()+1),"") ->  | FQ57: =IF(FP57<>"",INDEX($B$2:$B$502,FP57),"") ->  | FR57: =IF(FP57<>"",INDEX($C$2:$C$502,FP57),"") ->  | FS57: =IF(AND($A2<=n,FT$56<=flips),INT(501*RAND()+1),"") ->  | FT57: =IF(FS57<>"",INDEX($B$2:$B$502,FS57),"") ->  | FU57: =IF(FS57<>"",INDEX($C$2:$C$502,FS57),"") ->  | FV57: =IF(AND($A2<=n,FW$56<=flips),INT(501*RAND()+1),"") ->  | FW57: =IF(FV57<>"",INDEX($B$2:$B$502,FV57),"") ->  | FX57: =IF(FV57<>"",INDEX($C$2:$C$502,FV57),"") ->  | FY57: =IF(AND($A2<=n,FZ$56<=flips),INT(501*RAND()+1),"") ->  | FZ57: =IF(FY57<>"",INDEX($B$2:$B$502,FY57),"") ->  | GA57: =IF(FY57<>"",INDEX($C$2:$C$502,FY57),"") ->  | GB57: =IF(AND($A2<=n,GC$56<=flips),INT(501*RAND()+1),"") ->  | GC57: =IF(GB57<>"",INDEX($B$2:$B$502,GB57),"") ->  | GD57: =IF(GB57<>"",INDEX($C$2:$C$502,GB57),"") ->  | GE57: =IF(AND($A2<=n,GF$56<=flips),INT(501*RAND()+1),"") ->  | GF57: =IF(GE57<>"",INDEX($B$2:$B$502,GE57),"") ->  | GG57: =IF(GE57<>"",INDEX($C$2:$C$502,GE57),"") ->  | GH57: =IF(AND($A2<=n,GI$56<=flips),INT(501*RAND()+1),"") ->  | GI57: =IF(GH57<>"",INDEX($B$2:$B$502,GH57),"") ->  | GJ57: =IF(GH57<>"",INDEX($C$2:$C$502,GH57),"") ->  | GK57: =IF(AND($A2<=n,GL$56<=flips),INT(501*RAND()+1),"") ->  | GL57: =IF(GK57<>"",INDEX($B$2:$B$502,GK57),"") ->  | GM57: =IF(GK57<>"",INDEX($C$2:$C$502,GK57),"") ->  | GN57: =IF(AND($A2<=n,GO$56<=flips),INT(501*RAND()+1),"") ->  | GO57: =IF(GN57<>"",INDEX($B$2:$B$502,GN57),"") ->  | GP57: =IF(GN57<>"",INDEX($C$2:$C$502,GN57),"") ->  | GQ57: =IF(AND($A2<=n,GR$56<=flips),INT(501*RAND()+1),"") ->  | GR57: =IF(GQ57<>"",INDEX($B$2:$B$502,GQ57),"") ->  | GS57: =IF(GQ57<>"",INDEX($C$2:$C$502,GQ57),"") ->  | GT57: =IF(AND($A2<=n,GU$56<=flips),INT(501*RAND()+1),"") ->  | GU57: =IF(GT57<>"",INDEX($B$2:$B$502,GT57),"") ->  | GV57: =IF(GT57<>"",INDEX($C$2:$C$502,GT57),"") ->  | GW57: =IF(AND($A2<=n,GX$56<=flips),INT(501*RAND()+1),"") ->  | GX57: =IF(GW57<>"",INDEX($B$2:$B$502,GW57),"") ->  | GY57: =IF(GW57<>"",INDEX($C$2:$C$502,GW57),"") ->  | GZ57: =IF(AND($A2<=n,HA$56<=flips),INT(501*RAND()+1),"") ->  | HA57: =IF(GZ57<>"",INDEX($B$2:$B$502,GZ57),"") ->  | HB57: =IF(GZ57<>"",INDEX($C$2:$C$502,GZ57),"") ->  | HC57: =IF(AND($A2<=n,HD$56<=flips),INT(501*RAND()+1),"") ->  | HD57: =IF(HC57<>"",INDEX($B$2:$B$502,HC57),"") ->  | HE57: =IF(HC57<>"",INDEX($C$2:$C$502,HC57),"") ->  | HF57: =IF(AND($A2<=n,HG$56<=flips),INT(501*RAND()+1),"") ->  | HG57: =IF(HF57<>"",INDEX($B$2:$B$502,HF57),"") ->  | HH57: =IF(HF57<>"",INDEX($C$2:$C$502,HF57),"") ->  | HI57: =IF(AND($A2<=n,HJ$56<=flips),INT(501*RAND()+1),"") ->  | HJ57: =IF(HI57<>"",INDEX($B$2:$B$502,HI57),"") ->  | HK57: =IF(HI57<>"",INDEX($C$2:$C$502,HI57),"") ->  | HL57: =IF(AND($A2<=n,HM$56<=flips),INT(501*RAND()+1),"") ->  | HM57: =IF(HL57<>"",INDEX($B$2:$B$502,HL57),"") ->  | HN57: =IF(HL57<>"",INDEX($C$2:$C$502,HL57),"") ->  | HO57: =IF(AND($A2<=n,HP$56<=flips),INT(501*RAND()+1),"") ->  | HP57: =IF(HO57<>"",INDEX($B$2:$B$502,HO57),"") ->  | HQ57: =IF(HO57<>"",INDEX($C$2:$C$502,HO57),"") ->  | HR57: =IF(AND($A2<=n,HS$56<=flips),INT(501*RAND()+1),"") ->  | HS57: =IF(HR57<>"",INDEX($B$2:$B$502,HR57),"") ->  | HT57: =IF(HR57<>"",INDEX($C$2:$C$502,HR57),"") ->  | HU57: =IF(AND($A2<=n,HV$56<=flips),INT(501*RAND()+1),"") ->  | HV57: =IF(HU57<>"",INDEX($B$2:$B$502,HU57),"") ->  | HW57: =IF(HU57<>"",INDEX($C$2:$C$502,HU57),"") ->  | HX57: =IF(AND($A2<=n,HY$56<=flips),INT(501*RAND()+1),"") ->  | HY57: =IF(HX57<>"",INDEX($B$2:$B$502,HX57),"") ->  | HZ57: =IF(HX57<>"",INDEX($C$2:$C$502,HX57),"") ->  | IA57: =IF(AND($A2<=n,IB$56<=flips),INT(501*RAND()+1),"") ->  | IB57: =IF(IA57<>"",INDEX($B$2:$B$502,IA57),"") ->  | IC57: =IF(IA57<>"",INDEX($C$2:$C$502,IA57),"") ->  | ID57: =IF(AND($A2<=n,IE$56<=flips),INT(501*RAND()+1),"") ->  | IE57: =IF(ID57<>"",INDEX($B$2:$B$502,ID57),"") ->  | IF57: =IF(ID57<>"",INDEX($C$2:$C$502,ID57),"") ->  | IG57: =IF(AND($A2<=n,IH$56<=flips),INT(501*RAND()+1),"") ->  | IH57: =IF(IG57<>"",INDEX($B$2:$B$502,IG57),"") ->  | II57: =IF(IG57<>"",INDEX($C$2:$C$502,IG57),"") ->  | IJ57: =IF(AND($A2<=n,IK$56<=flips),INT(501*RAND()+1),"") ->  | IK57: =IF(IJ57<>"",INDEX($B$2:$B$502,IJ57),"") ->  | IL57: =IF(IJ57<>"",INDEX($C$2:$C$502,IJ57),"") ->  | IM57: =IF(AND($A2<=n,IN$56<=flips),INT(501*RAND()+1),"") ->  | IN57: =IF(IM57<>"",INDEX($B$2:$B$502,IM57),"") ->  | IO57: =IF(IM57<>"",INDEX($C$2:$C$502,IM57),"") ->  | IP57: =IF(AND($A2<=n,IQ$56<=flips),INT(501*RAND()+1),"") ->  | IQ57: =IF(IP57<>"",INDEX($B$2:$B$502,IP57),"") ->  | IR57: =IF(IP57<>"",INDEX($C$2:$C$502,IP57),"") ->  | IS57: =IF(AND($A2<=n,IT$56<=flips),INT(501*RAND()+1),"") ->  | IT57: =IF(IS57<>"",INDEX($B$2:$B$502,IS57),"") ->  | IU57: =IF(IS57<>"",INDEX($C$2:$C$502,IS57),"") ->  | IV57: =FN54 -> 0.9253501104
A58: 57 | B58: 4.4389659 | C58: 2.81245038 | D58: 79 | E58: =IF(D58<>"",INDEX($B$2:$B$502,D58),"") -> 1.39826337 | F58: =IF(D58<>"",INDEX($C$2:$C$502,D58),"") -> 1.12138749 | G58: 40 | H58: 8.07864525 | I58: 8.03795487 | J58: 26 | K58: 8.43104463 | L58: 11.3286742 | M58: 289 | N58: 9.155854659 | O58: 13.34545517 | P58: 178 | Q58: 7.251810584 | R58: 11.87564702 | S58: 459 | T58: 3.606810594 | U58: 4.098366811 | V58: 340 | W58: 1.799892287 | X58: 1.859591207 | Y58: 284 | Z58: 7.818623012 | AA58: 14.28801044 | AB58: 86 | AC58: 1.25997063 | AD58: 0.880998895 | AE58: 126 | AF58: 8.834973268 | AG58: 11.91770108 | AH58: 462 | AI58: 1.005958156 | AJ58: 0.1279779159 | AK58: 400 | AL58: 1.392814532 | AM58: 4.642694218 | AN58: 337 | AO58: 6.900886764 | AP58: 10.20440911 | AQ58: 320 | AR58: 8.687714618 | AS58: 15.23353526 | AT58: 68 | AU58: 4.59207945 | AV58: 2.43433646 | AW58: 284 | AX58: 7.818623012 | AY58: 14.28801044 | AZ58: 332 | BA58: 0.6180184208 | BB58: 1.242401963 | BC58: 259 | BD58: 6.523956287 | BE58: 8.547004043 | BF58: 188 | BG58: 0.09134565558 | BH58: -1.467150419 | BI58: 231 | BJ58: 6.589376396 | BK58: 8.971115924 | BL58: 78 | BM58: 5.7589141 | BN58: 6.31902082 | BO58: 157 | BP58: 7.281089293 | BQ58: 9.735038872 | BR58: 185 | BS58: 8.169997321 | BT58: 11.34178243 | BU58: 407 | BV58: 9.457898032 | BW58: 13.16265353 | BX58: 163 | BY58: 5.493235531 | BZ58: 8.865620796 | CA58: 57 | CB58: 4.4389659 | CC58: 2.81245038 | CD58: 249 | CE58: 9.80191764 | CF58: 16.65592597 | CG58: 70 | CH58: 1.423125 | CI58: 0.646345121 | CJ58: 480 | CK58: 8.279630606 | CL58: 11.0342258 | CM58: 340 | CN58: 1.799892287 | CO58: 1.859591207 | CP58: 181 | CQ58: 6.289004383 | CR58: 12.75129234 | CS58: 119 | CT58: 4.16612675 | CU58: 7.437545505 | CV58: 211 | CW58: 4.968910103 | CX58: 6.516151621 | CY58: 440 | CZ58: 9.908334403 | DA58: 14.03019626 | DB58: 158 | DC58: 6.576493163 | DD58: 13.21882269 | DE58: 395 | DF58: 7.826619217 | DG58: 10.13472144 | DH58: 475 | DI58: 7.913844215 | DJ58: 10.70302079 | DK58: 153 | DL58: 3.238454736 | DM58: 4.354441304 | DN58: 311 | DO58: 9.873277629 | DP58: 13.3993579 | DQ58: 26 | DR58: 8.43104463 | DS58: 11.3286742 | DT58: 46 | DU58: 6.94092202 | DV58: 6.74365555 | DW58: 414 | DX58: 2.795053785 | DY58: 4.507392892 | DZ58: 497 | EA58: 0.2208640332 | EB58: -1.369036123 | EC58: 172 | ED58: 7.31031285 | EE58: 10.56882332 | EF58: 428 | EG58: 4.325001095 | EH58: 5.070870255 | EI58: 443 | EJ58: 9.640023234 | EK58: 14.71434734 | EL58: 188 | EM58: 0.09134565558 | EN58: -1.467150419 | EO58: 469 | EP58: 9.413159238 | EQ58: 13.25105176 | ER58: 277 | ES58: 5.220468369 | ET58: 8.113977016 | EU58: 406 | EV58: 6.117424329 | EW58: 11.63591888 | EX58: 81 | EY58: 5.5414156 | EZ58: 8.21511411 | FA58: 482 | FB58: 5.814914671 | FC58: 7.78950537 | IV58: =FQ54 -> 0.9303400192
A59: 58 | B59: 5.9462981 | C59: 9.71863808 | D59: 268 | E59: 4.805000123 | F59: 6.178547716 | G59: 295 | H59: 5.360451804 | I59: 8.172456847 | J59: 154 | K59: 9.837375533 | L59: 15.80117633 | M59: 234 | N59: 1.133008382 | O59: 3.932983308 | P59: 75 | Q59: 4.48220544 | R59: 4.67629661 | S59: 138 | T59: 7.241567808 | U59: 9.575507065 | V59: 181 | W59: 6.289004383 | X59: 12.75129234 | Y59: 18 | Z59: 6.2052832 | AA59: 8.9630256 | AB59: 337 | AC59: 6.900886764 | AD59: 10.20440911 | AE59: 282 | AF59: 7.39346008 | AG59: 12.65488959 | AH59: 396 | AI59: 8.227863763 | AJ59: 11.78531089 | AK59: 209 | AL59: 5.442971283 | AM59: 7.625845857 | AN59: 191 | AO59: 8.862057696 | AP59: 12.36862636 | AQ59: 445 | AR59: 6.911595518 | AS59: 9.498922387 | AT59: 484 | AU59: 4.004509415 | AV59: 5.725778105 | AW59: 358 | AX59: 6.864464443 | AY59: 9.27752281 | AZ59: 55 | BA59: 9.14722657 | BB59: 9.71488637 | BC59: 286 | BD59: 0.1544658321 | BE59: -0.8391181197 | BF59: 499 | BG59: 6.162694315 | BH59: 9.958051254 | BI59: 52 | BJ59: 8.42129982 | BK59: 10.24603712 | BL59: 171 | BM59: 8.778074625 | BN59: 13.50642065 | BO59: 274 | BP59: 3.026255872 | BQ59: 9.169401729 | BR59: 46 | BS59: 6.94092202 | BT59: 6.74365555 | BU59: 30 | BV59: 3.60214925 | BW59: 6.04667724 | BX59: 139 | BY59: 3.54670902 | BZ59: 8.890824402 | CA59: 369 | CB59: 6.965849474 | CC59: 9.498295911 | CD59: 456 | CE59: 9.057933881 | CF59: 14.24205924 | CG59: 94 | CH59: 6.26208838 | CI59: 10.6125892 | CJ59: 165 | CK59: 3.040116362 | CL59: 3.583370544 | CM59: 421 | CN59: 0.5466026595 | CO59: -0.1865322591 | CP59: 196 | CQ59: 0.7680377099 | CR59: -0.1752951546 | CS59: 167 | CT59: 5.694993418 | CU59: 7.587259181 | CV59: 228 | CW59: 2.56348509 | CX59: 2.476851699 | CY59: 59 | CZ59: 0.119493964 | DA59: -4.58243463 | DB59: 334 | DC59: 0.1426316555 | DD59: -0.7878630769 | DE59: 134 | DF59: 9.150091434 | DG59: 14.55331338 | DH59: 320 | DI59: 8.687714618 | DJ59: 15.23353526 | DK59: 280 | DL59: 4.696012252 | DM59: 6.343121289 | DN59: 200 | DO59: 4.007136933 | DP59: 5.814902586 | DQ59: 149 | DR59: 8.090021663 | DS59: 10.60334957 | DT59: 44 | DU59: 2.51870786 | DV59: 3.95381 | DW59: 76 | DX59: 4.3412922 | DY59: 4.0240331 | DZ59: 16 | EA59: 1.20622191 | EB59: -1.56819643 | EC59: 499 | ED59: 6.162694315 | EE59: 9.958051254 | EF59: 304 | EG59: 7.952560467 | EH59: 9.837411445 | EI59: 7 | EJ59: 5.57186894 | EK59: 3.42029568 | EL59: 349 | EM59: 4.99668919 | EN59: 6.064861197 | EO59: 426 | EP59: 4.53261845 | EQ59: 7.265817564 | ER59: 277 | ES59: 5.220468369 | ET59: 8.113977016 | EU59: 338 | EV59: 6.139911704 | EW59: 8.221082624 | EX59: 138 | EY59: 7.241567808 | EZ59: 9.575507065 | FA59: 246 | FB59: 2.596367965 | FC59: 8.656875039 | IV59: =FT54 -> 0.9294281833
A60: 59 | B60: 0.119493964 | C60: -4.58243463 | D60: 75 | E60: 4.48220544 | F60: 4.67629661 | G60: 20 | H60: 8.97702256 | I60: 12.3319163 | J60: 395 | K60: 7.826619217 | L60: 10.13472144 | M60: 489 | N60: 2.356217366 | O60: 3.386803926 | P60: 315 | Q60: 8.93552466 | R60: 15.39354821 | S60: 85 | T60: 1.82822638 | U60: -2.92768506 | V60: 224 | W60: 8.850093268 | X60: 12.1058805 | Y60: 206 | Z60: 6.572777827 | AA60: 8.747598583 | AB60: 96 | AC60: 4.82454293 | AD60: 3.85889457 | AE60: 121 | AF60: 4.272841113 | AG60: 5.220618265 | AH60: 324 | AI60: 4.355816874 | AJ60: 7.801517983 | AK60: 161 | AL60: 4.382051539 | AM60: 4.936514723 | AN60: 369 | AO60: 6.965849474 | AP60: 9.498295911 | AQ60: 461 | AR60: 4.884585275 | AS60: 6.634864362 | AT60: 285 | AU60: 6.662071448 | AV60: 9.632167559 | AW60: 65 | AX60: 2.17258428 | AY60: -0.318387121 | AZ60: 408 | BA60: 4.568184901 | BB60: 5.960812926 | BC60: 82 | BD60: 5.18564613 | BE60: 7.96590089 | BF60: 116 | BG60: 5.325049375 | BH60: 11.29006282 | BI60: 71 | BJ60: 5.25211799 | BK60: 8.95341605 | BL60: 448 | BM60: 4.993158858 | BN60: 7.267460034 | BO60: 326 | BP60: 0.7666741114 | BQ60: 2.163013737 | BR60: 488 | BS60: 1.429231249 | BT60: 3.538179942 | BU60: 489 | BV60: 2.356217366 | BW60: 3.386803926 | BX60: 429 | BY60: 0.8415084968 | BZ60: 1.046254156 | CA60: 421 | CB60: 0.5466026595 | CC60: -0.1865322591 | CD60: 363 | CE60: 8.890395843 | CF60: 12.04287797 | CG60: 156 | CH60: 7.522274139 | CI60: 10.39817808 | CJ60: 191 | CK60: 8.862057696 | CL60: 12.36862636 | CM60: 95 | CN60: 7.44459369 | CO60: 10.1652119 | CP60: 459 | CQ60: 3.606810594 | CR60: 4.098366811 | CS60: 119 | CT60: 4.16612675 | CU60: 7.437545505 | CV60: 21 | CW60: 9.6300482 | CX60: 11.9626183 | CY60: 187 | CZ60: 6.519533522 | DA60: 9.25470835 | DB60: 331 | DC60: 1.324308153 | DD60: 1.060296162 | DE60: 337 | DF60: 6.900886764 | DG60: 10.20440911 | DH60: 413 | DI60: 9.777377063 | DJ60: 13.80512482 | DK60: 89 | DL60: 2.35202778 | DM60: -0.517630912 | DN60: 77 | DO60: 2.62332655 | DP60: 4.44153764 | DQ60: 116 | DR60: 5.325049375 | DS60: 11.29006282 | DT60: 69 | DU60: 9.3413851 | DV60: 14.2098571 | DW60: 473 | DX60: 8.810645422 | DY60: 12.313253 | DZ60: 96 | EA60: 4.82454293 | EB60: 3.85889457 | EC60: 171 | ED60: 8.778074625 | EE60: 13.50642065 | EF60: 371 | EG60: 6.752381468 | EH60: 9.856969303 | EI60: 220 | EJ60: 4.377394823 | EK60: 7.335011065 | EL60: 276 | EM60: 4.038188423 | EN60: 5.385728429 | EO60: 22 | EP60: 8.10172595 | EQ60: 12.6793998 | ER60: 90 | ES60: 6.60656315 | ET60: 9.51956445 | EU60: 228 | EV60: 2.56348509 | EW60: 2.476851699 | EX60: 197 | EY60: 3.002048693 | EZ60: 4.451151681 | FA60: 477 | FB60: 3.158842985 | FC60: 4.968486672 | IV60: =FW54 -> 0.9403826439
A61: 60 | B61: 4.51046758 | C61: 6.96945848 | D61: 377 | E61: 3.040897536 | F61: 2.660250533 | G61: 57 | H61: 4.4389659 | I61: 2.81245038 | J61: 358 | K61: 6.864464443 | L61: 9.27752281 | M61: 60 | N61: 4.51046758 | O61: 6.96945848 | P61: 263 | Q61: 6.577134574 | R61: 10.12972695 | S61: 32 | T61: 4.66966127 | U61: 5.38860315 | V61: 230 | W61: 8.735801737 | X61: 13.50414249 | Y61: 449 | Z61: 4.350642998 | AA61: 5.655058357 | AB61: 375 | AC61: 4.391145188 | AD61: 5.019223424 | AE61: 296 | AF61: 8.233341992 | AG61: 13.71682407 | AH61: 196 | AI61: 0.7680377099 | AJ61: -0.1752951546 | AK61: 202 | AL61: 6.99696996 | AM61: 8.805367962 | AN61: 435 | AO61: 3.864226179 | AP61: 9.279665255 | AQ61: 158 | AR61: 6.576493163 | AS61: 13.21882269 | AT61: 454 | AU61: 5.977813993 | AV61: 8.931188696 | AW61: 400 | AX61: 1.392814532 | AY61: 4.642694218 | AZ61: 443 | BA61: 9.640023234 | BB61: 14.71434734 | BC61: 441 | BD61: 9.354878443 | BE61: 16.68950893 | BF61: 393 | BG61: 1.855486528 | BH61: 1.822264596 | BI61: 208 | BJ61: 1.505178803 | BK61: 4.963805751 | BL61: 316 | BM61: 8.14110643 | BN61: 13.61048011 | BO61: 287 | BP61: 7.795973625 | BQ61: 11.0065259 | BR61: 177 | BS61: 5.367929196 | BT61: 6.510966796 | BU61: 214 | BV61: 1.69418388 | BW61: 0.8329451764 | BX61: 390 | BY61: 9.474642267 | BZ61: 13.83094599 | CA61: 43 | CB61: 5.13345519 | CC61: 8.29723619 | CD61: 63 | CE61: 5.24469467 | CF61: 7.8713711 | CG61: 118 | CH61: 7.945931319 | CI61: 12.86608569 | CJ61: 99 | CK61: 8.498654961 | CL61: 15.26596291 | CM61: 458 | CN61: 1.35782845 | CO61: 2.537922209 | CP61: 141 | CQ61: 4.800506312 | CR61: 5.610688637 | CS61: 99 | CT61: 8.498654961 | CU61: 15.26596291 | CV61: 57 | CW61: 4.4389659 | CX61: 2.81245038 | CY61: 82 | CZ61: 5.18564613 | DA61: 7.96590089 | DB61: 364 | DC61: 2.674927642 | DD61: 4.836107233 | DE61: 3 | DF61: 7.96784314 | DG61: 7.84023659 | DH61: 10 | DI61: 4.30812811 | DJ61: 4.96796458 | DK61: 125 | DL61: 2.422150472 | DM61: 2.138771277 | DN61: 17 | DO61: 2.13610764 | DP61: 4.70049726 | DQ61: 185 | DR61: 8.169997321 | DS61: 11.34178243 | DT61: 37 | DU61: 3.92028448 | DV61: 2.04055271 | DW61: 318 | DX61: 3.832366125 | DY61: 4.900589815 | DZ61: 449 | EA61: 4.350642998 | EB61: 5.655058357 | EC61: 80 | ED61: 8.34654802 | EE61: 10.0915653 | EF61: 87 | EG61: 5.98353379 | EH61: 6.75417693 | EI61: 365 | EJ61: 8.87820011 | EK61: 12.34900153 | EL61: 272 | EM61: 2.900179276 | EN61: 3.381056319 | EO61: 167 | EP61: 5.694993418 | EQ61: 7.587259181 | ER61: 437 | ES61: 5.393602692 | ET61: 7.52693078 | EU61: 420 | EV61: 6.569000717 | EW61: 8.167703691 | EX61: 471 | EY61: 5.974281387 | EZ61: 7.87051432 | FA61: 333 | FB61: 6.981730499 | FC61: 8.979745074 | IV61: =FZ54 -> 0.7865729385
A62: 61 | B62: 5.68622801 | C62: 9.69014381 | D62: 4 | E62: 6.21715943 | F62: 9.71304483 | G62: 181 | H62: 6.289004383 | I62: 12.75129234 | J62: 200 | K62: 4.007136933 | L62: 5.814902586 | M62: 15 | N62: 0.741468446 | O62: -3.10509067 | P62: 207 | Q62: 0.3880344279 | R62: -0.843655068 | S62: 192 | T62: 6.637214147 | U62: 9.03810549 | V62: 95 | W62: 7.44459369 | X62: 10.1652119 | Y62: 495 | Z62: 5.667088121 | AA62: 8.747440497 | AB62: 496 | AC62: 4.532684235 | AD62: 5.173349815 | AE62: 280 | AF62: 4.696012252 | AG62: 6.343121289 | AH62: 283 | AI62: 6.18427252 | AJ62: 7.808466477 | AK62: 226 | AL62: 9.250060212 | AM62: 11.3512084 | AN62: 370 | AO62: 4.421525079 | AP62: 10.52706806 | AQ62: 132 | AR62: 2.365753917 | AS62: 1.900883604 | AT62: 185 | AU62: 8.169997321 | AV62: 11.34178243 | AW62: 439 | AX62: 3.936687521 | AY62: 4.356405707 | AZ62: 196 | BA62: 0.7680377099 | BB62: -0.1752951546 | BC62: 491 | BD62: 5.400268075 | BE62: 9.32922091 | BF62: 430 | BG62: 4.023100064 | BH62: 4.593234866 | BI62: 35 | BJ62: 1.7000925 | BK62: -2.08932327 | BL62: 446 | BM62: 1.765411358 | BN62: 2.141253773 | BO62: 338 | BP62: 6.139911704 | BQ62: 8.221082624 | BR62: 276 | BS62: 4.038188423 | BT62: 5.385728429 | BU62: 426 | BV62: 4.53261845 | BW62: 7.265817564 | BX62: 382 | BY62: 3.940599549 | BZ62: 6.604869359 | CA62: 217 | CB62: 8.773797216 | CC62: 11.90187657 | CD62: 413 | CE62: 9.777377063 | CF62: 13.80512482 | CG62: 365 | CH62: 8.87820011 | CI62: 12.34900153 | CJ62: 238 | CK62: 8.978948917 | CL62: 14.5718286 | CM62: 470 | CN62: 3.253489636 | CO62: 3.282505817 | CP62: 267 | CQ62: 6.511081731 | CR62: 13.80006018 | CS62: 471 | CT62: 5.974281387 | CU62: 7.87051432 | CV62: 91 | CW62: 4.4224596 | CX62: 7.08149033 | CY62: 218 | CZ62: 9.17666073 | DA62: 13.32428062 | DB62: 362 | DC62: 7.053309402 | DD62: 9.50515826 | DE62: 256 | DF62: 0.06050357581 | DG62: -0.8821582164 | DH62: 347 | DI62: 6.324796 | DJ62: 7.868572822 | DK62: 154 | DL62: 9.837375533 | DM62: 15.80117633 | DN62: 341 | DO62: 9.976123292 | DP62: 13.98057436 | DQ62: 61 | DR62: 5.68622801 | DS62: 9.69014381 | DT62: 118 | DU62: 7.945931319 | DV62: 12.86608569 | DW62: 495 | DX62: 5.667088121 | DY62: 8.747440497 | DZ62: 185 | EA62: 8.169997321 | EB62: 11.34178243 | EC62: 215 | ED62: 4.4844934 | EE62: 10.4970684 | EF62: 150 | EG62: 6.823624893 | EH62: 12.35404068 | EI62: 465 | EJ62: 3.941634222 | EK62: 5.536921984 | EL62: 285 | EM62: 6.662071448 | EN62: 9.632167559 | EO62: 40 | EP62: 8.07864525 | EQ62: 8.03795487 | ER62: 50 | ES62: 3.33730571 | ET62: 0.911521898 | EU62: 422 | EV62: 8.900442608 | EW62: 12.35432215 | EX62: 101 | EY62: 5.445845676 | EZ62: 6.668110029 | FA62: 111 | FB62: 3.85638947 | FC62: 4.92575438 | IV62: =GC54 -> 0.9284155527
A63: 62 | B63: 6.53330364 | C63: 9.85792786 | D63: 461 | E63: 4.884585275 | F63: 6.634864362 | G63: 406 | H63: 6.117424329 | I63: 11.63591888 | J63: 189 | K63: 1.10180771 | L63: 0.4625460936 | M63: 331 | N63: 1.324308153 | O63: 1.060296162 | P63: 485 | Q63: 2.879562454 | R63: 5.363452296 | S63: 172 | T63: 7.31031285 | U63: 10.56882332 | V63: 465 | W63: 3.941634222 | X63: 5.536921984 | Y63: 364 | Z63: 2.674927642 | AA63: 4.836107233 | AB63: 464 | AC63: 1.458109682 | AD63: 0.6503997955 | AE63: 181 | AF63: 6.289004383 | AG63: 12.75129234 | AH63: 358 | AI63: 6.864464443 | AJ63: 9.27752281 | AK63: 168 | AL63: 5.71037702 | AM63: 7.239777269 | AN63: 280 | AO63: 4.696012252 | AP63: 6.343121289 | AQ63: 225 | AR63: 4.79274557 | AS63: 7.82741516 | AT63: 230 | AU63: 8.735801737 | AV63: 13.50414249 | AW63: 436 | AX63: 4.08208054 | AY63: 8.754425988 | AZ63: 11 | BA63: 0.983887791 | BB63: -0.190496477 | BC63: 477 | BD63: 3.158842985 | BE63: 4.968486672 | BF63: 487 | BG63: 6.039849047 | BH63: 8.001931175 | BI63: 88 | BJ63: 8.87683015 | BK63: 11.8436226 | BL63: 438 | BM63: 4.32155824 | BN63: 5.55616181 | BO63: 413 | BP63: 9.777377063 | BQ63: 13.80512482 | BR63: 251 | BS63: 7.658241522 | BT63: 10.14417821 | BU63: 295 | BV63: 5.360451804 | BW63: 8.172456847 | BX63: 187 | BY63: 6.519533522 | BZ63: 9.25470835 | CA63: 167 | CB63: 5.694993418 | CC63: 7.587259181 | CD63: 154 | CE63: 9.837375533 | CF63: 15.80117633 | CG63: 95 | CH63: 7.44459369 | CI63: 10.1652119 | CJ63: 313 | CK63: 1.620383074 | CL63: 2.216690289 | CM63: 89 | CN63: 2.35202778 | CO63: -0.517630912 | CP63: 330 | CQ63: 2.837752764 | CR63: 3.333338781 | CS63: 424 | CT63: 8.071995394 | CU63: 11.1640532 | CV63: 84 | CW63: 8.61456682 | CX63: 11.9266656 | CY63: 410 | CZ63: 1.476856874 | DA63: 1.379903282 | DB63: 261 | DC63: 9.007457762 | DD63: 13.25375122 | DE63: 67 | DF63: 8.53363023 | DG63: 11.8219133 | DH63: 205 | DI63: 9.041516206 | DJ63: 12.04363978 | DK63: 187 | DL63: 6.519533522 | DM63: 9.25470835 | DN63: 435 | DO63: 3.864226179 | DP63: 9.279665255 | DQ63: 10 | DR63: 4.30812811 | DS63: 4.96796458 | DT63: 253 | DU63: 2.727046859 | DV63: 1.182870083 | DW63: 351 | DX63: 7.293595837 | DY63: 9.629381538 | DZ63: 10 | EA63: 4.30812811 | EB63: 4.96796458 | EC63: 95 | ED63: 7.44459369 | EE63: 10.1652119 | EF63: 485 | EG63: 2.879562454 | EH63: 5.363452296 | EI63: 193 | EJ63: 7.323838368 | EK63: 9.848668602 | EL63: 456 | EM63: 9.057933881 | EN63: 14.24205924 | EO63: 380 | EP63: 7.858917859 | EQ63: 10.05101649 | ER63: 447 | ES63: 1.721789725 | ET63: 1.475773433 | EU63: 180 | EV63: 3.121413244 | EW63: 3.831618274 | EX63: 34 | EY63: 6.75089173 | EZ63: 6.68082052 | FA63: 29 | FB63: 4.60908685 | FC63: 2.60411558 | IV63: =GF54 -> 0.9422522667
A64: 63 | B64: 5.24469467 | C64: 7.8713711 | D64: 305 | E64: 5.474790083 | F64: 7.246591396 | G64: 415 | H64: 9.709467598 | I64: 13.89648245 | J64: 451 | K64: 9.655504893 | L64: 13.60299673 | M64: 106 | N64: 5.573966051 | O64: 10.59684629 | P64: 459 | Q64: 3.606810594 | R64: 4.098366811 | S64: 421 | T64: 0.5466026595 | U64: -0.1865322591 | V64: 231 | W64: 6.589376396 | X64: 8.971115924 | Y64: 296 | Z64: 8.233341992 | AA64: 13.71682407 | AB64: 309 | AC64: 0.2569994515 | AD64: 1.593829604 | AE64: 335 | AF64: 3.649990595 | AG64: 7.825033331 | AH64: 498 | AI64: 9.791089032 | AJ64: 13.16004479 | AK64: 313 | AL64: 1.620383074 | AM64: 2.216690289 | AN64: 117 | AO64: 1.634033923 | AP64: 3.020722199 | AQ64: 469 | AR64: 9.413159238 | AS64: 13.25105176 | AT64: 461 | AU64: 4.884585275 | AV64: 6.634864362 | AW64: 202 | AX64: 6.99696996 | AY64: 8.805367962 | AZ64: 206 | BA64: 6.572777827 | BB64: 8.747598583 | BC64: 31 | BD64: 5.68477606 | BE64: 4.15507128 | BF64: 444 | BG64: 4.582912705 | BH64: 9.718836 | BI64: 473 | BJ64: 8.810645422 | BK64: 12.313253 | BL64: 451 | BM64: 9.655504893 | BN64: 13.60299673 | BO64: 424 | BP64: 8.071995394 | BQ64: 11.1640532 | BR64: 457 | BS64: 7.717987014 | BT64: 10.45831336 | BU64: 279 | BV64: 3.741235828 | BW64: 4.43479809 | BX64: 321 | BY64: 8.643298308 | BZ64: 11.79523886 | CA64: 371 | CB64: 6.752381468 | CC64: 9.856969303 | CD64: 29 | CE64: 4.60908685 | CF64: 2.60411558 | CG64: 16 | CH64: 1.20622191 | CI64: -1.56819643 | CJ64: 282 | CK64: 7.39346008 | CL64: 12.65488959 | CM64: 257 | CN64: 0.04867114321 | CO64: 0.356675773 | CP64: 256 | CQ64: 0.06050357581 | CR64: -0.8821582164 | CS64: 165 | CT64: 3.040116362 | CU64: 3.583370544 | CV64: 463 | CW64: 8.858391483 | CX64: 12.01353562 | CY64: 471 | CZ64: 5.974281387 | DA64: 7.87051432 | DB64: 50 | DC64: 3.33730571 | DD64: 0.911521898 | DE64: 63 | DF64: 5.24469467 | DG64: 7.8713711 | DH64: 414 | DI64: 2.795053785 | DJ64: 4.507392892 | DK64: 29 | DL64: 4.60908685 | DM64: 2.60411558 | DN64: 63 | DO64: 5.24469467 | DP64: 7.8713711 | DQ64: 294 | DR64: 5.35026498 | DS64: 9.399215378 | DT64: 81 | DU64: 5.5414156 | DV64: 8.21511411 | DW64: 39 | DX64: 2.77939124 | DY64: 5.31050283 | DZ64: 405 | EA64: 6.308263957 | EB64: 8.417126503 | EC64: 405 | ED64: 6.308263957 | EE64: 8.417126503 | EF64: 297 | EG64: 4.810584176 | EH64: 5.7242914 | EI64: 263 | EJ64: 6.577134574 | EK64: 10.12972695 | EL64: 205 | EM64: 9.041516206 | EN64: 12.04363978 | EO64: 39 | EP64: 2.77939124 | EQ64: 5.31050283 | ER64: 218 | ES64: 9.17666073 | ET64: 13.32428062 | EU64: 463 | EV64: 8.858391483 | EW64: 12.01353562 | EX64: 253 | EY64: 2.727046859 | EZ64: 1.182870083 | FA64: 281 | FB64: 1.477663452 | FC64: 3.051087067 | IV64: =GI54 -> 0.9458938027
A65: 64 | B65: 2.33171315 | C65: 3.9683671 | D65: 441 | E65: 9.354878443 | F65: 16.68950893 | G65: 98 | H65: 4.41793735 | I65: 3.44458382 | J65: 334 | K65: 0.1426316555 | L65: -0.7878630769 | M65: 34 | N65: 6.75089173 | O65: 6.68082052 | P65: 353 | Q65: 5.644777954 | R65: 8.648018441 | S65: 30 | T65: 3.60214925 | U65: 6.04667724 | V65: 160 | W65: 2.379058156 | X65: 5.635721578 | Y65: 265 | Z65: 0.3652262438 | AA65: -0.1992222761 | AB65: 50 | AC65: 3.33730571 | AD65: 0.911521898 | AE65: 175 | AF65: 2.231528297 | AG65: 2.404254766 | AH65: 500 | AI65: 3.906187461 | AJ65: 5.317612298 | AK65: 60 | AL65: 4.51046758 | AM65: 6.96945848 | AN65: 293 | AO65: 1.567534421 | AP65: 1.753396563 | AQ65: 131 | AR65: 6.886491299 | AS65: 9.410603282 | AT65: 148 | AU65: 1.137754207 | AV65: 4.165309598 | AW65: 126 | AX65: 8.834973268 | AY65: 11.91770108 | AZ65: 337 | BA65: 6.900886764 | BB65: 10.20440911 | BC65: 251 | BD65: 7.658241522 | BE65: 10.14417821 | BF65: 340 | BG65: 1.799892287 | BH65: 1.859591207 | BI65: 70 | BJ65: 1.423125 | BK65: 0.646345121 | BL65: 13 | BM65: 5.69596444 | BN65: 8.77827914 | BO65: 292 | BP65: 3.061066028 | BQ65: 8.188867168 | BR65: 156 | BS65: 7.522274139 | BT65: 10.39817808 | BU65: 240 | BV65: 3.420867287 | BW65: 8.927884453 | BX65: 367 | BY65: 5.760370768 | BZ65: 7.791472067 | CA65: 379 | CB65: 2.483427613 | CC65: 4.839969022 | CD65: 499 | CE65: 6.162694315 | CF65: 9.958051254 | CG65: 238 | CH65: 8.978948917 | CI65: 14.5718286 | CJ65: 249 | CK65: 9.80191764 | CL65: 16.65592597 | CM65: 217 | CN65: 8.773797216 | CO65: 11.90187657 | CP65: 67 | CQ65: 8.53363023 | CR65: 11.8219133 | CS65: 308 | CT65: 0.8614081392 | CU65: 2.89773469 | CV65: 393 | CW65: 1.855486528 | CX65: 1.822264596 | CY65: 20 | CZ65: 8.97702256 | DA65: 12.3319163 | DB65: 26 | DC65: 8.43104463 | DD65: 11.3286742 | DE65: 336 | DF65: 1.870541375 | DG65: 1.180551634 | DH65: 61 | DI65: 5.68622801 | DJ65: 9.69014381 | DK65: 336 | DL65: 1.870541375 | DM65: 1.180551634 | DN65: 223 | DO65: 1.467799943 | DP65: 1.327611227 | DQ65: 279 | DR65: 3.741235828 | DS65: 4.43479809 | DT65: 420 | DU65: 6.569000717 | DV65: 8.167703691 | DW65: 417 | DX65: 7.338660302 | DY65: 15.29587208 | DZ65: 64 | EA65: 2.33171315 | EB65: 3.9683671 | EC65: 267 | ED65: 6.511081731 | EE65: 13.80006018 | EF65: 318 | EG65: 3.832366125 | EH65: 4.900589815 | EI65: 366 | EJ65: 7.6590329 | EK65: 9.989380986 | EL65: 327 | EM65: 9.039115292 | EN65: 12.35758991 | EO65: 219 | EP65: 1.413592493 | EQ65: 3.748166262 | ER65: 78 | ES65: 5.7589141 | ET65: 6.31902082 | EU65: 166 | EV65: 8.690891498 | EW65: 15.60378946 | EX65: 477 | EY65: 3.158842985 | EZ65: 4.968486672 | FA65: 205 | FB65: 9.041516206 | FC65: 12.04363978 | IV65: =GL54 -> 0.9069077292
A66: 65 | B66: 2.17258428 | C66: -0.318387121 | D66: 479 | E66: 8.46281105 | F66: 9.640987524 | G66: 364 | H66: 2.674927642 | I66: 4.836107233 | J66: 3 | K66: 7.96784314 | L66: 7.84023659 | M66: 128 | N66: 9.117770126 | O66: 11.88939036 | P66: 84 | Q66: 8.61456682 | R66: 11.9266656 | S66: 459 | T66: 3.606810594 | U66: 4.098366811 | V66: 175 | W66: 2.231528297 | X66: 2.404254766 | Y66: 171 | Z66: 8.778074625 | AA66: 13.50642065 | AB66: 493 | AC66: 2.497687815 | AD66: 2.851170853 | AE66: 5 | AF66: 7.80181084 | AG66: 8.84088725 | AH66: 312 | AI66: 5.41607617 | AJ66: 7.098110858 | AK66: 468 | AL66: 2.121102409 | AM66: 2.60679253 | AN66: 433 | AO66: 3.274415857 | AP66: 6.784316827 | AQ66: 266 | AR66: 7.216192691 | AS66: 9.885922997 | AT66: 41 | AU66: 2.3735837 | AV66: -1.59270459 | AW66: 163 | AX66: 5.493235531 | AY66: 8.865620796 | AZ66: 329 | BA66: 6.053790113 | BB66: 7.981768235 | BC66: 439 | BD66: 3.936687521 | BE66: 4.356405707 | BF66: 301 | BG66: 1.488031961 | BH66: 1.081609244 | BI66: 208 | BJ66: 1.505178803 | BK66: 4.963805751 | BL66: 294 | BM66: 5.35026498 | BN66: 9.399215378 | BO66: 156 | BP66: 7.522274139 | BQ66: 10.39817808 | BR66: 135 | BS66: 1.144664187 | BT66: 3.169718417 | BU66: 313 | BV66: 1.620383074 | BW66: 2.216690289 | BX66: 322 | BY66: 0.1510361956 | BZ66: 0.7485558619 | CA66: 448 | CB66: 4.993158858 | CC66: 7.267460034 | CD66: 109 | CE66: 4.247385375 | CF66: 5.531413809 | CG66: 99 | CH66: 8.498654961 | CI66: 15.26596291 | CJ66: 193 | CK66: 7.323838368 | CL66: 9.848668602 | CM66: 210 | CN66: 9.490853698 | CO66: 13.20251609 | CP66: 45 | CQ66: 9.37237474 | CR66: 9.61764637 | CS66: 246 | CT66: 2.596367965 | CU66: 8.656875039 | CV66: 231 | CW66: 6.589376396 | CX66: 8.971115924 | CY66: 420 | CZ66: 6.569000717 | DA66: 8.167703691 | DB66: 209 | DC66: 5.442971283 | DD66: 7.625845857 | DE66: 253 | DF66: 2.727046859 | DG66: 1.182870083 | DH66: 480 | DI66: 8.279630606 | DJ66: 11.0342258 | DK66: 347 | DL66: 6.324796 | DM66: 7.868572822 | DN66: 268 | DO66: 4.805000123 | DP66: 6.178547716 | DQ66: 461 | DR66: 4.884585275 | DS66: 6.634864362 | DT66: 270 | DU66: 4.892477198 | DV66: 9.449142022 | DW66: 188 | DX66: 0.09134565558 | DY66: -1.467150419 | DZ66: 496 | EA66: 4.532684235 | EB66: 5.173349815 | EC66: 393 | ED66: 1.855486528 | EE66: 1.822264596 | EF66: 304 | EG66: 7.952560467 | EH66: 9.837411445 | EI66: 481 | EJ66: 4.57915076 | EK66: 6.437017195 | EL66: 114 | EM66: 1.252853786 | EN66: 1.010064003 | EO66: 452 | EP66: 6.647937713 | EQ66: 10.67406087 | ER66: 350 | ES66: 7.767622897 | ET66: 10.42043023 | EU66: 66 | EV66: 1.1164724 | EW66: -0.078287546 | EX66: 370 | EY66: 4.421525079 | EZ66: 10.52706806 | FA66: 114 | FB66: 1.252853786 | FC66: 1.010064003 | IV66: =GO54 -> 0.8653156721
A67: 66 | B67: 1.1164724 | C67: -0.078287546 | D67: 200 | E67: 4.007136933 | F67: 5.814902586 | G67: 32 | H67: 4.66966127 | I67: 5.38860315 | J67: 81 | K67: 5.5414156 | L67: 8.21511411 | M67: 335 | N67: 3.649990595 | O67: 7.825033331 | P67: 12 | Q67: 9.19486152 | R67: 11.0320721 | S67: 206 | T67: 6.572777827 | U67: 8.747598583 | V67: 76 | W67: 4.3412922 | X67: 4.0240331 | Y67: 234 | Z67: 1.133008382 | AA67: 3.932983308 | AB67: 175 | AC67: 2.231528297 | AD67: 2.404254766 | AE67: 101 | AF67: 5.445845676 | AG67: 6.668110029 | AH67: 342 | AI67: 6.114036448 | AJ67: 7.669303551 | AK67: 354 | AL67: 1.47035973 | AM67: 0.771101292 | AN67: 6 | AO67: 9.53953478 | AP67: 13.2443258 | AQ67: 381 | AR67: 9.131934317 | AS67: 12.55291319 | AT67: 421 | AU67: 0.5466026595 | AV67: -0.1865322591 | AW67: 346 | AX67: 1.191561255 | AY67: 2.269256354 | AZ67: 337 | BA67: 6.900886764 | BB67: 10.20440911 | BC67: 19 | BD67: 5.95518034 | BE67: 4.7732746 | BF67: 140 | BG67: 0.7627152342 | BH67: 0.2338329209 | BI67: 233 | BJ67: 7.984854235 | BK67: 10.79015383 | BL67: 280 | BM67: 4.696012252 | BN67: 6.343121289 | BO67: 133 | BP67: 2.683019603 | BQ67: 3.038998418 | BR67: 361 | BS67: 7.710401941 | BT67: 11.23578606 | BU67: 294 | BV67: 5.35026498 | BW67: 9.399215378 | BX67: 395 | BY67: 7.826619217 | BZ67: 10.13472144 | CA67: 44 | CB67: 2.51870786 | CC67: 3.95381 | CD67: 174 | CE67: 6.322354733 | CF67: 8.213277336 | CG67: 118 | CH67: 7.945931319 | CI67: 12.86608569 | CJ67: 195 | CK67: 7.896239566 | CL67: 10.4676899 | CM67: 73 | CN67: 6.30581833 | CO67: 5.82147702 | CP67: 34 | CQ67: 6.75089173 | CR67: 6.68082052 | CS67: 392 | CT67: 7.864227825 | CU67: 10.69512537 | CV67: 52 | CW67: 8.42129982 | CX67: 10.24603712 | CY67: 282 | CZ67: 7.39346008 | DA67: 12.65488959 | DB67: 439 | DC67: 3.936687521 | DD67: 4.356405707 | DE67: 131 | DF67: 6.886491299 | DG67: 9.410603282 | DH67: 294 | DI67: 5.35026498 | DJ67: 9.399215378 | DK67: 308 | DL67: 0.8614081392 | DM67: 2.89773469 | DN67: 380 | DO67: 7.858917859 | DP67: 10.05101649 | DQ67: 407 | DR67: 9.457898032 | DS67: 13.16265353 | DT67: 55 | DU67: 9.14722657 | DV67: 9.71488637 | DW67: 461 | DX67: 4.884585275 | DY67: 6.634864362 | DZ67: 427 | EA67: 6.988534876 | EB67: 9.345507758 | EC67: 124 | ED67: 9.594377652 | EE67: 14.97374558 | EF67: 196 | EG67: 0.7680377099 | EH67: -0.1752951546 | EI67: 429 | EJ67: 0.8415084968 | EK67: 1.046254156 | EL67: 287 | EM67: 7.795973625 | EN67: 11.0065259 | EO67: 313 | EP67: 1.620383074 | EQ67: 2.216690289 | ER67: 330 | ES67: 2.837752764 | ET67: 3.333338781 | EU67: 349 | EV67: 4.99668919 | EW67: 6.064861197 | EX67: 418 | EY67: 9.610171677 | EZ67: 14.48852042 | FA67: 79 | FB67: 1.39826337 | FC67: 1.12138749 | IV67: =GR54 -> 0.9196105505
A68: 67 | B68: 8.53363023 | C68: 11.8219133 | D68: 334 | E68: 0.1426316555 | F68: -0.7878630769 | G68: 348 | H68: 6.227747289 | I68: 7.935555211 | J68: 253 | K68: 2.727046859 | L68: 1.182870083 | M68: 7 | N68: 5.57186894 | O68: 3.42029568 | P68: 257 | Q68: 0.04867114321 | R68: 0.356675773 | S68: 75 | T68: 4.48220544 | U68: 4.67629661 | V68: 44 | W68: 2.51870786 | X68: 3.95381 | Y68: 191 | Z68: 8.862057696 | AA68: 12.36862636 | AB68: 189 | AC68: 1.10180771 | AD68: 0.4625460936 | AE68: 33 | AF68: 2.44821177 | AG68: -1.09291696 | AH68: 66 | AI68: 1.1164724 | AJ68: -0.078287546 | AK68: 192 | AL68: 6.637214147 | AM68: 9.03810549 | AN68: 49 | AO68: 1.22022199 | AP68: -2.85875217 | AQ68: 245 | AR68: 7.971972343 | AS68: 14.07703668 | AT68: 167 | AU68: 5.694993418 | AV68: 7.587259181 | AW68: 130 | AX68: 5.006036796 | AY68: 5.953308079 | AZ68: 146 | BA68: 8.091907966 | BB68: 12.02246854 | BC68: 102 | BD68: 3.409455717 | BE68: 3.652082959 | BF68: 28 | BG68: 4.49460797 | BH68: 7.05270137 | BI68: 274 | BJ68: 3.026255872 | BK68: 9.169401729 | BL68: 205 | BM68: 9.041516206 | BN68: 12.04363978 | BO68: 211 | BP68: 4.968910103 | BQ68: 6.516151621 | BR68: 276 | BS68: 4.038188423 | BT68: 5.385728429 | BU68: 38 | BV68: 5.18673108 | BW68: 5.84375759 | BX68: 29 | BY68: 4.60908685 | BZ68: 2.60411558 | CA68: 93 | CB68: 9.77137147 | CC68: 11.31715752 | CD68: 309 | CE68: 0.2569994515 | CF68: 1.593829604 | CG68: 154 | CH68: 9.837375533 | CI68: 15.80117633 | CJ68: 328 | CK68: 2.043848608 | CL68: 1.771787991 | CM68: 37 | CN68: 3.92028448 | CO68: 2.04055271 | CP68: 132 | CQ68: 2.365753917 | CR68: 1.900883604 | CS68: 175 | CT68: 2.231528297 | CU68: 2.404254766 | CV68: 398 | CW68: 5.964057635 | CX68: 7.386417809 | CY68: 207 | CZ68: 0.3880344279 | DA68: -0.843655068 | DB68: 456 | DC68: 9.057933881 | DD68: 14.24205924 | DE68: 356 | DF68: 1.49331766 | DG68: 2.1275884 | DH68: 352 | DI68: 3.254234685 | DJ68: 3.92834473 | DK68: 427 | DL68: 6.988534876 | DM68: 9.345507758 | DN68: 451 | DO68: 9.655504893 | DP68: 13.60299673 | DQ68: 305 | DR68: 5.474790083 | DS68: 7.246591396 | DT68: 311 | DU68: 9.873277629 | DV68: 13.3993579 | DW68: 339 | DX68: 6.261276544 | DY68: 9.013125262 | DZ68: 24 | EA68: 9.69084598 | EB68: 12.1507546 | EC68: 43 | ED68: 5.13345519 | EE68: 8.29723619 | EF68: 222 | EG68: 2.90122966 | EH68: 7.523131809 | EI68: 74 | EJ68: 3.13065817 | EK68: 3.63331936 | EL68: 345 | EM68: 7.107225212 | EN68: 9.733400637 | EO68: 114 | EP68: 1.252853786 | EQ68: 1.010064003 | ER68: 340 | ES68: 1.799892287 | ET68: 1.859591207 | EU68: 415 | EV68: 9.709467598 | EW68: 13.89648245 | EX68: 265 | EY68: 0.3652262438 | EZ68: -0.1992222761 | FA68: 67 | FB68: 8.53363023 | FC68: 11.8219133 | IV68: =GU54 -> 0.9156251479
A69: 68 | B69: 4.59207945 | C69: 2.43433646 | D69: 121 | E69: 4.272841113 | F69: 5.220618265 | G69: 422 | H69: 8.900442608 | I69: 12.35432215 | J69: 323 | K69: 6.840311799 | L69: 8.832776868 | M69: 259 | N69: 6.523956287 | O69: 8.547004043 | P69: 262 | Q69: 1.831443435 | R69: 1.904713148 | S69: 348 | T69: 6.227747289 | U69: 7.935555211 | V69: 32 | W69: 4.66966127 | X69: 5.38860315 | Y69: 349 | Z69: 4.99668919 | AA69: 6.064861197 | AB69: 247 | AC69: 3.968362843 | AD69: 4.56225389 | AE69: 46 | AF69: 6.94092202 | AG69: 6.74365555 | AH69: 90 | AI69: 6.60656315 | AJ69: 9.51956445 | AK69: 498 | AL69: 9.791089032 | AM69: 13.16004479 | AN69: 193 | AO69: 7.323838368 | AP69: 9.848668602 | AQ69: 244 | AR69: 1.737538526 | AS69: 1.327458092 | AT69: 393 | AU69: 1.855486528 | AV69: 1.822264596 | AW69: 339 | AX69: 6.261276544 | AY69: 9.013125262 | AZ69: 190 | BA69: 3.609999136 | BB69: 5.909913366 | BC69: 364 | BD69: 2.674927642 | BE69: 4.836107233 | BF69: 82 | BG69: 5.18564613 | BH69: 7.96590089 | BI69: 469 | BJ69: 9.413159238 | BK69: 13.25105176 | BL69: 112 | BM69: 4.329394739 | BN69: 5.482066263 | BO69: 73 | BP69: 6.30581833 | BQ69: 5.82147702 | BR69: 289 | BS69: 9.155854659 | BT69: 13.34545517 | BU69: 440 | BV69: 9.908334403 | BW69: 14.03019626 | BX69: 98 | BY69: 4.41793735 | BZ69: 3.44458382 | CA69: 20 | CB69: 8.97702256 | CC69: 12.3319163 | CD69: 164 | CE69: 9.965606271 | CF69: 13.99774901 | CG69: 221 | CH69: 4.243818768 | CI69: 6.283891218 | CJ69: 169 | CK69: 7.858001029 | CL69: 12.82808101 | CM69: 40 | CN69: 8.07864525 | CO69: 8.03795487 | CP69: 290 | CQ69: 3.582628109 | CR69: 4.30831353 | CS69: 376 | CT69: 0.4650527462 | CU69: -0.2259309196 | CV69: 198 | CW69: 6.01787814 | CX69: 7.387096473 | CY69: 259 | CZ69: 6.523956287 | DA69: 8.547004043 | DB69: 357 | DC69: 6.490032108 | DD69: 13.12021971 | DE69: 224 | DF69: 8.850093268 | DG69: 12.1058805 | DH69: 38 | DI69: 5.18673108 | DJ69: 5.84375759 | DK69: 429 | DL69: 0.8415084968 | DM69: 1.046254156 | DN69: 386 | DO69: 1.00732757 | DP69: 3.048504996 | DQ69: 49 | DR69: 1.22022199 | DS69: -2.85875217 | DT69: 343 | DU69: 5.150367068 | DV69: 6.738228967 | DW69: 259 | DX69: 6.523956287 | DY69: 8.547004043 | DZ69: 174 | EA69: 6.322354733 | EB69: 8.213277336 | EC69: 375 | ED69: 4.391145188 | EE69: 5.019223424 | EF69: 28 | EG69: 4.49460797 | EH69: 7.05270137 | EI69: 363 | EJ69: 8.890395843 | EK69: 12.04287797 | EL69: 144 | EM69: 6.618233798 | EN69: 10.93446982 | EO69: 476 | EP69: 4.769237288 | EQ69: 5.362900305 | ER69: 457 | ES69: 7.717987014 | ET69: 10.45831336 | EU69: 211 | EV69: 4.968910103 | EW69: 6.516151621 | EX69: 172 | EY69: 7.31031285 | EZ69: 10.56882332 | FA69: 22 | FB69: 8.10172595 | FC69: 12.6793998 | IV69: =GX54 -> 0.9022594741
A70: 69 | B70: 9.3413851 | C70: 14.2098571 | D70: 350 | E70: 7.767622897 | F70: 10.42043023 | G70: 112 | H70: 4.329394739 | I70: 5.482066263 | J70: 285 | K70: 6.662071448 | L70: 9.632167559 | M70: 185 | N70: 8.169997321 | O70: 11.34178243 | P70: 13 | Q70: 5.69596444 | R70: 8.77827914 | S70: 486 | T70: 6.56941847 | U70: 13.47234969 | V70: 387 | W70: 9.50044315 | X70: 12.75987321 | Y70: 419 | Z70: 8.195668396 | AA70: 11.456946 | AB70: 173 | AC70: 4.28562054 | AD70: 5.710111432 | AE70: 254 | AF70: 1.141944231 | AG70: 1.574278353 | AH70: 344 | AI70: 1.513570813 | AJ70: 4.658768124 | AK70: 298 | AL70: 8.71720118 | AM70: 10.19093231 | AN70: 140 | AO70: 0.7627152342 | AP70: 0.2338329209 | AQ70: 158 | AR70: 6.576493163 | AS70: 13.21882269 | AT70: 267 | AU70: 6.511081731 | AV70: 13.80006018 | AW70: 181 | AX70: 6.289004383 | AY70: 12.75129234 | AZ70: 486 | BA70: 6.56941847 | BB70: 13.47234969 | BC70: 187 | BD70: 6.519533522 | BE70: 9.25470835 | BF70: 85 | BG70: 1.82822638 | BH70: -2.92768506 | BI70: 192 | BJ70: 6.637214147 | BK70: 9.03810549 | BL70: 220 | BM70: 4.377394823 | BN70: 7.335011065 | BO70: 278 | BP70: 0.1986964382 | BQ70: -1.548675627 | BR70: 142 | BS70: 9.911222215 | BT70: 14.01070131 | BU70: 420 | BV70: 6.569000717 | BW70: 8.167703691 | BX70: 282 | BY70: 7.39346008 | BZ70: 12.65488959 | CA70: 438 | CB70: 4.32155824 | CC70: 5.55616181 | CD70: 125 | CE70: 2.422150472 | CF70: 2.138771277 | CG70: 95 | CH70: 7.44459369 | CI70: 10.1652119 | CJ70: 115 | CK70: 5.792104739 | CL70: 6.937223923 | CM70: 242 | CN70: 2.787355815 | CO70: 3.260033911 | CP70: 241 | CQ70: 1.441955256 | CR70: 1.265402956 | CS70: 442 | CT70: 2.595642529 | CU70: 2.780463014 | CV70: 356 | CW70: 1.49331766 | CX70: 2.1275884 | CY70: 391 | CZ70: 6.558558768 | DA70: 8.634685594 | DB70: 492 | DC70: 6.532434169 | DD70: 13.28559818 | DE70: 319 | DF70: 0.5659222878 | DG70: 0.9882044618 | DH70: 33 | DI70: 2.44821177 | DJ70: -1.09291696 | DK70: 50 | DL70: 3.33730571 | DM70: 0.911521898 | DN70: 19 | DO70: 5.95518034 | DP70: 4.7732746 | DQ70: 155 | DR70: 4.825641159 | DS70: 6.160031288 | DT70: 363 | DU70: 8.890395843 | DV70: 12.04287797 | DW70: 442 | DX70: 2.595642529 | DY70: 2.780463014 | DZ70: 439 | EA70: 3.936687521 | EB70: 4.356405707 | EC70: 205 | ED70: 9.041516206 | EE70: 12.04363978 | EF70: 404 | EG70: 6.686552734 | EH70: 9.184761682 | EI70: 475 | EJ70: 7.913844215 | EK70: 10.70302079 | EL70: 277 | EM70: 5.220468369 | EN70: 8.113977016 | EO70: 282 | EP70: 7.39346008 | EQ70: 12.65488959 | ER70: 389 | ES70: 7.334305489 | ET70: 9.743790496 | EU70: 333 | EV70: 6.981730499 | EW70: 8.979745074 | EX70: 436 | EY70: 4.08208054 | EZ70: 8.754425988 | FA70: 293 | FB70: 1.567534421 | FC70: 1.753396563 | IV70: =HA54 -> 0.9296991193
A71: 70 | B71: 1.423125 | C71: 0.646345121 | D71: 482 | E71: 5.814914671 | F71: 7.78950537 | G71: 111 | H71: 3.85638947 | I71: 4.92575438 | J71: 329 | K71: 6.053790113 | L71: 7.981768235 | M71: 501 | N71: 2.026902879 | O71: 1.783289167 | P71: 184 | Q71: 0.1414582344 | R71: -0.8367194623 | S71: 78 | T71: 5.7589141 | U71: 6.31902082 | V71: 25 | W71: 3.27332773 | X71: 2.7018407 | Y71: 268 | Z71: 4.805000123 | AA71: 6.178547716 | AB71: 357 | AC71: 6.490032108 | AD71: 13.12021971 | AE71: 327 | AF71: 9.039115292 | AG71: 12.35758991 | AH71: 309 | AI71: 0.2569994515 | AJ71: 1.593829604 | AK71: 464 | AL71: 1.458109682 | AM71: 0.6503997955 | AN71: 94 | AO71: 6.26208838 | AP71: 10.6125892 | AQ71: 439 | AR71: 3.936687521 | AS71: 4.356405707 | AT71: 118 | AU71: 7.945931319 | AV71: 12.86608569 | AW71: 415 | AX71: 9.709467598 | AY71: 13.89648245 | AZ71: 349 | BA71: 4.99668919 | BB71: 6.064861197 | BC71: 317 | BD71: 4.941073579 | BE71: 6.332746976 | BF71: 366 | BG71: 7.6590329 | BH71: 9.989380986 | BI71: 151 | BJ71: 5.339735175 | BK71: 7.177933736 | BL71: 35 | BM71: 1.7000925 | BN71: -2.08932327 | BO71: 109 | BP71: 4.247385375 | BQ71: 5.531413809 | BR71: 21 | BS71: 9.6300482 | BT71: 11.9626183 | BU71: 294 | BV71: 5.35026498 | BW71: 9.399215378 | BX71: 365 | BY71: 8.87820011 | BZ71: 12.34900153 | CA71: 331 | CB71: 1.324308153 | CC71: 1.060296162 | CD71: 404 | CE71: 6.686552734 | CF71: 9.184761682 | CG71: 120 | CH71: 0.3535435374 | CI71: -1.073164342 | CJ71: 119 | CK71: 4.16612675 | CL71: 7.437545505 | CM71: 138 | CN71: 7.241567808 | CO71: 9.575507065 | CP71: 127 | CQ71: 6.346243302 | CR71: 11.08876583 | CS71: 69 | CT71: 9.3413851 | CU71: 14.2098571 | CV71: 115 | CW71: 5.792104739 | CX71: 6.937223923 | CY71: 386 | CZ71: 1.00732757 | DA71: 3.048504996 | DB71: 359 | DC71: 5.163693113 | DD71: 7.34968356 | DE71: 139 | DF71: 3.54670902 | DG71: 8.890824402 | DH71: 244 | DI71: 1.737538526 | DJ71: 1.327458092 | DK71: 483 | DL71: 9.73870308 | DM71: 13.47678108 | DN71: 291 | DO71: 9.318861731 | DP71: 15.16328245 | DQ71: 4 | DR71: 6.21715943 | DS71: 9.71304483 | DT71: 96 | DU71: 4.82454293 | DV71: 3.85889457 | DW71: 95 | DX71: 7.44459369 | DY71: 10.1652119 | DZ71: 313 | EA71: 1.620383074 | EB71: 2.216690289 | EC71: 433 | ED71: 3.274415857 | EE71: 6.784316827 | EF71: 495 | EG71: 5.667088121 | EH71: 8.747440497 | EI71: 78 | EJ71: 5.7589141 | EK71: 6.31902082 | EL71: 261 | EM71: 9.007457762 | EN71: 13.25375122 | EO71: 200 | EP71: 4.007136933 | EQ71: 5.814902586 | ER71: 382 | ES71: 3.940599549 | ET71: 6.604869359 | EU71: 405 | EV71: 6.308263957 | EW71: 8.417126503 | EX71: 195 | EY71: 7.896239566 | EZ71: 10.4676899 | FA71: 220 | FB71: 4.377394823 | FC71: 7.335011065 | IV71: =HD54 -> 0.9587412179
A72: 71 | B72: 5.25211799 | C72: 8.95341605 | D72: 220 | E72: 4.377394823 | F72: 7.335011065 | G72: 72 | H72: 8.44975986 | I72: 10.1485986 | J72: 467 | K72: 3.874689857 | L72: 5.137450001 | M72: 216 | N72: 7.890382852 | O72: 6.741540801 | P72: 220 | Q72: 4.377394823 | R72: 7.335011065 | S72: 113 | T72: 9.488624039 | U72: 13.33210747 | V72: 56 | W72: 0.84874672 | X72: 0.715629715 | Y72: 421 | Z72: 0.5466026595 | AA72: -0.1865322591 | AB72: 392 | AC72: 7.864227825 | AD72: 10.69512537 | AE72: 331 | AF72: 1.324308153 | AG72: 1.060296162 | AH72: 161 | AI72: 4.382051539 | AJ72: 4.936514723 | AK72: 76 | AL72: 4.3412922 | AM72: 4.0240331 | AN72: 167 | AO72: 5.694993418 | AP72: 7.587259181 | AQ72: 52 | AR72: 8.42129982 | AS72: 10.24603712 | AT72: 270 | AU72: 4.892477198 | AV72: 9.449142022 | AW72: 372 | AX72: 0.4149404452 | AY72: 0.4724075273 | AZ72: 282 | BA72: 7.39346008 | BB72: 12.65488959 | BC72: 364 | BD72: 2.674927642 | BE72: 4.836107233 | BF72: 14 | BG72: 2.35391531 | BH72: 1.08322714 | BI72: 485 | BJ72: 2.879562454 | BK72: 5.363452296 | BL72: 366 | BM72: 7.6590329 | BN72: 9.989380986 | BO72: 144 | BP72: 6.618233798 | BQ72: 10.93446982 | BR72: 179 | BS72: 0.03264896274 | BT72: 0.141121088 | BU72: 384 | BV72: 5.476693426 | BW72: 7.128083543 | BX72: 173 | BY72: 4.28562054 | BZ72: 5.710111432 | CA72: 116 | CB72: 5.325049375 | CC72: 11.29006282 | CD72: 214 | CE72: 1.69418388 | CF72: 0.8329451764 | CG72: 7 | CH72: 5.57186894 | CI72: 3.42029568 | CJ72: 98 | CK72: 4.41793735 | CL72: 3.44458382 | CM72: 230 | CN72: 8.735801737 | CO72: 13.50414249 | CP72: 162 | CQ72: 1.728656525 | CR72: 1.465485586 | CS72: 317 | CT72: 4.941073579 | CU72: 6.332746976 | CV72: 323 | CW72: 6.840311799 | CX72: 8.832776868 | CY72: 287 | CZ72: 7.795973625 | DA72: 11.0065259 | DB72: 437 | DC72: 5.393602692 | DD72: 7.52693078 | DE72: 137 | DF72: 8.866205409 | DG72: 15.39516343 | DH72: 185 | DI72: 8.169997321 | DJ72: 11.34178243 | DK72: 213 | DL72: 6.698350044 | DM72: 10.79299441 | DN72: 429 | DO72: 0.8415084968 | DP72: 1.046254156 | DQ72: 466 | DR72: 2.272121236 | DS72: 2.41393604 | DT72: 243 | DU72: 7.372356743 | DV72: 14.15401139 | DW72: 234 | DX72: 1.133008382 | DY72: 3.932983308 | DZ72: 45 | EA72: 9.37237474 | EB72: 9.61764637 | EC72: 72 | ED72: 8.44975986 | EE72: 10.1485986 | EF72: 324 | EG72: 4.355816874 | EH72: 7.801517983 | EI72: 120 | EJ72: 0.3535435374 | EK72: -1.073164342 | EL72: 225 | EM72: 4.79274557 | EN72: 7.82741516 | EO72: 22 | EP72: 8.10172595 | EQ72: 12.6793998 | ER72: 197 | ES72: 3.002048693 | ET72: 4.451151681 | EU72: 15 | EV72: 0.741468446 | EW72: -3.10509067 | EX72: 153 | EY72: 3.238454736 | EZ72: 4.354441304 | FA72: 409 | FB72: 9.850359682 | FC72: 13.65602827 | IV72: =HG54 -> 0.9356109997
A73: 72 | B73: 8.44975986 | C73: 10.1485986 | D73: 338 | E73: 6.139911704 | F73: 8.221082624 | G73: 437 | H73: 5.393602692 | I73: =IF(G73<>"",INDEX($C$2:$C$502,G73),"") -> 7.52693078 | J73: 411 | K73: 4.50112695 | L73: =IF(J73<>"",INDEX($C$2:$C$502,J73),"") -> 7.939067025 | M73: 170 | N73: 3.744694891 | O73: =IF(M73<>"",INDEX($C$2:$C$502,M73),"") -> 4.464181774 | P73: 310 | Q73: 7.14790739 | R73: =IF(P73<>"",INDEX($C$2:$C$502,P73),"") -> 9.169635587 | S73: 478 | T73: 0.4187276272 | U73: =IF(S73<>"",INDEX($C$2:$C$502,S73),"") -> -0.6333903862 | V73: 213 | W73: 6.698350044 | X73: =IF(V73<>"",INDEX($C$2:$C$502,V73),"") -> 10.79299441 | Y73: 404 | Z73: 6.686552734 | AA73: =IF(Y73<>"",INDEX($C$2:$C$502,Y73),"") -> 9.184761682 | AB73: 86 | AC73: 1.25997063 | AD73: =IF(AB73<>"",INDEX($C$2:$C$502,AB73),"") -> 0.880998895 | AE73: 422 | AF73: 8.900442608 | AG73: =IF(AE73<>"",INDEX($C$2:$C$502,AE73),"") -> 12.35432215 | AH73: 241 | AI73: 1.441955256 | AJ73: =IF(AH73<>"",INDEX($C$2:$C$502,AH73),"") -> 1.265402956 | AK73: 413 | AL73: 9.777377063 | AM73: =IF(AK73<>"",INDEX($C$2:$C$502,AK73),"") -> 13.80512482 | AN73: 104 | AO73: 2.796236799 | AP73: =IF(AN73<>"",INDEX($C$2:$C$502,AN73),"") -> 3.829449248 | AQ73: 91 | AR73: 4.4224596 | AS73: =IF(AQ73<>"",INDEX($C$2:$C$502,AQ73),"") -> 7.08149033 | AT73: 224 | AU73: 8.850093268 | AV73: =IF(AT73<>"",INDEX($C$2:$C$502,AT73),"") -> 12.1058805 | AW73: 61 | AX73: 5.68622801 | AY73: =IF(AW73<>"",INDEX($C$2:$C$502,AW73),"") -> 9.69014381 | AZ73: 388 | BA73: 3.013659549 | BB73: =IF(AZ73<>"",INDEX($C$2:$C$502,AZ73),"") -> 2.853138418 | BC73: 474 | BD73: 6.176780383 | BE73: =IF(BC73<>"",INDEX($C$2:$C$502,BC73),"") -> 11.11810267 | BF73: 45 | BG73: 9.37237474 | BH73: =IF(BF73<>"",INDEX($C$2:$C$502,BF73),"") -> 9.61764637 | BI73: 447 | BJ73: 1.721789725 | BK73: =IF(BI73<>"",INDEX($C$2:$C$502,BI73),"") -> 1.475773433 | BL73: 44 | BM73: 2.51870786 | BN73: =IF(BL73<>"",INDEX($C$2:$C$502,BL73),"") -> 3.95381 | BO73: 393 | BP73: 1.855486528 | BQ73: =IF(BO73<>"",INDEX($C$2:$C$502,BO73),"") -> 1.822264596 | BR73: 422 | BS73: 8.900442608 | BT73: =IF(BR73<>"",INDEX($C$2:$C$502,BR73),"") -> 12.35432215 | BU73: 452 | BV73: 6.647937713 | BW73: =IF(BU73<>"",INDEX($C$2:$C$502,BU73),"") -> 10.67406087 | BX73: 177 | BY73: 5.367929196 | BZ73: =IF(BX73<>"",INDEX($C$2:$C$502,BX73),"") -> 6.510966796 | CA73: 41 | CB73: 2.3735837 | CC73: =IF(CA73<>"",INDEX($C$2:$C$502,CA73),"") -> -1.59270459 | CD73: 389 | CE73: 7.334305489 | CF73: =IF(CD73<>"",INDEX($C$2:$C$502,CD73),"") -> 9.743790496 | CG73: 255 | CH73: 4.550639386 | CI73: =IF(CG73<>"",INDEX($C$2:$C$502,CG73),"") -> 5.838884714 | CJ73: 384 | CK73: 5.476693426 | CL73: =IF(CJ73<>"",INDEX($C$2:$C$502,CJ73),"") -> 7.128083543 | CM73: 224 | CN73: 8.850093268 | CO73: =IF(CM73<>"",INDEX($C$2:$C$502,CM73),"") -> 12.1058805 | CP73: 142 | CQ73: 9.911222215 | CR73: =IF(CP73<>"",INDEX($C$2:$C$502,CP73),"") -> 14.01070131 | CS73: 384 | CT73: 5.476693426 | CU73: =IF(CS73<>"",INDEX($C$2:$C$502,CS73),"") -> 7.128083543 | CV73: 207 | CW73: 0.3880344279 | CX73: =IF(CV73<>"",INDEX($C$2:$C$502,CV73),"") -> -0.843655068 | CY73: 339 | CZ73: 6.261276544 | DA73: =IF(CY73<>"",INDEX($C$2:$C$502,CY73),"") -> 9.013125262 | DB73: 492 | DC73: 6.532434169 | DD73: =IF(DB73<>"",INDEX($C$2:$C$502,DB73),"") -> 13.28559818 | DE73: 339 | DF73: 6.261276544 | DG73: =IF(DE73<>"",INDEX($C$2:$C$502,DE73),"") -> 9.013125262 | DH73: 471 | DI73: 5.974281387 | DJ73: =IF(DH73<>"",INDEX($C$2:$C$502,DH73),"") -> 7.87051432 | DK73: 193 | DL73: 7.323838368 | DM73: =IF(DK73<>"",INDEX($C$2:$C$502,DK73),"") -> 9.848668602 | DN73: 217 | DO73: 8.773797216 | DP73: =IF(DN73<>"",INDEX($C$2:$C$502,DN73),"") -> 11.90187657 | DQ73: 314 | DR73: 3.893708046 | DS73: =IF(DQ73<>"",INDEX($C$2:$C$502,DQ73),"") -> 4.03433771 | DT73: 50 | DU73: 3.33730571 | DV73: =IF(DT73<>"",INDEX($C$2:$C$502,DT73),"") -> 0.911521898 | DW73: 320 | DX73: 8.687714618 | DY73: =IF(DW73<>"",INDEX($C$2:$C$502,DW73),"") -> 15.23353526 | DZ73: 113 | EA73: 9.488624039 | EB73: =IF(DZ73<>"",INDEX($C$2:$C$502,DZ73),"") -> 13.33210747 | EC73: 26 | ED73: 8.43104463 | EE73: =IF(EC73<>"",INDEX($C$2:$C$502,EC73),"") -> 11.3286742 | EF73: 174 | EG73: 6.322354733 | EH73: =IF(EF73<>"",INDEX($C$2:$C$502,EF73),"") -> 8.213277336 | EI73: 393 | EJ73: 1.855486528 | EK73: =IF(EI73<>"",INDEX($C$2:$C$502,EI73),"") -> 1.822264596 | EL73: 243 | EM73: 7.372356743 | EN73: =IF(EL73<>"",INDEX($C$2:$C$502,EL73),"") -> 14.15401139 | EO73: 182 | EP73: 1.308641244 | EQ73: =IF(EO73<>"",INDEX($C$2:$C$502,EO73),"") -> 3.608110363 | ER73: 138 | ES73: 7.241567808 | ET73: =IF(ER73<>"",INDEX($C$2:$C$502,ER73),"") -> 9.575507065 | EU73: 318 | EV73: 3.832366125 | EW73: =IF(EU73<>"",INDEX($C$2:$C$502,EU73),"") -> 4.900589815 | EX73: 405 | EY73: 6.308263957 | EZ73: =IF(EX73<>"",INDEX($C$2:$C$502,EX73),"") -> 8.417126503 | FA73: 240 | FB73: 3.420867287 | FC73: =IF(FA73<>"",INDEX($C$2:$C$502,FA73),"") -> 8.927884453 | FF73: =IF(FD73<>"",INDEX($C$2:$C$502,FD73),"") ->  | FI73: =IF(FG73<>"",INDEX($C$2:$C$502,FG73),"") ->  | FL73: =IF(FJ73<>"",INDEX($C$2:$C$502,FJ73),"") ->  | FO73: =IF(FM73<>"",INDEX($C$2:$C$502,FM73),"") ->  | FR73: =IF(FP73<>"",INDEX($C$2:$C$502,FP73),"") ->  | FU73: =IF(FS73<>"",INDEX($C$2:$C$502,FS73),"") ->  | FX73: =IF(FV73<>"",INDEX($C$2:$C$502,FV73),"") ->  | GA73: =IF(FY73<>"",INDEX($C$2:$C$502,FY73),"") ->  | GD73: =IF(GB73<>"",INDEX($C$2:$C$502,GB73),"") ->  | GG73: =IF(GE73<>"",INDEX($C$2:$C$502,GE73),"") ->  | GJ73: =IF(GH73<>"",INDEX($C$2:$C$502,GH73),"") ->  | GM73: =IF(GK73<>"",INDEX($C$2:$C$502,GK73),"") ->  | GP73: =IF(GN73<>"",INDEX($C$2:$C$502,GN73),"") ->  | GS73: =IF(GQ73<>"",INDEX($C$2:$C$502,GQ73),"") ->  | GV73: =IF(GT73<>"",INDEX($C$2:$C$502,GT73),"") ->  | GY73: =IF(GW73<>"",INDEX($C$2:$C$502,GW73),"") ->  | HB73: =IF(GZ73<>"",INDEX($C$2:$C$502,GZ73),"") ->  | HE73: =IF(HC73<>"",INDEX($C$2:$C$502,HC73),"") ->  | HH73: =IF(HF73<>"",INDEX($C$2:$C$502,HF73),"") ->  | HK73: =IF(HI73<>"",INDEX($C$2:$C$502,HI73),"") ->  | HN73: =IF(HL73<>"",INDEX($C$2:$C$502,HL73),"") ->  | HQ73: =IF(HO73<>"",INDEX($C$2:$C$502,HO73),"") ->  | HT73: =IF(HR73<>"",INDEX($C$2:$C$502,HR73),"") ->  | HW73: =IF(HU73<>"",INDEX($C$2:$C$502,HU73),"") ->  | HZ73: =IF(HX73<>"",INDEX($C$2:$C$502,HX73),"") ->  | IC73: =IF(IA73<>"",INDEX($C$2:$C$502,IA73),"") ->  | IF73: =IF(ID73<>"",INDEX($C$2:$C$502,ID73),"") ->  | II73: =IF(IG73<>"",INDEX($C$2:$C$502,IG73),"") ->  | IL73: =IF(IJ73<>"",INDEX($C$2:$C$502,IJ73),"") ->  | IO73: =IF(IM73<>"",INDEX($C$2:$C$502,IM73),"") ->  | IR73: =IF(IP73<>"",INDEX($C$2:$C$502,IP73),"") ->  | IV73: =HJ54 -> 0.9074090214
A74: 73 | B74: 6.30581833 | C74: 5.82147702 | IV74: =HM54 -> 0.9546736773
A75: 74 | B75: 3.13065817 | C75: 3.63331936 | IV75: =HP54 -> 0.9679093608
A76: 75 | B76: 4.48220544 | C76: 4.67629661 | IV76: =HS54 -> 0.9116301894
A77: 76 | B77: 4.3412922 | C77: 4.0240331 | IV77: =HV54 -> 0.872888559
A78: 77 | B78: 2.62332655 | C78: 4.44153764 | IV78: =HY54 -> 0.9467034571
A79: 78 | B79: 5.7589141 | C79: 6.31902082 | IV79: =IB54 -> 0.959282154
A80: 79 | B80: 1.39826337 | C80: 1.12138749 | IV80: =IE54 -> 0.9144467007
A81: 80 | B81: 8.34654802 | C81: 10.0915653 | IV81: =IH54 -> 0.879806178
A82: 81 | B82: 5.5414156 | C82: 8.21511411 | IV82: =IK54 -> 0.8996385572
A83: 82 | B83: 5.18564613 | C83: 7.96590089 | IV83: =IN54 -> 0.9496638548
A84: 83 | B84: 2.31240365 | C84: 2.11440066 | IV84: =IQ54 -> 0.9246208757
A85: 84 | B85: 8.61456682 | C85: 11.9266656 | IV85: =IT54 -> 0.956914539
A86: 85 | B86: 1.82822638 | C86: -2.92768506 | IV86: =E109 -> 0.9578669628
A87: 86 | B87: 1.25997063 | C87: 0.880998895 | IV87: =H109 -> 0.8338240886
A88: 87 | B88: 5.98353379 | C88: 6.75417693 | IV88: =K$109 -> 0.9648114569
A89: 88 | B89: 8.87683015 | C89: 11.8436226 | D89: =IF(AND($A34<=n,E$56<=flips),INT(501*RAND()+1),"") ->  | G89: =IF(AND($A34<=n,H$56<=flips),INT(501*RAND()+1),"") ->  | H89: =IF(G89<>"",INDEX($B$2:$B$502,G89),"") ->  | J89: =IF(AND($A34<=n,K$56<=flips),INT(501*RAND()+1),"") ->  | K89: =IF(J89<>"",INDEX($B$2:$B$502,J89),"") ->  | M89: =IF(AND($A34<=n,N$56<=flips),INT(501*RAND()+1),"") ->  | N89: =IF(M89<>"",INDEX($B$2:$B$502,M89),"") ->  | P89: =IF(AND($A34<=n,Q$56<=flips),INT(501*RAND()+1),"") ->  | Q89: =IF(P89<>"",INDEX($B$2:$B$502,P89),"") ->  | S89: =IF(AND($A34<=n,T$56<=flips),INT(501*RAND()+1),"") ->  | T89: =IF(S89<>"",INDEX($B$2:$B$502,S89),"") ->  | V89: =IF(AND($A34<=n,W$56<=flips),INT(501*RAND()+1),"") ->  | W89: =IF(V89<>"",INDEX($B$2:$B$502,V89),"") ->  | Y89: =IF(AND($A34<=n,Z$56<=flips),INT(501*RAND()+1),"") ->  | Z89: =IF(Y89<>"",INDEX($B$2:$B$502,Y89),"") ->  | AB89: =IF(AND($A34<=n,AC$56<=flips),INT(501*RAND()+1),"") ->  | AC89: =IF(AB89<>"",INDEX($B$2:$B$502,AB89),"") ->  | AE89: =IF(AND($A34<=n,AF$56<=flips),INT(501*RAND()+1),"") ->  | AF89: =IF(AE89<>"",INDEX($B$2:$B$502,AE89),"") ->  | AH89: =IF(AND($A34<=n,AI$56<=flips),INT(501*RAND()+1),"") ->  | AI89: =IF(AH89<>"",INDEX($B$2:$B$502,AH89),"") ->  | AK89: =IF(AND($A34<=n,AL$56<=flips),INT(501*RAND()+1),"") ->  | AL89: =IF(AK89<>"",INDEX($B$2:$B$502,AK89),"") ->  | AN89: =IF(AND($A34<=n,AO$56<=flips),INT(501*RAND()+1),"") ->  | AO89: =IF(AN89<>"",INDEX($B$2:$B$502,AN89),"") ->  | AQ89: =IF(AND($A34<=n,AR$56<=flips),INT(501*RAND()+1),"") ->  | AR89: =IF(AQ89<>"",INDEX($B$2:$B$502,AQ89),"") ->  | AT89: =IF(AND($A34<=n,AU$56<=flips),INT(501*RAND()+1),"") ->  | AU89: =IF(AT89<>"",INDEX($B$2:$B$502,AT89),"") ->  | AW89: =IF(AND($A34<=n,AX$56<=flips),INT(501*RAND()+1),"") ->  | AX89: =IF(AW89<>"",INDEX($B$2:$B$502,AW89),"") ->  | AZ89: =IF(AND($A34<=n,BA$56<=flips),INT(501*RAND()+1),"") ->  | BA89: =IF(AZ89<>"",INDEX($B$2:$B$502,AZ89),"") ->  | BC89: =IF(AND($A34<=n,BD$56<=flips),INT(501*RAND()+1),"") ->  | BD89: =IF(BC89<>"",INDEX($B$2:$B$502,BC89),"") ->  | BF89: =IF(AND($A34<=n,BG$56<=flips),INT(501*RAND()+1),"") ->  | BG89: =IF(BF89<>"",INDEX($B$2:$B$502,BF89),"") ->  | BI89: =IF(AND($A34<=n,BJ$56<=flips),INT(501*RAND()+1),"") ->  | BJ89: =IF(BI89<>"",INDEX($B$2:$B$502,BI89),"") ->  | BL89: =IF(AND($A34<=n,BM$56<=flips),INT(501*RAND()+1),"") ->  | BM89: =IF(BL89<>"",INDEX($B$2:$B$502,BL89),"") ->  | BO89: =IF(AND($A34<=n,BP$56<=flips),INT(501*RAND()+1),"") ->  | BP89: =IF(BO89<>"",INDEX($B$2:$B$502,BO89),"") ->  | BR89: =IF(AND($A34<=n,BS$56<=flips),INT(501*RAND()+1),"") ->  | BS89: =IF(BR89<>"",INDEX($B$2:$B$502,BR89),"") ->  | BU89: =IF(AND($A34<=n,BV$56<=flips),INT(501*RAND()+1),"") ->  | BV89: =IF(BU89<>"",INDEX($B$2:$B$502,BU89),"") ->  | BX89: =IF(AND($A34<=n,BY$56<=flips),INT(501*RAND()+1),"") ->  | BY89: =IF(BX89<>"",INDEX($B$2:$B$502,BX89),"") ->  | CA89: =IF(AND($A34<=n,CB$56<=flips),INT(501*RAND()+1),"") ->  | CB89: =IF(CA89<>"",INDEX($B$2:$B$502,CA89),"") ->  | CD89: =IF(AND($A34<=n,CE$56<=flips),INT(501*RAND()+1),"") ->  | CE89: =IF(CD89<>"",INDEX($B$2:$B$502,CD89),"") ->  | CG89: =IF(AND($A34<=n,CH$56<=flips),INT(501*RAND()+1),"") ->  | CH89: =IF(CG89<>"",INDEX($B$2:$B$502,CG89),"") ->  | CJ89: =IF(AND($A34<=n,CK$56<=flips),INT(501*RAND()+1),"") ->  | CK89: =IF(CJ89<>"",INDEX($B$2:$B$502,CJ89),"") ->  | CM89: =IF(AND($A34<=n,CN$56<=flips),INT(501*RAND()+1),"") ->  | CN89: =IF(CM89<>"",INDEX($B$2:$B$502,CM89),"") ->  | CP89: =IF(AND($A34<=n,CQ$56<=flips),INT(501*RAND()+1),"") ->  | CQ89: =IF(CP89<>"",INDEX($B$2:$B$502,CP89),"") ->  | CS89: =IF(AND($A34<=n,CT$56<=flips),INT(501*RAND()+1),"") ->  | CT89: =IF(CS89<>"",INDEX($B$2:$B$502,CS89),"") ->  | CV89: =IF(AND($A34<=n,CW$56<=flips),INT(501*RAND()+1),"") ->  | CW89: =IF(CV89<>"",INDEX($B$2:$B$502,CV89),"") ->  | CY89: =IF(AND($A34<=n,CZ$56<=flips),INT(501*RAND()+1),"") ->  | CZ89: =IF(CY89<>"",INDEX($B$2:$B$502,CY89),"") ->  | DB89: =IF(AND($A34<=n,DC$56<=flips),INT(501*RAND()+1),"") ->  | DC89: =IF(DB89<>"",INDEX($B$2:$B$502,DB89),"") ->  | DE89: =IF(AND($A34<=n,DF$56<=flips),INT(501*RAND()+1),"") ->  | DF89: =IF(DE89<>"",INDEX($B$2:$B$502,DE89),"") ->  | DH89: =IF(AND($A34<=n,DI$56<=flips),INT(501*RAND()+1),"") ->  | DI89: =IF(DH89<>"",INDEX($B$2:$B$502,DH89),"") ->  | DK89: =IF(AND($A34<=n,DL$56<=flips),INT(501*RAND()+1),"") ->  | DL89: =IF(DK89<>"",INDEX($B$2:$B$502,DK89),"") ->  | DN89: =IF(AND($A34<=n,DO$56<=flips),INT(501*RAND()+1),"") ->  | DO89: =IF(DN89<>"",INDEX($B$2:$B$502,DN89),"") ->  | DQ89: =IF(AND($A34<=n,DR$56<=flips),INT(501*RAND()+1),"") ->  | DR89: =IF(DQ89<>"",INDEX($B$2:$B$502,DQ89),"") ->  | DT89: =IF(AND($A34<=n,DU$56<=flips),INT(501*RAND()+1),"") ->  | DU89: =IF(DT89<>"",INDEX($B$2:$B$502,DT89),"") ->  | DW89: =IF(AND($A34<=n,DX$56<=flips),INT(501*RAND()+1),"") ->  | DX89: =IF(DW89<>"",INDEX($B$2:$B$502,DW89),"") ->  | DZ89: =IF(AND($A34<=n,EA$56<=flips),INT(501*RAND()+1),"") ->  | EA89: =IF(DZ89<>"",INDEX($B$2:$B$502,DZ89),"") ->  | EC89: =IF(AND($A34<=n,ED$56<=flips),INT(501*RAND()+1),"") ->  | ED89: =IF(EC89<>"",INDEX($B$2:$B$502,EC89),"") ->  | EF89: =IF(AND($A34<=n,EG$56<=flips),INT(501*RAND()+1),"") ->  | EG89: =IF(EF89<>"",INDEX($B$2:$B$502,EF89),"") ->  | EI89: =IF(AND($A34<=n,EJ$56<=flips),INT(501*RAND()+1),"") ->  | EJ89: =IF(EI89<>"",INDEX($B$2:$B$502,EI89),"") ->  | EL89: =IF(AND($A34<=n,EM$56<=flips),INT(501*RAND()+1),"") ->  | EM89: =IF(EL89<>"",INDEX($B$2:$B$502,EL89),"") ->  | EO89: =IF(AND($A34<=n,EP$56<=flips),INT(501*RAND()+1),"") ->  | EP89: =IF(EO89<>"",INDEX($B$2:$B$502,EO89),"") ->  | ER89: =IF(AND($A34<=n,ES$56<=flips),INT(501*RAND()+1),"") ->  | ES89: =IF(ER89<>"",INDEX($B$2:$B$502,ER89),"") ->  | EU89: =IF(AND($A34<=n,EV$56<=flips),INT(501*RAND()+1),"") ->  | EV89: =IF(EU89<>"",INDEX($B$2:$B$502,EU89),"") ->  | EX89: =IF(AND($A34<=n,EY$56<=flips),INT(501*RAND()+1),"") ->  | EY89: =IF(EX89<>"",INDEX($B$2:$B$502,EX89),"") ->  | FA89: =IF(AND($A34<=n,FB$56<=flips),INT(501*RAND()+1),"") ->  | FB89: =IF(FA89<>"",INDEX($B$2:$B$502,FA89),"") ->  | FD89: =IF(AND($A34<=n,FE$56<=flips),INT(501*RAND()+1),"") ->  | FE89: =IF(FD89<>"",INDEX($B$2:$B$502,FD89),"") ->  | FG89: =IF(AND($A34<=n,FH$56<=flips),INT(501*RAND()+1),"") ->  | FH89: =IF(FG89<>"",INDEX($B$2:$B$502,FG89),"") ->  | FJ89: =IF(AND($A34<=n,FK$56<=flips),INT(501*RAND()+1),"") ->  | FK89: =IF(FJ89<>"",INDEX($B$2:$B$502,FJ89),"") ->  | FM89: =IF(AND($A34<=n,FN$56<=flips),INT(501*RAND()+1),"") ->  | FN89: =IF(FM89<>"",INDEX($B$2:$B$502,FM89),"") ->  | FP89: =IF(AND($A34<=n,FQ$56<=flips),INT(501*RAND()+1),"") ->  | FQ89: =IF(FP89<>"",INDEX($B$2:$B$502,FP89),"") ->  | FS89: =IF(AND($A34<=n,FT$56<=flips),INT(501*RAND()+1),"") ->  | FT89: =IF(FS89<>"",INDEX($B$2:$B$502,FS89),"") ->  | FV89: =IF(AND($A34<=n,FW$56<=flips),INT(501*RAND()+1),"") ->  | FW89: =IF(FV89<>"",INDEX($B$2:$B$502,FV89),"") ->  | FY89: =IF(AND($A34<=n,FZ$56<=flips),INT(501*RAND()+1),"") ->  | FZ89: =IF(FY89<>"",INDEX($B$2:$B$502,FY89),"") ->  | GB89: =IF(AND($A34<=n,GC$56<=flips),INT(501*RAND()+1),"") ->  | GC89: =IF(GB89<>"",INDEX($B$2:$B$502,GB89),"") ->  | GE89: =IF(AND($A34<=n,GF$56<=flips),INT(501*RAND()+1),"") ->  | GF89: =IF(GE89<>"",INDEX($B$2:$B$502,GE89),"") ->  | GH89: =IF(AND($A34<=n,GI$56<=flips),INT(501*RAND()+1),"") ->  | GI89: =IF(GH89<>"",INDEX($B$2:$B$502,GH89),"") ->  | GK89: =IF(AND($A34<=n,GL$56<=flips),INT(501*RAND()+1),"") ->  | GL89: =IF(GK89<>"",INDEX($B$2:$B$502,GK89),"") ->  | GN89: =IF(AND($A34<=n,GO$56<=flips),INT(501*RAND()+1),"") ->  | GO89: =IF(GN89<>"",INDEX($B$2:$B$502,GN89),"") ->  | GQ89: =IF(AND($A34<=n,GR$56<=flips),INT(501*RAND()+1),"") ->  | GR89: =IF(GQ89<>"",INDEX($B$2:$B$502,GQ89),"") ->  | GT89: =IF(AND($A34<=n,GU$56<=flips),INT(501*RAND()+1),"") ->  | GU89: =IF(GT89<>"",INDEX($B$2:$B$502,GT89),"") ->  | GW89: =IF(AND($A34<=n,GX$56<=flips),INT(501*RAND()+1),"") ->  | GX89: =IF(GW89<>"",INDEX($B$2:$B$502,GW89),"") ->  | GZ89: =IF(AND($A34<=n,HA$56<=flips),INT(501*RAND()+1),"") ->  | HA89: =IF(GZ89<>"",INDEX($B$2:$B$502,GZ89),"") ->  | HC89: =IF(AND($A34<=n,HD$56<=flips),INT(501*RAND()+1),"") ->  | HD89: =IF(HC89<>"",INDEX($B$2:$B$502,HC89),"") ->  | HF89: =IF(AND($A34<=n,HG$56<=flips),INT(501*RAND()+1),"") ->  | HG89: =IF(HF89<>"",INDEX($B$2:$B$502,HF89),"") ->  | HI89: =IF(AND($A34<=n,HJ$56<=flips),INT(501*RAND()+1),"") ->  | HJ89: =IF(HI89<>"",INDEX($B$2:$B$502,HI89),"") ->  | HL89: =IF(AND($A34<=n,HM$56<=flips),INT(501*RAND()+1),"") ->  | HM89: =IF(HL89<>"",INDEX($B$2:$B$502,HL89),"") ->  | HO89: =IF(AND($A34<=n,HP$56<=flips),INT(501*RAND()+1),"") ->  | HP89: =IF(HO89<>"",INDEX($B$2:$B$502,HO89),"") ->  | HR89: =IF(AND($A34<=n,HS$56<=flips),INT(501*RAND()+1),"") ->  | HS89: =IF(HR89<>"",INDEX($B$2:$B$502,HR89),"") ->  | HU89: =IF(AND($A34<=n,HV$56<=flips),INT(501*RAND()+1),"") ->  | HV89: =IF(HU89<>"",INDEX($B$2:$B$502,HU89),"") ->  | HX89: =IF(AND($A34<=n,HY$56<=flips),INT(501*RAND()+1),"") ->  | HY89: =IF(HX89<>"",INDEX($B$2:$B$502,HX89),"") ->  | IA89: =IF(AND($A34<=n,IB$56<=flips),INT(501*RAND()+1),"") ->  | IB89: =IF(IA89<>"",INDEX($B$2:$B$502,IA89),"") ->  | ID89: =IF(AND($A34<=n,IE$56<=flips),INT(501*RAND()+1),"") ->  | IE89: =IF(ID89<>"",INDEX($B$2:$B$502,ID89),"") ->  | IG89: =IF(AND($A34<=n,IH$56<=flips),INT(501*RAND()+1),"") ->  | IH89: =IF(IG89<>"",INDEX($B$2:$B$502,IG89),"") ->  | IJ89: =IF(AND($A34<=n,IK$56<=flips),INT(501*RAND()+1),"") ->  | IK89: =IF(IJ89<>"",INDEX($B$2:$B$502,IJ89),"") ->  | IM89: =IF(AND($A34<=n,IN$56<=flips),INT(501*RAND()+1),"") ->  | IN89: =IF(IM89<>"",INDEX($B$2:$B$502,IM89),"") ->  | IP89: =IF(AND($A34<=n,IQ$56<=flips),INT(501*RAND()+1),"") ->  | IQ89: =IF(IP89<>"",INDEX($B$2:$B$502,IP89),"") ->  | IS89: =IF(AND($A34<=n,IT$56<=flips),INT(501*RAND()+1),"") ->  | IT89: =IF(IS89<>"",INDEX($B$2:$B$502,IS89),"") ->  | IV89: =N$109 -> 0.8577414537
A90: 89 | B90: 2.35202778 | C90: -0.517630912 | IV90: =Q$109 -> 0.9658998304
A91: 90 | B91: 6.60656315 | C91: 9.51956445 | IV91: =T$109 -> 0.9274537223
A92: 91 | B92: 4.4224596 | C92: 7.08149033 | IV92: =W$109 -> 0.9372227323
A93: 92 | B93: 8.05066739 | C93: 11.5738894 | IV93: =Z$109 -> 0.9479553652
A94: 93 | B94: 9.77137147 | C94: 11.31715752 | IV94: =AC$109 -> 0.9099341725
A95: 94 | B95: 6.26208838 | C95: 10.6125892 | IV95: =AF$109 -> 0.9086576933
A96: 95 | B96: 7.44459369 | C96: 10.1652119 | IV96: =AI$109 -> 0.9640096294
A97: 96 | B97: 4.82454293 | C97: 3.85889457 | IV97: =AL$109 -> 0.9636185399
A98: 97 | B98: 5.57222481 | C98: 7.54623243 | IV98: =AO$109 -> 0.9087417346
A99: 98 | B99: 4.41793735 | C99: 3.44458382 | IV99: =AR$109 -> 0.909525197
A100: 99 | B100: 8.498654961 | C100: 15.26596291 | IV100: =AU$109 -> 0.8959982531
A101: 100 | B101: 5.163454745 | C101: 8.387427899 | IV101: =AX$109 -> 0.9032738099
A102: 101 | B102: 5.445845676 | C102: 6.668110029 | IV102: =BA$109 -> 0.9407146647
A103: 102 | B103: 3.409455717 | C103: 3.652082959 | IV103: =BD$109 -> 0.8862385002
A104: 103 | B104: 5.089872537 | C104: 7.352982531 | IV104: =BG$109 -> 0.888650306
A105: 104 | B105: 2.796236799 | C105: 3.829449248 | IV105: =BJ$109 -> 0.8766353852
A106: 105 | B106: 3.355336566 | C106: 3.643402557 | IV106: =BM$109 -> 0.9513287023
A107: 106 | B107: 5.573966051 | C107: 10.59684629 | G107: =IF($A52<=n,INT(501*RAND()+1),"") ->  | I107: =IF(G107<>"",INDEX($C$2:$C$502,G107),"") ->  | J107: =IF($A52<=n,INT(501*RAND()+1),"") ->  | L107: =IF(J107<>"",INDEX($C$2:$C$502,J107),"") ->  | M107: =IF($A52<=n,INT(501*RAND()+1),"") ->  | O107: =IF(M107<>"",INDEX($C$2:$C$502,M107),"") ->  | P107: =IF($A52<=n,INT(501*RAND()+1),"") ->  | R107: =IF(P107<>"",INDEX($C$2:$C$502,P107),"") ->  | S107: =IF($A52<=n,INT(501*RAND()+1),"") ->  | U107: =IF(S107<>"",INDEX($C$2:$C$502,S107),"") ->  | V107: =IF($A52<=n,INT(501*RAND()+1),"") ->  | X107: =IF(V107<>"",INDEX($C$2:$C$502,V107),"") ->  | IV107: =BP$109 -> 0.8533568134
A108: 107 | B108: 1.14052562 | C108: 1.012054609 | D108: =IF($A108<=n,INT(501*RAND()+1),"") ->  | G108: =IF($A108<=n,INT(501*RAND()+1),"") ->  | I108: =IF(G108<>"",INDEX($C$2:$C$502,G108),"") ->  | J108: =IF($A108<=n,INT(501*RAND()+1),"") ->  | L108: =IF(J108<>"",INDEX($C$2:$C$502,J108),"") ->  | M108: =IF($A108<=n,INT(501*RAND()+1),"") ->  | O108: =IF(M108<>"",INDEX($C$2:$C$502,M108),"") ->  | P108: =IF($A108<=n,INT(501*RAND()+1),"") ->  | R108: =IF(P108<>"",INDEX($C$2:$C$502,P108),"") ->  | S108: =IF($A108<=n,INT(501*RAND()+1),"") ->  | U108: =IF(S108<>"",INDEX($C$2:$C$502,S108),"") ->  | V108: =IF($A108<=n,INT(501*RAND()+1),"") ->  | X108: =IF(V108<>"",INDEX($C$2:$C$502,V108),"") ->  | IV108: =BS$109 -> 0.9726773034
A109: 108 | B109: 6.002723661 | C109: 7.872636575 | D109: cc= | E109: =IF(D57="","",CORREL(E57:E107,F57:F107)) -> 0.9578669628 | G109: cc= | H109: =IF(G57="","",CORREL(H57:H107,I57:I107)) -> 0.8338240886 | J109: cc= | K109: =IF(J57="","",CORREL(K57:K107,L57:L107)) -> 0.9648114569 | M109: cc= | N109: =IF(M57="","",CORREL(N57:N107,O57:O107)) -> 0.8577414537 | P109: cc= | Q109: =IF(P57="","",CORREL(Q57:Q107,R57:R107)) -> 0.9658998304 | S109: cc= | T109: =IF(S57="","",CORREL(T57:T107,U57:U107)) -> 0.9274537223 | V109: cc= | W109: =IF(V57="","",CORREL(W57:W107,X57:X107)) -> 0.9372227323 | Y109: cc= | Z109: =IF(Y57="","",CORREL(Z57:Z107,AA57:AA107)) -> 0.9479553652 | AB109: cc= | AC109: =IF(AB57="","",CORREL(AC57:AC107,AD57:AD107)) -> 0.9099341725 | AE109: cc= | AF109: =IF(AE57="","",CORREL(AF57:AF107,AG57:AG107)) -> 0.9086576933 | AH109: cc= | AI109: =IF(AH57="","",CORREL(AI57:AI107,AJ57:AJ107)) -> 0.9640096294 | AK109: cc= | AL109: =IF(AK57="","",CORREL(AL57:AL107,AM57:AM107)) -> 0.9636185399 | AN109: cc= | AO109: =IF(AN57="","",CORREL(AO57:AO107,AP57:AP107)) -> 0.9087417346 | AQ109: cc= | AR109: =IF(AQ57="","",CORREL(AR57:AR107,AS57:AS107)) -> 0.909525197 | AT109: cc= | AU109: =IF(AT57="","",CORREL(AU57:AU107,AV57:AV107)) -> 0.8959982531 | AW109: cc= | AX109: =IF(AW57="","",CORREL(AX57:AX107,AY57:AY107)) -> 0.9032738099 | AZ109: cc= | BA109: =IF(AZ57="","",CORREL(BA57:BA107,BB57:BB107)) -> 0.9407146647 | BC109: cc= | BD109: =IF(BC57="","",CORREL(BD57:BD107,BE57:BE107)) -> 0.8862385002 | BF109: cc= | BG109: =IF(BF57="","",CORREL(BG57:BG107,BH57:BH107)) -> 0.888650306 | BI109: cc= | BJ109: =IF(BI57="","",CORREL(BJ57:BJ107,BK57:BK107)) -> 0.8766353852 | BL109: cc= | BM109: =IF(BL57="","",CORREL(BM57:BM107,BN57:BN107)) -> 0.9513287023 | BO109: cc= | BP109: =IF(BO57="","",CORREL(BP57:BP107,BQ57:BQ107)) -> 0.8533568134 | BR109: cc= | BS109: =IF(BR57="","",CORREL(BS57:BS107,BT57:BT107)) -> 0.9726773034 | BU109: cc= | BV109: =IF(BU57="","",CORREL(BV57:BV107,BW57:BW107)) -> 0.8851703824 | BX109: cc= | BY109: =IF(BX57="","",CORREL(BY57:BY107,BZ57:BZ107)) -> 0.8643429824 | CA109: cc= | CB109: =IF(CA57="","",CORREL(CB57:CB107,CC57:CC107)) -> 0.8963616107 | CD109: cc= | CE109: =IF(CD57="","",CORREL(CE57:CE107,CF57:CF107)) -> 0.9544069164 | CG109: cc= | CH109: =IF(CG57="","",CORREL(CH57:CH107,CI57:CI107)) -> 0.960923759 | CJ109: cc= | CK109: =IF(CJ57="","",CORREL(CK57:CK107,CL57:CL107)) -> 0.9324909771 | CM109: cc= | CN109: =IF(CM57="","",CORREL(CN57:CN107,CO57:CO107)) -> 0.9368335475 | CP109: cc= | CQ109: =IF(CP57="","",CORREL(CQ57:CQ107,CR57:CR107)) -> 0.9134338999 | CS109: cc= | CT109: =IF(CS57="","",CORREL(CT57:CT107,CU57:CU107)) -> 0.9151615436 | CV109: cc= | CW109: =IF(CV57="","",CORREL(CW57:CW107,CX57:CX107)) -> 0.9498099979 | CY109: cc= | CZ109: =IF(CY57="","",CORREL(CZ57:CZ107,DA57:DA107)) -> 0.9615674751 | DB109: cc= | DC109: =IF(DB57="","",CORREL(DC57:DC107,DD57:DD107)) -> 0.9224142495 | DE109: cc= | DF109: =IF(DE57="","",CORREL(DF57:DF107,DG57:DG107)) -> 0.9111462162 | DH109: cc= | DI109: =IF(DH57="","",CORREL(DI57:DI107,DJ57:DJ107)) -> 0.9388538174 | DK109: cc= | DL109: =IF(DK57="","",CORREL(DL57:DL107,DM57:DM107)) -> 0.9247431028 | DN109: cc= | DO109: =IF(DN57="","",CORREL(DO57:DO107,DP57:DP107)) -> 0.9441650399 | DQ109: cc= | DR109: =IF(DQ57="","",CORREL(DR57:DR107,DS57:DS107)) -> 0.9320832203 | DT109: cc= | DU109: =IF(DT57="","",CORREL(DU57:DU107,DV57:DV107)) -> 0.8782493887 | DW109: cc= | DX109: =IF(DW57="","",CORREL(DX57:DX107,DY57:DY107)) -> 0.9203856816 | DZ109: cc= | EA109: =IF(DZ57="","",CORREL(EA57:EA107,EB57:EB107)) -> 0.9285020039 | EC109: cc= | ED109: =IF(EC57="","",CORREL(ED57:ED107,EE57:EE107)) -> 0.8131891463 | EF109: cc= | EG109: =IF(EF57="","",CORREL(EG57:EG107,EH57:EH107)) -> 0.8784001386 | EI109: cc= | EJ109: =IF(EI57="","",CORREL(EJ57:EJ107,EK57:EK107)) -> 0.9551164164 | EL109: cc= | EM109: =IF(EL57="","",CORREL(EM57:EM107,EN57:EN107)) -> 0.9682084498 | EO109: cc= | EP109: =IF(EO57="","",CORREL(EP57:EP107,EQ57:EQ107)) -> 0.9338064867 | ER109: cc= | ES109: =IF(ER57="","",CORREL(ES57:ES107,ET57:ET107)) -> 0.9549845474 | EU109: cc= | EV109: =IF(EU57="","",CORREL(EV57:EV107,EW57:EW107)) -> 0.9586265641 | EX109: cc= | EY109: =IF(EX57="","",CORREL(EY57:EY107,EZ57:EZ107)) -> 0.9043836799 | FA109: cc= | FB109: =IF(FA57="","",CORREL(FB57:FB107,FC57:FC107)) -> 0.8812770196 | FD109: cc= | FE109: =IF(FD57="","",CORREL(FE57:FE107,FF57:FF107)) ->  | FG109: cc= | FH109: =IF(FG57="","",CORREL(FH57:FH107,FI57:FI107)) ->  | FJ109: cc= | FK109: =IF(FJ57="","",CORREL(FK57:FK107,FL57:FL107)) ->  | FM109: cc= | FN109: =IF(FM57="","",CORREL(FN57:FN107,FO57:FO107)) ->  | FP109: cc= | FQ109: =IF(FP57="","",CORREL(FQ57:FQ107,FR57:FR107)) ->  | FS109: cc= | FT109: =IF(FS57="","",CORREL(FT57:FT107,FU57:FU107)) ->  | FV109: cc= | FW109: =IF(FV57="","",CORREL(FW57:FW107,FX57:FX107)) ->  | FY109: cc= | FZ109: =IF(FY57="","",CORREL(FZ57:FZ107,GA57:GA107)) ->  | GB109: cc= | GC109: =IF(GB57="","",CORREL(GC57:GC107,GD57:GD107)) ->  | GE109: cc= | GF109: =IF(GE57="","",CORREL(GF57:GF107,GG57:GG107)) ->  | GH109: cc= | GI109: =IF(GH57="","",CORREL(GI57:GI107,GJ57:GJ107)) ->  | GK109: cc= | GL109: =IF(GK57="","",CORREL(GL57:GL107,GM57:GM107)) ->  | GN109: cc= | GO109: =IF(GN57="","",CORREL(GO57:GO107,GP57:GP107)) ->  | GQ109: cc= | GR109: =IF(GQ57="","",CORREL(GR57:GR107,GS57:GS107)) ->  | GT109: cc= | GU109: =IF(GT57="","",CORREL(GU57:GU107,GV57:GV107)) ->  | GW109: cc= | GX109: =IF(GW57="","",CORREL(GX57:GX107,GY57:GY107)) ->  | GZ109: cc= | HA109: =IF(GZ57="","",CORREL(HA57:HA107,HB57:HB107)) ->  | HC109: cc= | HD109: =IF(HC57="","",CORREL(HD57:HD107,HE57:HE107)) ->  | HF109: cc= | HG109: =IF(HF57="","",CORREL(HG57:HG107,HH57:HH107)) ->  | HI109: cc= | HJ109: =IF(HI57="","",CORREL(HJ57:HJ107,HK57:HK107)) ->  | HL109: cc= | HM109: =IF(HL57="","",CORREL(HM57:HM107,HN57:HN107)) ->  | HO109: cc= | HP109: =IF(HO57="","",CORREL(HP57:HP107,HQ57:HQ107)) ->  | HR109: cc= | HS109: =IF(HR57="","",CORREL(HS57:HS107,HT57:HT107)) ->  | HU109: cc= | HV109: =IF(HU57="","",CORREL(HV57:HV107,HW57:HW107)) ->  | HX109: cc= | HY109: =IF(HX57="","",CORREL(HY57:HY107,HZ57:HZ107)) ->  | IA109: cc= | IB109: =IF(IA57="","",CORREL(IB57:IB107,IC57:IC107)) ->  | ID109: cc= | IE109: =IF(ID57="","",CORREL(IE57:IE107,IF57:IF107)) ->  | IG109: cc= | IH109: =IF(IG57="","",CORREL(IH57:IH107,II57:II107)) ->  | IJ109: cc= | IK109: =IF(IJ57="","",CORREL(IK57:IK107,IL57:IL107)) ->  | IM109: cc= | IN109: =IF(IM57="","",CORREL(IN57:IN107,IO57:IO107)) ->  | IP109: cc= | IQ109: =IF(IP57="","",CORREL(IQ57:IQ107,IR57:IR107)) ->  | IS109: cc= | IT109: =IF(IS57="","",CORREL(IT57:IT107,IU57:IU107)) ->  | IV109: =BV$109 -> 0.8851703824
A110: 109 | B110: 4.247385375 | C110: 5.531413809 | IV110: =BY$109 -> 0.8643429824
A111: 110 | B111: 2.589965259 | C111: 2.941322045 | D111: sample | E111: 169 | G111: sample | H111: =E111+1 -> 170 | J111: sample | K111: =H111+1 -> 171 | M111: sample | N111: =K111+1 -> 172 | P111: sample | Q111: =N111+1 -> 173 | S111: sample | T111: =Q111+1 -> 174 | V111: sample | W111: =T111+1 -> 175 | Y111: sample | Z111: =W111+1 -> 176 | AB111: sample | AC111: =Z111+1 -> 177 | AE111: sample | AF111: =AC111+1 -> 178 | AH111: sample | AI111: =AF111+1 -> 179 | AK111: sample | AL111: =AI111+1 -> 180 | AN111: sample | AO111: =AL111+1 -> 181 | AQ111: sample | AR111: =AO111+1 -> 182 | AT111: sample | AU111: =AR111+1 -> 183 | AW111: sample | AX111: =AU111+1 -> 184 | AZ111: sample | BA111: =AX111+1 -> 185 | BC111: sample | BD111: =BA111+1 -> 186 | BF111: sample | BG111: =BD111+1 -> 187 | BI111: sample | BJ111: =BG111+1 -> 188 | BL111: sample | BM111: =BJ111+1 -> 189 | BO111: sample | BP111: =BM111+1 -> 190 | BR111: sample | BS111: =BP111+1 -> 191 | BU111: sample | BV111: =BS111+1 -> 192 | BX111: sample | BY111: =BV111+1 -> 193 | CA111: sample | CB111: =BY111+1 -> 194 | CD111: sample | CE111: =CB111+1 -> 195 | CG111: sample | CH111: =CE111+1 -> 196 | CJ111: sample | CK111: =CH111+1 -> 197 | CM111: sample | CN111: =CK111+1 -> 198 | CP111: sample | CQ111: =CN111+1 -> 199 | CS111: sample | CT111: =CQ111+1 -> 200 | CV111: sample | CW111: =CT111+1 -> 201 | CY111: sample | CZ111: =CW111+1 -> 202 | DB111: sample | DC111: =CZ111+1 -> 203 | DE111: sample | DF111: =DC111+1 -> 204 | DH111: sample | DI111: =DF111+1 -> 205 | DK111: sample | DL111: =DI111+1 -> 206 | DN111: sample | DO111: =DL111+1 -> 207 | DQ111: sample | DR111: =DO111+1 -> 208 | DT111: sample | DU111: =DR111+1 -> 209 | DW111: sample | DX111: =DU111+1 -> 210 | DZ111: sample | EA111: =DX111+1 -> 211 | EC111: sample | ED111: =EA111+1 -> 212 | EF111: sample | EG111: =ED111+1 -> 213 | EI111: sample | EJ111: =EG111+1 -> 214 | EL111: sample | EM111: =EJ111+1 -> 215 | EO111: sample | EP111: =EM111+1 -> 216 | ER111: sample | ES111: =EP111+1 -> 217 | EU111: sample | EV111: =ES111+1 -> 218 | EX111: sample | EY111: =EV111+1 -> 219 | FA111: sample | FB111: =EY111+1 -> 220 | FD111: sample | FE111: =FB111+1 -> 221 | FG111: sample | FH111: =FE111+1 -> 222 | FJ111: sample | FK111: =FH111+1 -> 223 | FM111: sample | FN111: =FK111+1 -> 224 | FP111: sample | FQ111: =FN111+1 -> 225 | FS111: sample | FT111: =FQ111+1 -> 226 | FV111: sample | FW111: =FT111+1 -> 227 | FY111: sample | FZ111: =FW111+1 -> 228 | GB111: sample | GC111: =FZ111+1 -> 229 | GE111: sample | GF111: =GC111+1 -> 230 | GH111: sample | GI111: =GF111+1 -> 231 | GK111: sample | GL111: =GI111+1 -> 232 | GN111: sample | GO111: =GL111+1 -> 233 | GQ111: sample | GR111: =GO111+1 -> 234 | GT111: sample | GU111: =GR111+1 -> 235 | GW111: sample | GX111: =GU111+1 -> 236 | GZ111: sample | HA111: =GX111+1 -> 237 | HC111: sample | HD111: =HA111+1 -> 238 | HF111: sample | HG111: =HD111+1 -> 239 | HI111: sample | HJ111: =HG111+1 -> 240 | HL111: sample | HM111: =HJ111+1 -> 241 | HO111: sample | HP111: =HM111+1 -> 242 | HR111: sample | HS111: =HP111+1 -> 243 | HU111: sample | HV111: =HS111+1 -> 244 | HX111: sample | HY111: =HV111+1 -> 245 | IA111: sample | IB111: =HY111+1 -> 246 | ID111: sample | IE111: =IB111+1 -> 247 | IG111: sample | IH111: =IE111+1 -> 248 | IJ111: sample | IK111: =IH111+1 -> 249 | IM111: sample | IN111: =IK111+1 -> 250 | IV111: =CB$109 -> 0.8963616107
A112: 111 | B112: 3.85638947 | C112: 4.92575438 | D112: =IF(AND($A2<=n,E$111<=flips),INT(501*RAND()+1),"") ->  | E112: =IF(D112<>"",INDEX($B$2:$B$502,D112),"") ->  | F112: =IF(D112<>"",INDEX($C$2:$C$502,D112),"") ->  | G112: =IF(AND($A2<=n,H$111<=flips),INT(501*RAND()+1),"") ->  | H112: =IF(G112<>"",INDEX($B$2:$B$502,G112),"") ->  | I112: =IF(G112<>"",INDEX($C$2:$C$502,G112),"") ->  | J112: =IF(AND($A2<=n,K$111<=flips),INT(501*RAND()+1),"") ->  | K112: =IF(J112<>"",INDEX($B$2:$B$502,J112),"") ->  | L112: =IF(J112<>"",INDEX($C$2:$C$502,J112),"") ->  | M112: =IF(AND($A2<=n,N$111<=flips),INT(501*RAND()+1),"") ->  | N112: =IF(M112<>"",INDEX($B$2:$B$502,M112),"") ->  | O112: =IF(M112<>"",INDEX($C$2:$C$502,M112),"") ->  | P112: =IF(AND($A2<=n,Q$111<=flips),INT(501*RAND()+1),"") ->  | Q112: =IF(P112<>"",INDEX($B$2:$B$502,P112),"") ->  | R112: =IF(P112<>"",INDEX($C$2:$C$502,P112),"") ->  | S112: =IF(AND($A2<=n,T$111<=flips),INT(501*RAND()+1),"") ->  | T112: =IF(S112<>"",INDEX($B$2:$B$502,S112),"") ->  | U112: =IF(S112<>"",INDEX($C$2:$C$502,S112),"") ->  | V112: =IF(AND($A2<=n,W$111<=flips),INT(501*RAND()+1),"") ->  | W112: =IF(V112<>"",INDEX($B$2:$B$502,V112),"") ->  | X112: =IF(V112<>"",INDEX($C$2:$C$502,V112),"") ->  | Y112: =IF(AND($A2<=n,Z$111<=flips),INT(501*RAND()+1),"") ->  | Z112: =IF(Y112<>"",INDEX($B$2:$B$502,Y112),"") ->  | AA112: =IF(Y112<>"",INDEX($C$2:$C$502,Y112),"") ->  | AB112: =IF(AND($A2<=n,AC$111<=flips),INT(501*RAND()+1),"") ->  | AC112: =IF(AB112<>"",INDEX($B$2:$B$502,AB112),"") ->  | AD112: =IF(AB112<>"",INDEX($C$2:$C$502,AB112),"") ->  | AE112: =IF(AND($A2<=n,AF$111<=flips),INT(501*RAND()+1),"") ->  | AF112: =IF(AE112<>"",INDEX($B$2:$B$502,AE112),"") ->  | AG112: =IF(AE112<>"",INDEX($C$2:$C$502,AE112),"") ->  | AH112: =IF(AND($A2<=n,AI$111<=flips),INT(501*RAND()+1),"") ->  | AI112: =IF(AH112<>"",INDEX($B$2:$B$502,AH112),"") ->  | AJ112: =IF(AH112<>"",INDEX($C$2:$C$502,AH112),"") ->  | AK112: =IF(AND($A2<=n,AL$111<=flips),INT(501*RAND()+1),"") ->  | AL112: =IF(AK112<>"",INDEX($B$2:$B$502,AK112),"") ->  | AM112: =IF(AK112<>"",INDEX($C$2:$C$502,AK112),"") ->  | AN112: =IF(AND($A2<=n,AO$111<=flips),INT(501*RAND()+1),"") ->  | AO112: =IF(AN112<>"",INDEX($B$2:$B$502,AN112),"") ->  | AP112: =IF(AN112<>"",INDEX($C$2:$C$502,AN112),"") ->  | AQ112: =IF(AND($A2<=n,AR$111<=flips),INT(501*RAND()+1),"") ->  | AR112: =IF(AQ112<>"",INDEX($B$2:$B$502,AQ112),"") ->  | AS112: =IF(AQ112<>"",INDEX($C$2:$C$502,AQ112),"") ->  | AT112: =IF(AND($A2<=n,AU$111<=flips),INT(501*RAND()+1),"") ->  | AU112: =IF(AT112<>"",INDEX($B$2:$B$502,AT112),"") ->  | AV112: =IF(AT112<>"",INDEX($C$2:$C$502,AT112),"") ->  | AW112: =IF(AND($A2<=n,AX$111<=flips),INT(501*RAND()+1),"") ->  | AX112: =IF(AW112<>"",INDEX($B$2:$B$502,AW112),"") ->  | AY112: =IF(AW112<>"",INDEX($C$2:$C$502,AW112),"") ->  | AZ112: =IF(AND($A2<=n,BA$111<=flips),INT(501*RAND()+1),"") ->  | BA112: =IF(AZ112<>"",INDEX($B$2:$B$502,AZ112),"") ->  | BB112: =IF(AZ112<>"",INDEX($C$2:$C$502,AZ112),"") ->  | BC112: =IF(AND($A2<=n,BD$111<=flips),INT(501*RAND()+1),"") ->  | BD112: =IF(BC112<>"",INDEX($B$2:$B$502,BC112),"") ->  | BE112: =IF(BC112<>"",INDEX($C$2:$C$502,BC112),"") ->  | BF112: =IF(AND($A2<=n,BG$111<=flips),INT(501*RAND()+1),"") ->  | BG112: =IF(BF112<>"",INDEX($B$2:$B$502,BF112),"") ->  | BH112: =IF(BF112<>"",INDEX($C$2:$C$502,BF112),"") ->  | BI112: =IF(AND($A2<=n,BJ$111<=flips),INT(501*RAND()+1),"") ->  | BJ112: =IF(BI112<>"",INDEX($B$2:$B$502,BI112),"") ->  | BK112: =IF(BI112<>"",INDEX($C$2:$C$502,BI112),"") ->  | BL112: =IF(AND($A2<=n,BM$111<=flips),INT(501*RAND()+1),"") ->  | BM112: =IF(BL112<>"",INDEX($B$2:$B$502,BL112),"") ->  | BN112: =IF(BL112<>"",INDEX($C$2:$C$502,BL112),"") ->  | BO112: =IF(AND($A2<=n,BP$111<=flips),INT(501*RAND()+1),"") ->  | BP112: =IF(BO112<>"",INDEX($B$2:$B$502,BO112),"") ->  | BQ112: =IF(BO112<>"",INDEX($C$2:$C$502,BO112),"") ->  | BR112: =IF(AND($A2<=n,BS$111<=flips),INT(501*RAND()+1),"") ->  | BS112: =IF(BR112<>"",INDEX($B$2:$B$502,BR112),"") ->  | BT112: =IF(BR112<>"",INDEX($C$2:$C$502,BR112),"") ->  | BU112: =IF(AND($A2<=n,BV$111<=flips),INT(501*RAND()+1),"") ->  | BV112: =IF(BU112<>"",INDEX($B$2:$B$502,BU112),"") ->  | BW112: =IF(BU112<>"",INDEX($C$2:$C$502,BU112),"") ->  | BX112: =IF(AND($A2<=n,BY$111<=flips),INT(501*RAND()+1),"") ->  | BY112: =IF(BX112<>"",INDEX($B$2:$B$502,BX112),"") ->  | BZ112: =IF(BX112<>"",INDEX($C$2:$C$502,BX112),"") ->  | CA112: =IF(AND($A2<=n,CB$111<=flips),INT(501*RAND()+1),"") ->  | CB112: =IF(CA112<>"",INDEX($B$2:$B$502,CA112),"") ->  | CC112: =IF(CA112<>"",INDEX($C$2:$C$502,CA112),"") ->  | CD112: =IF(AND($A2<=n,CE$111<=flips),INT(501*RAND()+1),"") ->  | CE112: =IF(CD112<>"",INDEX($B$2:$B$502,CD112),"") ->  | CF112: =IF(CD112<>"",INDEX($C$2:$C$502,CD112),"") ->  | CG112: =IF(AND($A2<=n,CH$111<=flips),INT(501*RAND()+1),"") ->  | CH112: =IF(CG112<>"",INDEX($B$2:$B$502,CG112),"") ->  | CI112: =IF(CG112<>"",INDEX($C$2:$C$502,CG112),"") ->  | CJ112: =IF(AND($A2<=n,CK$111<=flips),INT(501*RAND()+1),"") ->  | CK112: =IF(CJ112<>"",INDEX($B$2:$B$502,CJ112),"") ->  | CL112: =IF(CJ112<>"",INDEX($C$2:$C$502,CJ112),"") ->  | CM112: =IF(AND($A2<=n,CN$111<=flips),INT(501*RAND()+1),"") ->  | CN112: =IF(CM112<>"",INDEX($B$2:$B$502,CM112),"") ->  | CO112: =IF(CM112<>"",INDEX($C$2:$C$502,CM112),"") ->  | CP112: =IF(AND($A2<=n,CQ$111<=flips),INT(501*RAND()+1),"") ->  | CQ112: =IF(CP112<>"",INDEX($B$2:$B$502,CP112),"") ->  | CR112: =IF(CP112<>"",INDEX($C$2:$C$502,CP112),"") ->  | CS112: =IF(AND($A2<=n,CT$111<=flips),INT(501*RAND()+1),"") ->  | CT112: =IF(CS112<>"",INDEX($B$2:$B$502,CS112),"") ->  | CU112: =IF(CS112<>"",INDEX($C$2:$C$502,CS112),"") ->  | CV112: =IF(AND($A2<=n,CW$111<=flips),INT(501*RAND()+1),"") ->  | CW112: =IF(CV112<>"",INDEX($B$2:$B$502,CV112),"") ->  | CX112: =IF(CV112<>"",INDEX($C$2:$C$502,CV112),"") ->  | CY112: =IF(AND($A2<=n,CZ$111<=flips),INT(501*RAND()+1),"") ->  | CZ112: =IF(CY112<>"",INDEX($B$2:$B$502,CY112),"") ->  | DA112: =IF(CY112<>"",INDEX($C$2:$C$502,CY112),"") ->  | DB112: =IF(AND($A2<=n,DC$111<=flips),INT(501*RAND()+1),"") ->  | DC112: =IF(DB112<>"",INDEX($B$2:$B$502,DB112),"") ->  | DD112: =IF(DB112<>"",INDEX($C$2:$C$502,DB112),"") ->  | DE112: =IF(AND($A2<=n,DF$111<=flips),INT(501*RAND()+1),"") ->  | DF112: =IF(DE112<>"",INDEX($B$2:$B$502,DE112),"") ->  | DG112: =IF(DE112<>"",INDEX($C$2:$C$502,DE112),"") ->  | DH112: =IF(AND($A2<=n,DI$111<=flips),INT(501*RAND()+1),"") ->  | DI112: =IF(DH112<>"",INDEX($B$2:$B$502,DH112),"") ->  | DJ112: =IF(DH112<>"",INDEX($C$2:$C$502,DH112),"") ->  | DK112: =IF(AND($A2<=n,DL$111<=flips),INT(501*RAND()+1),"") ->  | DL112: =IF(DK112<>"",INDEX($B$2:$B$502,DK112),"") ->  | DM112: =IF(DK112<>"",INDEX($C$2:$C$502,DK112),"") ->  | DN112: =IF(AND($A2<=n,DO$111<=flips),INT(501*RAND()+1),"") ->  | DO112: =IF(DN112<>"",INDEX($B$2:$B$502,DN112),"") ->  | DP112: =IF(DN112<>"",INDEX($C$2:$C$502,DN112),"") ->  | DQ112: =IF(AND($A2<=n,DR$111<=flips),INT(501*RAND()+1),"") ->  | DR112: =IF(DQ112<>"",INDEX($B$2:$B$502,DQ112),"") ->  | DS112: =IF(DQ112<>"",INDEX($C$2:$C$502,DQ112),"") ->  | DT112: =IF(AND($A2<=n,DU$111<=flips),INT(501*RAND()+1),"") ->  | DU112: =IF(DT112<>"",INDEX($B$2:$B$502,DT112),"") ->  | DV112: =IF(DT112<>"",INDEX($C$2:$C$502,DT112),"") ->  | DW112: =IF(AND($A2<=n,DX$111<=flips),INT(501*RAND()+1),"") ->  | DX112: =IF(DW112<>"",INDEX($B$2:$B$502,DW112),"") ->  | DY112: =IF(DW112<>"",INDEX($C$2:$C$502,DW112),"") ->  | DZ112: =IF(AND($A2<=n,EA$111<=flips),INT(501*RAND()+1),"") ->  | EA112: =IF(DZ112<>"",INDEX($B$2:$B$502,DZ112),"") ->  | EB112: =IF(DZ112<>"",INDEX($C$2:$C$502,DZ112),"") ->  | EC112: =IF(AND($A2<=n,ED$111<=flips),INT(501*RAND()+1),"") ->  | ED112: =IF(EC112<>"",INDEX($B$2:$B$502,EC112),"") ->  | EE112: =IF(EC112<>"",INDEX($C$2:$C$502,EC112),"") ->  | EF112: =IF(AND($A2<=n,EG$111<=flips),INT(501*RAND()+1),"") ->  | EG112: =IF(EF112<>"",INDEX($B$2:$B$502,EF112),"") ->  | EH112: =IF(EF112<>"",INDEX($C$2:$C$502,EF112),"") ->  | EI112: =IF(AND($A2<=n,EJ$111<=flips),INT(501*RAND()+1),"") ->  | EJ112: =IF(EI112<>"",INDEX($B$2:$B$502,EI112),"") ->  | EK112: =IF(EI112<>"",INDEX($C$2:$C$502,EI112),"") ->  | EL112: =IF(AND($A2<=n,EM$111<=flips),INT(501*RAND()+1),"") ->  | EM112: =IF(EL112<>"",INDEX($B$2:$B$502,EL112),"") ->  | EN112: =IF(EL112<>"",INDEX($C$2:$C$502,EL112),"") ->  | EO112: =IF(AND($A2<=n,EP$111<=flips),INT(501*RAND()+1),"") ->  | EP112: =IF(EO112<>"",INDEX($B$2:$B$502,EO112),"") ->  | EQ112: =IF(EO112<>"",INDEX($C$2:$C$502,EO112),"") ->  | ER112: =IF(AND($A2<=n,ES$111<=flips),INT(501*RAND()+1),"") ->  | ES112: =IF(ER112<>"",INDEX($B$2:$B$502,ER112),"") ->  | ET112: =IF(ER112<>"",INDEX($C$2:$C$502,ER112),"") ->  | EU112: =IF(AND($A2<=n,EV$111<=flips),INT(501*RAND()+1),"") ->  | EV112: =IF(EU112<>"",INDEX($B$2:$B$502,EU112),"") ->  | EW112: =IF(EU112<>"",INDEX($C$2:$C$502,EU112),"") ->  | EX112: =IF(AND($A2<=n,EY$111<=flips),INT(501*RAND()+1),"") ->  | EY112: =IF(EX112<>"",INDEX($B$2:$B$502,EX112),"") ->  | EZ112: =IF(EX112<>"",INDEX($C$2:$C$502,EX112),"") ->  | FA112: =IF(AND($A2<=n,FB$111<=flips),INT(501*RAND()+1),"") ->  | FB112: =IF(FA112<>"",INDEX($B$2:$B$502,FA112),"") ->  | FC112: =IF(FA112<>"",INDEX($C$2:$C$502,FA112),"") ->  | FD112: =IF(AND($A2<=n,FE$111<=flips),INT(501*RAND()+1),"") ->  | FE112: =IF(FD112<>"",INDEX($B$2:$B$502,FD112),"") ->  | FF112: =IF(FD112<>"",INDEX($C$2:$C$502,FD112),"") ->  | FG112: =IF(AND($A2<=n,FH$111<=flips),INT(501*RAND()+1),"") ->  | FH112: =IF(FG112<>"",INDEX($B$2:$B$502,FG112),"") ->  | FI112: =IF(FG112<>"",INDEX($C$2:$C$502,FG112),"") ->  | FJ112: =IF(AND($A2<=n,FK$111<=flips),INT(501*RAND()+1),"") ->  | FK112: =IF(FJ112<>"",INDEX($B$2:$B$502,FJ112),"") ->  | FL112: =IF(FJ112<>"",INDEX($C$2:$C$502,FJ112),"") ->  | FM112: =IF(AND($A2<=n,FN$111<=flips),INT(501*RAND()+1),"") ->  | FN112: =IF(FM112<>"",INDEX($B$2:$B$502,FM112),"") ->  | FO112: =IF(FM112<>"",INDEX($C$2:$C$502,FM112),"") ->  | FP112: =IF(AND($A2<=n,FQ$111<=flips),INT(501*RAND()+1),"") ->  | FQ112: =IF(FP112<>"",INDEX($B$2:$B$502,FP112),"") ->  | FR112: =IF(FP112<>"",INDEX($C$2:$C$502,FP112),"") ->  | FS112: =IF(AND($A2<=n,FT$111<=flips),INT(501*RAND()+1),"") ->  | FT112: =IF(FS112<>"",INDEX($B$2:$B$502,FS112),"") ->  | FU112: =IF(FS112<>"",INDEX($C$2:$C$502,FS112),"") ->  | FV112: =IF(AND($A2<=n,FW$111<=flips),INT(501*RAND()+1),"") ->  | FW112: =IF(FV112<>"",INDEX($B$2:$B$502,FV112),"") ->  | FX112: =IF(FV112<>"",INDEX($C$2:$C$502,FV112),"") ->  | FY112: =IF(AND($A2<=n,FZ$111<=flips),INT(501*RAND()+1),"") ->  | FZ112: =IF(FY112<>"",INDEX($B$2:$B$502,FY112),"") ->  | GA112: =IF(FY112<>"",INDEX($C$2:$C$502,FY112),"") ->  | GB112: =IF(AND($A2<=n,GC$111<=flips),INT(501*RAND()+1),"") ->  | GC112: =IF(GB112<>"",INDEX($B$2:$B$502,GB112),"") ->  | GD112: =IF(GB112<>"",INDEX($C$2:$C$502,GB112),"") ->  | GE112: =IF(AND($A2<=n,GF$111<=flips),INT(501*RAND()+1),"") ->  | GF112: =IF(GE112<>"",INDEX($B$2:$B$502,GE112),"") ->  | GG112: =IF(GE112<>"",INDEX($C$2:$C$502,GE112),"") ->  | GH112: =IF(AND($A2<=n,GI$111<=flips),INT(501*RAND()+1),"") ->  | GI112: =IF(GH112<>"",INDEX($B$2:$B$502,GH112),"") ->  | GJ112: =IF(GH112<>"",INDEX($C$2:$C$502,GH112),"") ->  | GK112: =IF(AND($A2<=n,GL$111<=flips),INT(501*RAND()+1),"") ->  | GL112: =IF(GK112<>"",INDEX($B$2:$B$502,GK112),"") ->  | GM112: =IF(GK112<>"",INDEX($C$2:$C$502,GK112),"") ->  | GN112: =IF(AND($A2<=n,GO$111<=flips),INT(501*RAND()+1),"") ->  | GO112: =IF(GN112<>"",INDEX($B$2:$B$502,GN112),"") ->  | GP112: =IF(GN112<>"",INDEX($C$2:$C$502,GN112),"") ->  | GQ112: =IF(AND($A2<=n,GR$111<=flips),INT(501*RAND()+1),"") ->  | GR112: =IF(GQ112<>"",INDEX($B$2:$B$502,GQ112),"") ->  | GS112: =IF(GQ112<>"",INDEX($C$2:$C$502,GQ112),"") ->  | GT112: =IF(AND($A2<=n,GU$111<=flips),INT(501*RAND()+1),"") ->  | GU112: =IF(GT112<>"",INDEX($B$2:$B$502,GT112),"") ->  | GV112: =IF(GT112<>"",INDEX($C$2:$C$502,GT112),"") ->  | GW112: =IF(AND($A2<=n,GX$111<=flips),INT(501*RAND()+1),"") ->  | GX112: =IF(GW112<>"",INDEX($B$2:$B$502,GW112),"") ->  | GY112: =IF(GW112<>"",INDEX($C$2:$C$502,GW112),"") ->  | GZ112: =IF(AND($A2<=n,HA$111<=flips),INT(501*RAND()+1),"") ->  | HA112: =IF(GZ112<>"",INDEX($B$2:$B$502,GZ112),"") ->  | HB112: =IF(GZ112<>"",INDEX($C$2:$C$502,GZ112),"") ->  | HC112: =IF(AND($A2<=n,HD$111<=flips),INT(501*RAND()+1),"") ->  | HD112: =IF(HC112<>"",INDEX($B$2:$B$502,HC112),"") ->  | HE112: =IF(HC112<>"",INDEX($C$2:$C$502,HC112),"") ->  | HF112: =IF(AND($A2<=n,HG$111<=flips),INT(501*RAND()+1),"") ->  | HG112: =IF(HF112<>"",INDEX($B$2:$B$502,HF112),"") ->  | HH112: =IF(HF112<>"",INDEX($C$2:$C$502,HF112),"") ->  | HI112: =IF(AND($A2<=n,HJ$111<=flips),INT(501*RAND()+1),"") ->  | HJ112: =IF(HI112<>"",INDEX($B$2:$B$502,HI112),"") ->  | HK112: =IF(HI112<>"",INDEX($C$2:$C$502,HI112),"") ->  | HL112: =IF(AND($A2<=n,HM$111<=flips),INT(501*RAND()+1),"") ->  | HM112: =IF(HL112<>"",INDEX($B$2:$B$502,HL112),"") ->  | HN112: =IF(HL112<>"",INDEX($C$2:$C$502,HL112),"") ->  | HO112: =IF(AND($A2<=n,HP$111<=flips),INT(501*RAND()+1),"") ->  | HP112: =IF(HO112<>"",INDEX($B$2:$B$502,HO112),"") ->  | HQ112: =IF(HO112<>"",INDEX($C$2:$C$502,HO112),"") ->  | HR112: =IF(AND($A2<=n,HS$111<=flips),INT(501*RAND()+1),"") ->  | HS112: =IF(HR112<>"",INDEX($B$2:$B$502,HR112),"") ->  | HT112: =IF(HR112<>"",INDEX($C$2:$C$502,HR112),"") ->  | HU112: =IF(AND($A2<=n,HV$111<=flips),INT(501*RAND()+1),"") ->  | HV112: =IF(HU112<>"",INDEX($B$2:$B$502,HU112),"") ->  | HW112: =IF(HU112<>"",INDEX($C$2:$C$502,HU112),"") ->  | HX112: =IF(AND($A2<=n,HY$111<=flips),INT(501*RAND()+1),"") ->  | HY112: =IF(HX112<>"",INDEX($B$2:$B$502,HX112),"") ->  | HZ112: =IF(HX112<>"",INDEX($C$2:$C$502,HX112),"") ->  | IA112: =IF(AND($A2<=n,IB$111<=flips),INT(501*RAND()+1),"") ->  | IB112: =IF(IA112<>"",INDEX($B$2:$B$502,IA112),"") ->  | IC112: =IF(IA112<>"",INDEX($C$2:$C$502,IA112),"") ->  | ID112: =IF(AND($A2<=n,IE$111<=flips),INT(501*RAND()+1),"") ->  | IE112: =IF(ID112<>"",INDEX($B$2:$B$502,ID112),"") ->  | IF112: =IF(ID112<>"",INDEX($C$2:$C$502,ID112),"") ->  | IG112: =IF(AND($A2<=n,IH$111<=flips),INT(501*RAND()+1),"") ->  | IH112: =IF(IG112<>"",INDEX($B$2:$B$502,IG112),"") ->  | II112: =IF(IG112<>"",INDEX($C$2:$C$502,IG112),"") ->  | IJ112: =IF(AND($A2<=n,IK$111<=flips),INT(501*RAND()+1),"") ->  | IK112: =IF(IJ112<>"",INDEX($B$2:$B$502,IJ112),"") ->  | IL112: =IF(IJ112<>"",INDEX($C$2:$C$502,IJ112),"") ->  | IM112: =IF(AND($A2<=n,IN$111<=flips),INT(501*RAND()+1),"") ->  | IN112: =IF(IM112<>"",INDEX($B$2:$B$502,IM112),"") ->  | IO112: =IF(IM112<>"",INDEX($C$2:$C$502,IM112),"") ->  | IV112: =CE$109 -> 0.9544069164
A113: 112 | B113: 4.329394739 | C113: 5.482066263 | E113: =IF(D113<>"",INDEX($B$2:$B$502,D113),"") ->  | F113: =IF(D113<>"",INDEX($C$2:$C$502,D113),"") ->  | IV113: =CH$109 -> 0.960923759
A114: 113 | B114: 9.488624039 | C114: 13.33210747 | IV114: =CK$109 -> 0.9324909771
A115: 114 | B115: 1.252853786 | C115: 1.010064003 | IV115: =CN$109 -> 0.9368335475
A116: 115 | B116: 5.792104739 | C116: 6.937223923 | IV116: =CQ$109 -> 0.9134338999
A117: 116 | B117: 5.325049375 | C117: 11.29006282 | IV117: =CT$109 -> 0.9151615436
A118: 117 | B118: 1.634033923 | C118: 3.020722199 | IV118: =CW$109 -> 0.9498099979
A119: 118 | B119: 7.945931319 | C119: 12.86608569 | IV119: =CZ$109 -> 0.9615674751
A120: 119 | B120: 4.16612675 | C120: 7.437545505 | IV120: =DC$109 -> 0.9224142495
A121: 120 | B121: 0.3535435374 | C121: -1.073164342 | IV121: =DF$109 -> 0.9111462162
A122: 121 | B122: 4.272841113 | C122: 5.220618265 | IV122: =DI$109 -> 0.9388538174
A123: 122 | B123: 7.182313271 | C123: 9.864613996 | IV123: =DL$109 -> 0.9247431028
A124: 123 | B124: 8.35537869 | C124: 12.24402141 | IV124: =DO$109 -> 0.9441650399
A125: 124 | B125: 9.594377652 | C125: 14.97374558 | IV125: =DR$109 -> 0.9320832203
A126: 125 | B126: 2.422150472 | C126: 2.138771277 | IV126: =DU$109 -> 0.8782493887
A127: 126 | B127: 8.834973268 | C127: 11.91770108 | IV127: =DX$109 -> 0.9203856816
A128: 127 | B128: 6.346243302 | C128: 11.08876583 | I128: =IF(G128<>"",INDEX($C$2:$C$502,G128),"") ->  | L128: =IF(J128<>"",INDEX($C$2:$C$502,J128),"") ->  | O128: =IF(M128<>"",INDEX($C$2:$C$502,M128),"") ->  | R128: =IF(P128<>"",INDEX($C$2:$C$502,P128),"") ->  | U128: =IF(S128<>"",INDEX($C$2:$C$502,S128),"") ->  | X128: =IF(V128<>"",INDEX($C$2:$C$502,V128),"") ->  | AA128: =IF(Y128<>"",INDEX($C$2:$C$502,Y128),"") ->  | AD128: =IF(AB128<>"",INDEX($C$2:$C$502,AB128),"") ->  | AG128: =IF(AE128<>"",INDEX($C$2:$C$502,AE128),"") ->  | AJ128: =IF(AH128<>"",INDEX($C$2:$C$502,AH128),"") ->  | AM128: =IF(AK128<>"",INDEX($C$2:$C$502,AK128),"") ->  | AP128: =IF(AN128<>"",INDEX($C$2:$C$502,AN128),"") ->  | AS128: =IF(AQ128<>"",INDEX($C$2:$C$502,AQ128),"") ->  | AV128: =IF(AT128<>"",INDEX($C$2:$C$502,AT128),"") ->  | AY128: =IF(AW128<>"",INDEX($C$2:$C$502,AW128),"") ->  | BB128: =IF(AZ128<>"",INDEX($C$2:$C$502,AZ128),"") ->  | BE128: =IF(BC128<>"",INDEX($C$2:$C$502,BC128),"") ->  | BH128: =IF(BF128<>"",INDEX($C$2:$C$502,BF128),"") ->  | BK128: =IF(BI128<>"",INDEX($C$2:$C$502,BI128),"") ->  | BN128: =IF(BL128<>"",INDEX($C$2:$C$502,BL128),"") ->  | BQ128: =IF(BO128<>"",INDEX($C$2:$C$502,BO128),"") ->  | BT128: =IF(BR128<>"",INDEX($C$2:$C$502,BR128),"") ->  | BW128: =IF(BU128<>"",INDEX($C$2:$C$502,BU128),"") ->  | BZ128: =IF(BX128<>"",INDEX($C$2:$C$502,BX128),"") ->  | CC128: =IF(CA128<>"",INDEX($C$2:$C$502,CA128),"") ->  | CF128: =IF(CD128<>"",INDEX($C$2:$C$502,CD128),"") ->  | CI128: =IF(CG128<>"",INDEX($C$2:$C$502,CG128),"") ->  | CL128: =IF(CJ128<>"",INDEX($C$2:$C$502,CJ128),"") ->  | CO128: =IF(CM128<>"",INDEX($C$2:$C$502,CM128),"") ->  | CR128: =IF(CP128<>"",INDEX($C$2:$C$502,CP128),"") ->  | CU128: =IF(CS128<>"",INDEX($C$2:$C$502,CS128),"") ->  | CX128: =IF(CV128<>"",INDEX($C$2:$C$502,CV128),"") ->  | DA128: =IF(CY128<>"",INDEX($C$2:$C$502,CY128),"") ->  | DD128: =IF(DB128<>"",INDEX($C$2:$C$502,DB128),"") ->  | DG128: =IF(DE128<>"",INDEX($C$2:$C$502,DE128),"") ->  | DJ128: =IF(DH128<>"",INDEX($C$2:$C$502,DH128),"") ->  | DM128: =IF(DK128<>"",INDEX($C$2:$C$502,DK128),"") ->  | DP128: =IF(DN128<>"",INDEX($C$2:$C$502,DN128),"") ->  | DS128: =IF(DQ128<>"",INDEX($C$2:$C$502,DQ128),"") ->  | DV128: =IF(DT128<>"",INDEX($C$2:$C$502,DT128),"") ->  | DY128: =IF(DW128<>"",INDEX($C$2:$C$502,DW128),"") ->  | EB128: =IF(DZ128<>"",INDEX($C$2:$C$502,DZ128),"") ->  | EE128: =IF(EC128<>"",INDEX($C$2:$C$502,EC128),"") ->  | EH128: =IF(EF128<>"",INDEX($C$2:$C$502,EF128),"") ->  | EK128: =IF(EI128<>"",INDEX($C$2:$C$502,EI128),"") ->  | EN128: =IF(EL128<>"",INDEX($C$2:$C$502,EL128),"") ->  | EQ128: =IF(EO128<>"",INDEX($C$2:$C$502,EO128),"") ->  | ET128: =IF(ER128<>"",INDEX($C$2:$C$502,ER128),"") ->  | EW128: =IF(EU128<>"",INDEX($C$2:$C$502,EU128),"") ->  | EZ128: =IF(EX128<>"",INDEX($C$2:$C$502,EX128),"") ->  | FC128: =IF(FA128<>"",INDEX($C$2:$C$502,FA128),"") ->  | FF128: =IF(FD128<>"",INDEX($C$2:$C$502,FD128),"") ->  | FI128: =IF(FG128<>"",INDEX($C$2:$C$502,FG128),"") ->  | FL128: =IF(FJ128<>"",INDEX($C$2:$C$502,FJ128),"") ->  | FO128: =IF(FM128<>"",INDEX($C$2:$C$502,FM128),"") ->  | FR128: =IF(FP128<>"",INDEX($C$2:$C$502,FP128),"") ->  | FU128: =IF(FS128<>"",INDEX($C$2:$C$502,FS128),"") ->  | FX128: =IF(FV128<>"",INDEX($C$2:$C$502,FV128),"") ->  | GA128: =IF(FY128<>"",INDEX($C$2:$C$502,FY128),"") ->  | GD128: =IF(GB128<>"",INDEX($C$2:$C$502,GB128),"") ->  | GG128: =IF(GE128<>"",INDEX($C$2:$C$502,GE128),"") ->  | GJ128: =IF(GH128<>"",INDEX($C$2:$C$502,GH128),"") ->  | GM128: =IF(GK128<>"",INDEX($C$2:$C$502,GK128),"") ->  | GP128: =IF(GN128<>"",INDEX($C$2:$C$502,GN128),"") ->  | GS128: =IF(GQ128<>"",INDEX($C$2:$C$502,GQ128),"") ->  | GV128: =IF(GT128<>"",INDEX($C$2:$C$502,GT128),"") ->  | GY128: =IF(GW128<>"",INDEX($C$2:$C$502,GW128),"") ->  | HB128: =IF(GZ128<>"",INDEX($C$2:$C$502,GZ128),"") ->  | HE128: =IF(HC128<>"",INDEX($C$2:$C$502,HC128),"") ->  | HH128: =IF(HF128<>"",INDEX($C$2:$C$502,HF128),"") ->  | HK128: =IF(HI128<>"",INDEX($C$2:$C$502,HI128),"") ->  | HN128: =IF(HL128<>"",INDEX($C$2:$C$502,HL128),"") ->  | HQ128: =IF(HO128<>"",INDEX($C$2:$C$502,HO128),"") ->  | HT128: =IF(HR128<>"",INDEX($C$2:$C$502,HR128),"") ->  | HW128: =IF(HU128<>"",INDEX($C$2:$C$502,HU128),"") ->  | HZ128: =IF(HX128<>"",INDEX($C$2:$C$502,HX128),"") ->  | IC128: =IF(IA128<>"",INDEX($C$2:$C$502,IA128),"") ->  | IF128: =IF(ID128<>"",INDEX($C$2:$C$502,ID128),"") ->  | II128: =IF(IG128<>"",INDEX($C$2:$C$502,IG128),"") ->  | IL128: =IF(IJ128<>"",INDEX($C$2:$C$502,IJ128),"") ->  | IO128: =IF(IM128<>"",INDEX($C$2:$C$502,IM128),"") ->  | IV128: =EA$109 -> 0.9285020039
A129: 128 | B129: 9.117770126 | C129: 11.88939036 | IV129: =ED$109 -> 0.8131891463
A130: 129 | B130: 3.40214906 | C130: 7.329144141 | IV130: =EG$109 -> 0.8784001386
A131: 130 | B131: 5.006036796 | C131: 5.953308079 | IV131: =EJ$109 -> 0.9551164164
A132: 131 | B132: 6.886491299 | C132: 9.410603282 | IV132: =EM$109 -> 0.9682084498
A133: 132 | B133: 2.365753917 | C133: 1.900883604 | IV133: =EP$109 -> 0.9338064867
A134: 133 | B134: 2.683019603 | C134: 3.038998418 | IV134: =ES$109 -> 0.9549845474
A135: 134 | B135: 9.150091434 | C135: 14.55331338 | IV135: =EV$109 -> 0.9586265641
A136: 135 | B136: 1.144664187 | C136: 3.169718417 | IV136: =EY$109 -> 0.9043836799
A137: 136 | B137: 1.851418317 | C137: 2.269419017 | IV137: =FB$109 -> 0.8812770196
A138: 137 | B138: 8.866205409 | C138: 15.39516343 | IV138: =FE$109 -> 
A139: 138 | B139: 7.241567808 | C139: 9.575507065 | IV139: =FH$109 -> 
A140: 139 | B140: 3.54670902 | C140: 8.890824402 | IV140: =FK$109 -> 
A141: 140 | B141: 0.7627152342 | C141: 0.2338329209 | IV141: =FN$109 -> 
A142: 141 | B142: 4.800506312 | C142: 5.610688637 | IV142: =FQ$109 -> 
A143: 142 | B143: 9.911222215 | C143: 14.01070131 | IV143: =FT$109 -> 
A144: 143 | B144: 3.129816222 | C144: 4.067824527 | D144: =IF(AND($A34<=n,E$111<=flips),INT(501*RAND()+1),"") ->  | G144: =IF(AND($A34<=n,H$111<=flips),INT(501*RAND()+1),"") ->  | H144: =IF(G144<>"",INDEX($B$2:$B$502,G144),"") ->  | J144: =IF(AND($A34<=n,K$111<=flips),INT(501*RAND()+1),"") ->  | K144: =IF(J144<>"",INDEX($B$2:$B$502,J144),"") ->  | M144: =IF(AND($A34<=n,N$111<=flips),INT(501*RAND()+1),"") ->  | N144: =IF(M144<>"",INDEX($B$2:$B$502,M144),"") ->  | P144: =IF(AND($A34<=n,Q$111<=flips),INT(501*RAND()+1),"") ->  | Q144: =IF(P144<>"",INDEX($B$2:$B$502,P144),"") ->  | S144: =IF(AND($A34<=n,T$111<=flips),INT(501*RAND()+1),"") ->  | T144: =IF(S144<>"",INDEX($B$2:$B$502,S144),"") ->  | V144: =IF(AND($A34<=n,W$111<=flips),INT(501*RAND()+1),"") ->  | W144: =IF(V144<>"",INDEX($B$2:$B$502,V144),"") ->  | Y144: =IF(AND($A34<=n,Z$111<=flips),INT(501*RAND()+1),"") ->  | Z144: =IF(Y144<>"",INDEX($B$2:$B$502,Y144),"") ->  | AB144: =IF(AND($A34<=n,AC$111<=flips),INT(501*RAND()+1),"") ->  | AC144: =IF(AB144<>"",INDEX($B$2:$B$502,AB144),"") ->  | AE144: =IF(AND($A34<=n,AF$111<=flips),INT(501*RAND()+1),"") ->  | AF144: =IF(AE144<>"",INDEX($B$2:$B$502,AE144),"") ->  | AH144: =IF(AND($A34<=n,AI$111<=flips),INT(501*RAND()+1),"") ->  | AI144: =IF(AH144<>"",INDEX($B$2:$B$502,AH144),"") ->  | AK144: =IF(AND($A34<=n,AL$111<=flips),INT(501*RAND()+1),"") ->  | AL144: =IF(AK144<>"",INDEX($B$2:$B$502,AK144),"") ->  | AN144: =IF(AND($A34<=n,AO$111<=flips),INT(501*RAND()+1),"") ->  | AO144: =IF(AN144<>"",INDEX($B$2:$B$502,AN144),"") ->  | AQ144: =IF(AND($A34<=n,AR$111<=flips),INT(501*RAND()+1),"") ->  | AR144: =IF(AQ144<>"",INDEX($B$2:$B$502,AQ144),"") ->  | AT144: =IF(AND($A34<=n,AU$111<=flips),INT(501*RAND()+1),"") ->  | AU144: =IF(AT144<>"",INDEX($B$2:$B$502,AT144),"") ->  | AW144: =IF(AND($A34<=n,AX$111<=flips),INT(501*RAND()+1),"") ->  | AX144: =IF(AW144<>"",INDEX($B$2:$B$502,AW144),"") ->  | AZ144: =IF(AND($A34<=n,BA$111<=flips),INT(501*RAND()+1),"") ->  | BA144: =IF(AZ144<>"",INDEX($B$2:$B$502,AZ144),"") ->  | BC144: =IF(AND($A34<=n,BD$111<=flips),INT(501*RAND()+1),"") ->  | BD144: =IF(BC144<>"",INDEX($B$2:$B$502,BC144),"") ->  | BF144: =IF(AND($A34<=n,BG$111<=flips),INT(501*RAND()+1),"") ->  | BG144: =IF(BF144<>"",INDEX($B$2:$B$502,BF144),"") ->  | BI144: =IF(AND($A34<=n,BJ$111<=flips),INT(501*RAND()+1),"") ->  | BJ144: =IF(BI144<>"",INDEX($B$2:$B$502,BI144),"") ->  | BL144: =IF(AND($A34<=n,BM$111<=flips),INT(501*RAND()+1),"") ->  | BM144: =IF(BL144<>"",INDEX($B$2:$B$502,BL144),"") ->  | BO144: =IF(AND($A34<=n,BP$111<=flips),INT(501*RAND()+1),"") ->  | BP144: =IF(BO144<>"",INDEX($B$2:$B$502,BO144),"") ->  | BR144: =IF(AND($A34<=n,BS$111<=flips),INT(501*RAND()+1),"") ->  | BS144: =IF(BR144<>"",INDEX($B$2:$B$502,BR144),"") ->  | BU144: =IF(AND($A34<=n,BV$111<=flips),INT(501*RAND()+1),"") ->  | BV144: =IF(BU144<>"",INDEX($B$2:$B$502,BU144),"") ->  | BX144: =IF(AND($A34<=n,BY$111<=flips),INT(501*RAND()+1),"") ->  | BY144: =IF(BX144<>"",INDEX($B$2:$B$502,BX144),"") ->  | CA144: =IF(AND($A34<=n,CB$111<=flips),INT(501*RAND()+1),"") ->  | CB144: =IF(CA144<>"",INDEX($B$2:$B$502,CA144),"") ->  | CD144: =IF(AND($A34<=n,CE$111<=flips),INT(501*RAND()+1),"") ->  | CE144: =IF(CD144<>"",INDEX($B$2:$B$502,CD144),"") ->  | CG144: =IF(AND($A34<=n,CH$111<=flips),INT(501*RAND()+1),"") ->  | CH144: =IF(CG144<>"",INDEX($B$2:$B$502,CG144),"") ->  | CJ144: =IF(AND($A34<=n,CK$111<=flips),INT(501*RAND()+1),"") ->  | CK144: =IF(CJ144<>"",INDEX($B$2:$B$502,CJ144),"") ->  | CM144: =IF(AND($A34<=n,CN$111<=flips),INT(501*RAND()+1),"") ->  | CN144: =IF(CM144<>"",INDEX($B$2:$B$502,CM144),"") ->  | CP144: =IF(AND($A34<=n,CQ$111<=flips),INT(501*RAND()+1),"") ->  | CQ144: =IF(CP144<>"",INDEX($B$2:$B$502,CP144),"") ->  | CS144: =IF(AND($A34<=n,CT$111<=flips),INT(501*RAND()+1),"") ->  | CT144: =IF(CS144<>"",INDEX($B$2:$B$502,CS144),"") ->  | CV144: =IF(AND($A34<=n,CW$111<=flips),INT(501*RAND()+1),"") ->  | CW144: =IF(CV144<>"",INDEX($B$2:$B$502,CV144),"") ->  | CY144: =IF(AND($A34<=n,CZ$111<=flips),INT(501*RAND()+1),"") ->  | CZ144: =IF(CY144<>"",INDEX($B$2:$B$502,CY144),"") ->  | DB144: =IF(AND($A34<=n,DC$111<=flips),INT(501*RAND()+1),"") ->  | DC144: =IF(DB144<>"",INDEX($B$2:$B$502,DB144),"") ->  | DE144: =IF(AND($A34<=n,DF$111<=flips),INT(501*RAND()+1),"") ->  | DF144: =IF(DE144<>"",INDEX($B$2:$B$502,DE144),"") ->  | DH144: =IF(AND($A34<=n,DI$111<=flips),INT(501*RAND()+1),"") ->  | DI144: =IF(DH144<>"",INDEX($B$2:$B$502,DH144),"") ->  | DK144: =IF(AND($A34<=n,DL$111<=flips),INT(501*RAND()+1),"") ->  | DL144: =IF(DK144<>"",INDEX($B$2:$B$502,DK144),"") ->  | DN144: =IF(AND($A34<=n,DO$111<=flips),INT(501*RAND()+1),"") ->  | DO144: =IF(DN144<>"",INDEX($B$2:$B$502,DN144),"") ->  | DQ144: =IF(AND($A34<=n,DR$111<=flips),INT(501*RAND()+1),"") ->  | DR144: =IF(DQ144<>"",INDEX($B$2:$B$502,DQ144),"") ->  | DT144: =IF(AND($A34<=n,DU$111<=flips),INT(501*RAND()+1),"") ->  | DU144: =IF(DT144<>"",INDEX($B$2:$B$502,DT144),"") ->  | DW144: =IF(AND($A34<=n,DX$111<=flips),INT(501*RAND()+1),"") ->  | DX144: =IF(DW144<>"",INDEX($B$2:$B$502,DW144),"") ->  | DZ144: =IF(AND($A34<=n,EA$111<=flips),INT(501*RAND()+1),"") ->  | EA144: =IF(DZ144<>"",INDEX($B$2:$B$502,DZ144),"") ->  | EC144: =IF(AND($A34<=n,ED$111<=flips),INT(501*RAND()+1),"") ->  | ED144: =IF(EC144<>"",INDEX($B$2:$B$502,EC144),"") ->  | EF144: =IF(AND($A34<=n,EG$111<=flips),INT(501*RAND()+1),"") ->  | EG144: =IF(EF144<>"",INDEX($B$2:$B$502,EF144),"") ->  | EI144: =IF(AND($A34<=n,EJ$111<=flips),INT(501*RAND()+1),"") ->  | EJ144: =IF(EI144<>"",INDEX($B$2:$B$502,EI144),"") ->  | EL144: =IF(AND($A34<=n,EM$111<=flips),INT(501*RAND()+1),"") ->  | EM144: =IF(EL144<>"",INDEX($B$2:$B$502,EL144),"") ->  | EO144: =IF(AND($A34<=n,EP$111<=flips),INT(501*RAND()+1),"") ->  | EP144: =IF(EO144<>"",INDEX($B$2:$B$502,EO144),"") ->  | ER144: =IF(AND($A34<=n,ES$111<=flips),INT(501*RAND()+1),"") ->  | ES144: =IF(ER144<>"",INDEX($B$2:$B$502,ER144),"") ->  | EU144: =IF(AND($A34<=n,EV$111<=flips),INT(501*RAND()+1),"") ->  | EV144: =IF(EU144<>"",INDEX($B$2:$B$502,EU144),"") ->  | EX144: =IF(AND($A34<=n,EY$111<=flips),INT(501*RAND()+1),"") ->  | EY144: =IF(EX144<>"",INDEX($B$2:$B$502,EX144),"") ->  | FA144: =IF(AND($A34<=n,FB$111<=flips),INT(501*RAND()+1),"") ->  | FB144: =IF(FA144<>"",INDEX($B$2:$B$502,FA144),"") ->  | FD144: =IF(AND($A34<=n,FE$111<=flips),INT(501*RAND()+1),"") ->  | FE144: =IF(FD144<>"",INDEX($B$2:$B$502,FD144),"") ->  | FG144: =IF(AND($A34<=n,FH$111<=flips),INT(501*RAND()+1),"") ->  | FH144: =IF(FG144<>"",INDEX($B$2:$B$502,FG144),"") ->  | FJ144: =IF(AND($A34<=n,FK$111<=flips),INT(501*RAND()+1),"") ->  | FK144: =IF(FJ144<>"",INDEX($B$2:$B$502,FJ144),"") ->  | FM144: =IF(AND($A34<=n,FN$111<=flips),INT(501*RAND()+1),"") ->  | FN144: =IF(FM144<>"",INDEX($B$2:$B$502,FM144),"") ->  | FP144: =IF(AND($A34<=n,FQ$111<=flips),INT(501*RAND()+1),"") ->  | FQ144: =IF(FP144<>"",INDEX($B$2:$B$502,FP144),"") ->  | FS144: =IF(AND($A34<=n,FT$111<=flips),INT(501*RAND()+1),"") ->  | FT144: =IF(FS144<>"",INDEX($B$2:$B$502,FS144),"") ->  | FV144: =IF(AND($A34<=n,FW$111<=flips),INT(501*RAND()+1),"") ->  | FW144: =IF(FV144<>"",INDEX($B$2:$B$502,FV144),"") ->  | FY144: =IF(AND($A34<=n,FZ$111<=flips),INT(501*RAND()+1),"") ->  | FZ144: =IF(FY144<>"",INDEX($B$2:$B$502,FY144),"") ->  | GB144: =IF(AND($A34<=n,GC$111<=flips),INT(501*RAND()+1),"") ->  | GC144: =IF(GB144<>"",INDEX($B$2:$B$502,GB144),"") ->  | GE144: =IF(AND($A34<=n,GF$111<=flips),INT(501*RAND()+1),"") ->  | GF144: =IF(GE144<>"",INDEX($B$2:$B$502,GE144),"") ->  | GH144: =IF(AND($A34<=n,GI$111<=flips),INT(501*RAND()+1),"") ->  | GI144: =IF(GH144<>"",INDEX($B$2:$B$502,GH144),"") ->  | GK144: =IF(AND($A34<=n,GL$111<=flips),INT(501*RAND()+1),"") ->  | GL144: =IF(GK144<>"",INDEX($B$2:$B$502,GK144),"") ->  | GN144: =IF(AND($A34<=n,GO$111<=flips),INT(501*RAND()+1),"") ->  | GO144: =IF(GN144<>"",INDEX($B$2:$B$502,GN144),"") ->  | GQ144: =IF(AND($A34<=n,GR$111<=flips),INT(501*RAND()+1),"") ->  | GR144: =IF(GQ144<>"",INDEX($B$2:$B$502,GQ144),"") ->  | GT144: =IF(AND($A34<=n,GU$111<=flips),INT(501*RAND()+1),"") ->  | GU144: =IF(GT144<>"",INDEX($B$2:$B$502,GT144),"") ->  | GW144: =IF(AND($A34<=n,GX$111<=flips),INT(501*RAND()+1),"") ->  | GX144: =IF(GW144<>"",INDEX($B$2:$B$502,GW144),"") ->  | GZ144: =IF(AND($A34<=n,HA$111<=flips),INT(501*RAND()+1),"") ->  | HA144: =IF(GZ144<>"",INDEX($B$2:$B$502,GZ144),"") ->  | HC144: =IF(AND($A34<=n,HD$111<=flips),INT(501*RAND()+1),"") ->  | HD144: =IF(HC144<>"",INDEX($B$2:$B$502,HC144),"") ->  | HF144: =IF(AND($A34<=n,HG$111<=flips),INT(501*RAND()+1),"") ->  | HG144: =IF(HF144<>"",INDEX($B$2:$B$502,HF144),"") ->  | HI144: =IF(AND($A34<=n,HJ$111<=flips),INT(501*RAND()+1),"") ->  | HJ144: =IF(HI144<>"",INDEX($B$2:$B$502,HI144),"") ->  | HL144: =IF(AND($A34<=n,HM$111<=flips),INT(501*RAND()+1),"") ->  | HM144: =IF(HL144<>"",INDEX($B$2:$B$502,HL144),"") ->  | HO144: =IF(AND($A34<=n,HP$111<=flips),INT(501*RAND()+1),"") ->  | HP144: =IF(HO144<>"",INDEX($B$2:$B$502,HO144),"") ->  | HR144: =IF(AND($A34<=n,HS$111<=flips),INT(501*RAND()+1),"") ->  | HS144: =IF(HR144<>"",INDEX($B$2:$B$502,HR144),"") ->  | HU144: =IF(AND($A34<=n,HV$111<=flips),INT(501*RAND()+1),"") ->  | HV144: =IF(HU144<>"",INDEX($B$2:$B$502,HU144),"") ->  | HX144: =IF(AND($A34<=n,HY$111<=flips),INT(501*RAND()+1),"") ->  | HY144: =IF(HX144<>"",INDEX($B$2:$B$502,HX144),"") ->  | IA144: =IF(AND($A34<=n,IB$111<=flips),INT(501*RAND()+1),"") ->  | IB144: =IF(IA144<>"",INDEX($B$2:$B$502,IA144),"") ->  | ID144: =IF(AND($A34<=n,IE$111<=flips),INT(501*RAND()+1),"") ->  | IE144: =IF(ID144<>"",INDEX($B$2:$B$502,ID144),"") ->  | IG144: =IF(AND($A34<=n,IH$111<=flips),INT(501*RAND()+1),"") ->  | IH144: =IF(IG144<>"",INDEX($B$2:$B$502,IG144),"") ->  | IJ144: =IF(AND($A34<=n,IK$111<=flips),INT(501*RAND()+1),"") ->  | IK144: =IF(IJ144<>"",INDEX($B$2:$B$502,IJ144),"") ->  | IM144: =IF(AND($A34<=n,IN$111<=flips),INT(501*RAND()+1),"") ->  | IN144: =IF(IM144<>"",INDEX($B$2:$B$502,IM144),"") ->  | IV144: =FW$109 -> 
A145: 144 | B145: 6.618233798 | C145: 10.93446982 | IV145: =FZ$109 -> 
A146: 145 | B146: 0.8525446832 | C146: 2.999647937 | IV146: =GC$109 -> 
A147: 146 | B147: 8.091907966 | C147: 12.02246854 | IV147: =GF$109 -> 
A148: 147 | B148: 5.446111592 | C148: 7.140385258 | IV148: =GI$109 -> 
A149: 148 | B149: 1.137754207 | C149: 4.165309598 | IV149: =GL$109 -> 
A150: 149 | B150: 8.090021663 | C150: 10.60334957 | IV150: =GO$109 -> 
A151: 150 | B151: 6.823624893 | C151: 12.35404068 | IV151: =GR$109 -> 
A152: 151 | B152: 5.339735175 | C152: 7.177933736 | IV152: =GU$109 -> 
A153: 152 | B153: 6.920232629 | C153: 8.974504092 | IV153: =GX$109 -> 
A154: 153 | B154: 3.238454736 | C154: 4.354441304 | IV154: =HA$109 -> 
A155: 154 | B155: 9.837375533 | C155: 15.80117633 | IV155: =HD$109 -> 
A156: 155 | B156: 4.825641159 | C156: 6.160031288 | IV156: =HG$109 -> 
A157: 156 | B157: 7.522274139 | C157: 10.39817808 | IV157: =HJ$109 -> 
A158: 157 | B158: 7.281089293 | C158: 9.735038872 | IV158: =HM$109 -> 
A159: 158 | B159: 6.576493163 | C159: 13.21882269 | IV159: =HP$109 -> 
A160: 159 | B160: 7.14326188 | C160: 9.249714156 | IV160: =HS$109 -> 
A161: 160 | B161: 2.379058156 | C161: 5.635721578 | IV161: =HV$109 -> 
A162: 161 | B162: 4.382051539 | C162: 4.936514723 | IV162: =HY$109 -> 
A163: 162 | B163: 1.728656525 | C163: 1.465485586 | D163: =IF($A163<=n,INT(501*RAND()+1),"") ->  | G163: =IF($A163<=n,INT(501*RAND()+1),"") ->  | J163: =IF($A163<=n,INT(501*RAND()+1),"") ->  | M163: =IF($A163<=n,INT(501*RAND()+1),"") ->  | P163: =IF($A163<=n,INT(501*RAND()+1),"") ->  | S163: =IF($A163<=n,INT(501*RAND()+1),"") ->  | V163: =IF($A163<=n,INT(501*RAND()+1),"") ->  | Y163: =IF($A163<=n,INT(501*RAND()+1),"") ->  | AB163: =IF($A163<=n,INT(501*RAND()+1),"") ->  | AE163: =IF($A163<=n,INT(501*RAND()+1),"") ->  | AH163: =IF($A163<=n,INT(501*RAND()+1),"") ->  | AK163: =IF($A163<=n,INT(501*RAND()+1),"") ->  | AN163: =IF($A163<=n,INT(501*RAND()+1),"") ->  | AQ163: =IF($A163<=n,INT(501*RAND()+1),"") ->  | AT163: =IF($A163<=n,INT(501*RAND()+1),"") ->  | AW163: =IF($A163<=n,INT(501*RAND()+1),"") ->  | AZ163: =IF($A163<=n,INT(501*RAND()+1),"") ->  | BC163: =IF($A163<=n,INT(501*RAND()+1),"") ->  | BF163: =IF($A163<=n,INT(501*RAND()+1),"") ->  | BI163: =IF($A163<=n,INT(501*RAND()+1),"") ->  | BL163: =IF($A163<=n,INT(501*RAND()+1),"") ->  | BO163: =IF($A163<=n,INT(501*RAND()+1),"") ->  | BR163: =IF($A163<=n,INT(501*RAND()+1),"") ->  | BU163: =IF($A163<=n,INT(501*RAND()+1),"") ->  | BX163: =IF($A163<=n,INT(501*RAND()+1),"") ->  | CA163: =IF($A163<=n,INT(501*RAND()+1),"") ->  | CD163: =IF($A163<=n,INT(501*RAND()+1),"") ->  | CG163: =IF($A163<=n,INT(501*RAND()+1),"") ->  | CJ163: =IF($A163<=n,INT(501*RAND()+1),"") ->  | CM163: =IF($A163<=n,INT(501*RAND()+1),"") ->  | CP163: =IF($A163<=n,INT(501*RAND()+1),"") ->  | CS163: =IF($A163<=n,INT(501*RAND()+1),"") ->  | CV163: =IF($A163<=n,INT(501*RAND()+1),"") ->  | CY163: =IF($A163<=n,INT(501*RAND()+1),"") ->  | DB163: =IF($A163<=n,INT(501*RAND()+1),"") ->  | DE163: =IF($A163<=n,INT(501*RAND()+1),"") ->  | DH163: =IF($A163<=n,INT(501*RAND()+1),"") ->  | DK163: =IF($A163<=n,INT(501*RAND()+1),"") ->  | DN163: =IF($A163<=n,INT(501*RAND()+1),"") ->  | DQ163: =IF($A163<=n,INT(501*RAND()+1),"") ->  | DT163: =IF($A163<=n,INT(501*RAND()+1),"") ->  | DW163: =IF($A163<=n,INT(501*RAND()+1),"") ->  | DZ163: =IF($A163<=n,INT(501*RAND()+1),"") ->  | EC163: =IF($A163<=n,INT(501*RAND()+1),"") ->  | EF163: =IF($A163<=n,INT(501*RAND()+1),"") ->  | EI163: =IF($A163<=n,INT(501*RAND()+1),"") ->  | EL163: =IF($A163<=n,INT(501*RAND()+1),"") ->  | EO163: =IF($A163<=n,INT(501*RAND()+1),"") ->  | ER163: =IF($A163<=n,INT(501*RAND()+1),"") ->  | EU163: =IF($A163<=n,INT(501*RAND()+1),"") ->  | EX163: =IF($A163<=n,INT(501*RAND()+1),"") ->  | FA163: =IF($A163<=n,INT(501*RAND()+1),"") ->  | FD163: =IF($A163<=n,INT(501*RAND()+1),"") ->  | FG163: =IF($A163<=n,INT(501*RAND()+1),"") ->  | FJ163: =IF($A163<=n,INT(501*RAND()+1),"") ->  | FM163: =IF($A163<=n,INT(501*RAND()+1),"") ->  | FP163: =IF($A163<=n,INT(501*RAND()+1),"") ->  | FS163: =IF($A163<=n,INT(501*RAND()+1),"") ->  | FV163: =IF($A163<=n,INT(501*RAND()+1),"") ->  | FY163: =IF($A163<=n,INT(501*RAND()+1),"") ->  | GB163: =IF($A163<=n,INT(501*RAND()+1),"") ->  | GE163: =IF($A163<=n,INT(501*RAND()+1),"") ->  | GH163: =IF($A163<=n,INT(501*RAND()+1),"") ->  | GK163: =IF($A163<=n,INT(501*RAND()+1),"") ->  | GN163: =IF($A163<=n,INT(501*RAND()+1),"") ->  | GQ163: =IF($A163<=n,INT(501*RAND()+1),"") ->  | GT163: =IF($A163<=n,INT(501*RAND()+1),"") ->  | GW163: =IF($A163<=n,INT(501*RAND()+1),"") ->  | GZ163: =IF($A163<=n,INT(501*RAND()+1),"") ->  | HC163: =IF($A163<=n,INT(501*RAND()+1),"") ->  | HF163: =IF($A163<=n,INT(501*RAND()+1),"") ->  | HI163: =IF($A163<=n,INT(501*RAND()+1),"") ->  | HL163: =IF($A163<=n,INT(501*RAND()+1),"") ->  | HO163: =IF($A163<=n,INT(501*RAND()+1),"") ->  | HR163: =IF($A163<=n,INT(501*RAND()+1),"") ->  | HU163: =IF($A163<=n,INT(501*RAND()+1),"") ->  | HX163: =IF($A163<=n,INT(501*RAND()+1),"") ->  | IA163: =IF($A163<=n,INT(501*RAND()+1),"") ->  | ID163: =IF($A163<=n,INT(501*RAND()+1),"") ->  | IG163: =IF($A163<=n,INT(501*RAND()+1),"") ->  | IJ163: =IF($A163<=n,INT(501*RAND()+1),"") ->  | IM163: =IF($A163<=n,INT(501*RAND()+1),"") ->  | IV163: =IB$109 -> 
A164: 163 | B164: 5.493235531 | C164: 8.865620796 | D164: cc= | E164: =IF(D112="","",CORREL(E112:E162,F112:F162)) ->  | G164: cc= | H164: =IF(G112="","",CORREL(H112:H162,I112:I162)) ->  | J164: cc= | K164: =IF(J112="","",CORREL(K112:K162,L112:L162)) ->  | M164: cc= | N164: =IF(M112="","",CORREL(N112:N162,O112:O162)) ->  | P164: cc= | Q164: =IF(P112="","",CORREL(Q112:Q162,R112:R162)) ->  | S164: cc= | T164: =IF(S112="","",CORREL(T112:T162,U112:U162)) ->  | V164: cc= | W164: =IF(V112="","",CORREL(W112:W162,X112:X162)) ->  | Y164: cc= | Z164: =IF(Y112="","",CORREL(Z112:Z162,AA112:AA162)) ->  | AB164: cc= | AC164: =IF(AB112="","",CORREL(AC112:AC162,AD112:AD162)) ->  | AE164: cc= | AF164: =IF(AE112="","",CORREL(AF112:AF162,AG112:AG162)) ->  | AH164: cc= | AI164: =IF(AH112="","",CORREL(AI112:AI162,AJ112:AJ162)) ->  | AK164: cc= | AL164: =IF(AK112="","",CORREL(AL112:AL162,AM112:AM162)) ->  | AN164: cc= | AO164: =IF(AN112="","",CORREL(AO112:AO162,AP112:AP162)) ->  | AQ164: cc= | AR164: =IF(AQ112="","",CORREL(AR112:AR162,AS112:AS162)) ->  | AT164: cc= | AU164: =IF(AT112="","",CORREL(AU112:AU162,AV112:AV162)) ->  | AW164: cc= | AX164: =IF(AW112="","",CORREL(AX112:AX162,AY112:AY162)) ->  | AZ164: cc= | BA164: =IF(AZ112="","",CORREL(BA112:BA162,BB112:BB162)) ->  | BC164: cc= | BD164: =IF(BC112="","",CORREL(BD112:BD162,BE112:BE162)) ->  | BF164: cc= | BG164: =IF(BF112="","",CORREL(BG112:BG162,BH112:BH162)) ->  | BI164: cc= | BJ164: =IF(BI112="","",CORREL(BJ112:BJ162,BK112:BK162)) ->  | BL164: cc= | BM164: =IF(BL112="","",CORREL(BM112:BM162,BN112:BN162)) ->  | BO164: cc= | BP164: =IF(BO112="","",CORREL(BP112:BP162,BQ112:BQ162)) ->  | BR164: cc= | BS164: =IF(BR112="","",CORREL(BS112:BS162,BT112:BT162)) ->  | BU164: cc= | BV164: =IF(BU112="","",CORREL(BV112:BV162,BW112:BW162)) ->  | BX164: cc= | BY164: =IF(BX112="","",CORREL(BY112:BY162,BZ112:BZ162)) ->  | CA164: cc= | CB164: =IF(CA112="","",CORREL(CB112:CB162,CC112:CC162)) ->  | CD164: cc= | CE164: =IF(CD112="","",CORREL(CE112:CE162,CF112:CF162)) ->  | CG164: cc= | CH164: =IF(CG112="","",CORREL(CH112:CH162,CI112:CI162)) ->  | CJ164: cc= | CK164: =IF(CJ112="","",CORREL(CK112:CK162,CL112:CL162)) ->  | CM164: cc= | CN164: =IF(CM112="","",CORREL(CN112:CN162,CO112:CO162)) ->  | CP164: cc= | CQ164: =IF(CP112="","",CORREL(CQ112:CQ162,CR112:CR162)) ->  | CS164: cc= | CT164: =IF(CS112="","",CORREL(CT112:CT162,CU112:CU162)) ->  | CV164: cc= | CW164: =IF(CV112="","",CORREL(CW112:CW162,CX112:CX162)) ->  | CY164: cc= | CZ164: =IF(CY112="","",CORREL(CZ112:CZ162,DA112:DA162)) ->  | DB164: cc= | DC164: =IF(DB112="","",CORREL(DC112:DC162,DD112:DD162)) ->  | DE164: cc= | DF164: =IF(DE112="","",CORREL(DF112:DF162,DG112:DG162)) ->  | DH164: cc= | DI164: =IF(DH112="","",CORREL(DI112:DI162,DJ112:DJ162)) ->  | DK164: cc= | DL164: =IF(DK112="","",CORREL(DL112:DL162,DM112:DM162)) ->  | DN164: cc= | DO164: =IF(DN112="","",CORREL(DO112:DO162,DP112:DP162)) ->  | DQ164: cc= | DR164: =IF(DQ112="","",CORREL(DR112:DR162,DS112:DS162)) ->  | DT164: cc= | DU164: =IF(DT112="","",CORREL(DU112:DU162,DV112:DV162)) ->  | DW164: cc= | DX164: =IF(DW112="","",CORREL(DX112:DX162,DY112:DY162)) ->  | DZ164: cc= | EA164: =IF(DZ112="","",CORREL(EA112:EA162,EB112:EB162)) ->  | EC164: cc= | ED164: =IF(EC112="","",CORREL(ED112:ED162,EE112:EE162)) ->  | EF164: cc= | EG164: =IF(EF112="","",CORREL(EG112:EG162,EH112:EH162)) ->  | EI164: cc= | EJ164: =IF(EI112="","",CORREL(EJ112:EJ162,EK112:EK162)) ->  | EL164: cc= | EM164: =IF(EL112="","",CORREL(EM112:EM162,EN112:EN162)) ->  | EO164: cc= | EP164: =IF(EO112="","",CORREL(EP112:EP162,EQ112:EQ162)) ->  | ER164: cc= | ES164: =IF(ER112="","",CORREL(ES112:ES162,ET112:ET162)) ->  | EU164: cc= | EV164: =IF(EU112="","",CORREL(EV112:EV162,EW112:EW162)) ->  | EX164: cc= | EY164: =IF(EX112="","",CORREL(EY112:EY162,EZ112:EZ162)) ->  | FA164: cc= | FB164: =IF(FA112="","",CORREL(FB112:FB162,FC112:FC162)) ->  | FD164: cc= | FE164: =IF(FD112="","",CORREL(FE112:FE162,FF112:FF162)) ->  | FG164: cc= | FH164: =IF(FG112="","",CORREL(FH112:FH162,FI112:FI162)) ->  | FJ164: cc= | FK164: =IF(FJ112="","",CORREL(FK112:FK162,FL112:FL162)) ->  | FM164: cc= | FN164: =IF(FM112="","",CORREL(FN112:FN162,FO112:FO162)) ->  | FP164: cc= | FQ164: =IF(FP112="","",CORREL(FQ112:FQ162,FR112:FR162)) ->  | FS164: cc= | FT164: =IF(FS112="","",CORREL(FT112:FT162,FU112:FU162)) ->  | FV164: cc= | FW164: =IF(FV112="","",CORREL(FW112:FW162,FX112:FX162)) ->  | FY164: cc= | FZ164: =IF(FY112="","",CORREL(FZ112:FZ162,GA112:GA162)) ->  | GB164: cc= | GC164: =IF(GB112="","",CORREL(GC112:GC162,GD112:GD162)) ->  | GE164: cc= | GF164: =IF(GE112="","",CORREL(GF112:GF162,GG112:GG162)) ->  | GH164: cc= | GI164: =IF(GH112="","",CORREL(GI112:GI162,GJ112:GJ162)) ->  | GK164: cc= | GL164: =IF(GK112="","",CORREL(GL112:GL162,GM112:GM162)) ->  | GN164: cc= | GO164: =IF(GN112="","",CORREL(GO112:GO162,GP112:GP162)) ->  | GQ164: cc= | GR164: =IF(GQ112="","",CORREL(GR112:GR162,GS112:GS162)) ->  | GT164: cc= | GU164: =IF(GT112="","",CORREL(GU112:GU162,GV112:GV162)) ->  | GW164: cc= | GX164: =IF(GW112="","",CORREL(GX112:GX162,GY112:GY162)) ->  | GZ164: cc= | HA164: =IF(GZ112="","",CORREL(HA112:HA162,HB112:HB162)) ->  | HC164: cc= | HD164: =IF(HC112="","",CORREL(HD112:HD162,HE112:HE162)) ->  | HF164: cc= | HG164: =IF(HF112="","",CORREL(HG112:HG162,HH112:HH162)) ->  | HI164: cc= | HJ164: =IF(HI112="","",CORREL(HJ112:HJ162,HK112:HK162)) ->  | HL164: cc= | HM164: =IF(HL112="","",CORREL(HM112:HM162,HN112:HN162)) ->  | HO164: cc= | HP164: =IF(HO112="","",CORREL(HP112:HP162,HQ112:HQ162)) ->  | HR164: cc= | HS164: =IF(HR112="","",CORREL(HS112:HS162,HT112:HT162)) ->  | HU164: cc= | HV164: =IF(HU112="","",CORREL(HV112:HV162,HW112:HW162)) ->  | HX164: cc= | HY164: =IF(HX112="","",CORREL(HY112:HY162,HZ112:HZ162)) ->  | IA164: cc= | IB164: =IF(IA112="","",CORREL(IB112:IB162,IC112:IC162)) ->  | ID164: cc= | IE164: =IF(ID112="","",CORREL(IE112:IE162,IF112:IF162)) ->  | IG164: cc= | IH164: =IF(IG112="","",CORREL(IH112:IH162,II112:II162)) ->  | IJ164: cc= | IK164: =IF(IJ112="","",CORREL(IK112:IK162,IL112:IL162)) ->  | IM164: cc= | IN164: =IF(IM112="","",CORREL(IN112:IN162,IO112:IO162)) ->  | IV164: =IE$109 -> 
A165: 164 | B165: 9.965606271 | C165: 13.99774901 | IV165: =IH$109 -> 
A166: 165 | B166: 3.040116362 | C166: 3.583370544 | IV166: =IK$109 -> 
A167: 166 | B167: 8.690891498 | C167: 15.60378946 | IV167: =IN$109 -> 
A168: 167 | B168: 5.694993418 | C168: 7.587259181 | IV168: =IQ$109 -> 
A169: 168 | B169: 5.71037702 | C169: 7.239777269 | IV169: =IT$109 -> 
A170: 169 | B170: 7.858001029 | C170: 12.82808101 | IV170: =E164 -> 
A171: 170 | B171: 3.744694891 | C171: 4.464181774 | IV171: =H164 -> 
A172: 171 | B172: 8.778074625 | C172: 13.50642065 | IV172: =K$164 -> 
A173: 172 | B173: 7.31031285 | C173: 10.56882332 | IV173: =N$164 -> 
A174: 173 | B174: 4.28562054 | C174: 5.710111432 | IV174: =Q$164 -> 
A175: 174 | B175: 6.322354733 | C175: 8.213277336 | IV175: =T$164 -> 
A176: 175 | B176: 2.231528297 | C176: 2.404254766 | IV176: =W$164 -> 
A177: 176 | B177: 3.506806691 | C177: 4.916780199 | IV177: =Z$164 -> 
A178: 177 | B178: 5.367929196 | C178: 6.510966796 | IV178: =AC$164 -> 
A179: 178 | B179: 7.251810584 | C179: 11.87564702 | IV179: =AF$164 -> 
A180: 179 | B180: 0.03264896274 | C180: 0.141121088 | IV180: =AI$164 -> 
A181: 180 | B181: 3.121413244 | C181: 3.831618274 | IV181: =AL$164 -> 
A182: 181 | B182: 6.289004383 | C182: 12.75129234 | IV182: =AO$164 -> 
A183: 182 | B183: 1.308641244 | C183: 3.608110363 | IV183: =AR$164 -> 
A184: 183 | B184: 2.321756073 | C184: 2.924827135 | IV184: =AU$164 -> 
A185: 184 | B185: 0.1414582344 | C185: -0.8367194623 | IV185: =AX$164 -> 
A186: 185 | B186: 8.169997321 | C186: 11.34178243 | IV186: =BA$164 -> 
A187: 186 | B187: 8.005788583 | C187: 10.37636983 | IV187: =BD$164 -> 
A188: 187 | B188: 6.519533522 | C188: 9.25470835 | IV188: =BG$164 -> 
A189: 188 | B189: 0.09134565558 | C189: -1.467150419 | IV189: =BJ$164 -> 
A190: 189 | B190: 1.10180771 | C190: 0.4625460936 | IV190: =BM$164 -> 
A191: 190 | B191: 3.609999136 | C191: 5.909913366 | IV191: =BP$164 -> 
A192: 191 | B192: 8.862057696 | C192: 12.36862636 | IV192: =BS$164 -> 
A193: 192 | B193: 6.637214147 | C193: 9.03810549 | IV193: =BV$164 -> 
A194: 193 | B194: 7.323838368 | C194: 9.848668602 | IV194: =BY$164 -> 
A195: 194 | B195: 3.618389603 | C195: 4.39875626 | IV195: =CB$164 -> 
A196: 195 | B196: 7.896239566 | C196: 10.4676899 | IV196: =CE$164 -> 
A197: 196 | B197: 0.7680377099 | C197: -0.1752951546 | IV197: =CH$164 -> 
A198: 197 | B198: 3.002048693 | C198: 4.451151681 | IV198: =CK$164 -> 
A199: 198 | B199: 6.01787814 | C199: 7.387096473 | IV199: =CN$164 -> 
A200: 199 | B200: 1.695444701 | C200: 1.766260807 | IV200: =CQ$164 -> 
... 303 more rows

Sheet Sheet4
